Workbook

Sheet Start
C1: TEMPLATE LAST REVISED ON: | F1: 2021-11-19
C5: Enter Project/Company Name
C6: Sample Company
C12: Enter Target Date for First Disbursement of DFC-Supported Debt
E13: 2022-06-15

Sheet HistoricalData
A1: =CONCATENATE(Start!C6," Historical Financial Statements") -> Sample Company Historical Financial Statements
B4: Please enter amounts in "thousands" of currency units. | L4: Rounding
L5: Thousands
B6: =YEAR(Start!E13)-3 -> 2019 | C6: =B6+1 -> 2020 | D6: =C6+1 -> 2021 | K6: Millions
A7: Statement Preparation Type
A10: End of Year Exchange Rate (statement currency/USD)
K11: Statement Type
A12: Balance Sheet Items | K12: Audited-Unqualified | L12: 1 | M12: 1 | N12: 1 | O12: 1
A13: Current Assets | K13: Audited-Qualified
A14: Cash and Cash Equivalents | K14: Reviewed
A15: Receivables (Trade) | K15: Compiled
A16: Receivables (Notes, Other) | K16: Company Prepared
A17: Inventory (Sum of all Types)
A18: Fixed Assets
A19: Land
A20: Buildings and Leasehold Improvements
A21: Machinery and Equipment
A22: Furniture and Fixtures
A23: Transportation Equipment
A24: Long Term Receivables
A25: Other Fixed Assets
A26: Intangibles
A27: Accumulated Depreciation (-)
A29: Total Assets | B29: =SUM(B14:B17)+SUM(B19:B27) -> 0 | C29: =SUM(C14:C17)+SUM(C19:C27) -> 0 | D29: =SUM(D14:D17)+SUM(D19:D27) -> 0
A31: Current Liabilities
A32: Trade Payables and Other Current Liabilities
A33: Short Term Debt
A34: Current Portion of Long Term Debt
A36: Long Term Liabilities
A37: Long Term Debt (Senior)
A38: Subordinated Debt
A39: Other Long-Term Liabilities
A41: Equity/Net Worth
A42: Common Stock
A43: Paid in Capital
A44: Retained Earnings
A46: Total Liabilites and Net Worth | B46: =SUM(B32:B34)+SUM(B37:B39)+SUM(B42:B44) -> 0 | C46: =SUM(C32:C34)+SUM(C37:C39)+SUM(C42:C44) -> 0 | D46: =SUM(D32:D34)+SUM(D37:D39)+SUM(D42:D44) -> 0
B47: =IF(B29-B46=0," ","Error") ->  | C47: =IF(C29-C46=0," ","Error") ->  | D47: =IF(D29-D46=0," ","Error") -> 
A51: Profit and Loss/Income Statement Items
A52: Revenue (net of discounts/allowances)
A53: Cost of Goods Sold
A54: Cash Operating Expenses
A55: Non-Cash Operating Expenses
A56: Depreciation and Amortization
A57: Net Interest Income/(Expense)
A58: Taxes
A59: Other Cash Income
A60: Other Non-Cash Income
A61: Other Cash Deductions (-)
A62: Other Non-Cash Deductions (-)
A63: Net Income | B63: =B52-SUM(B53:B56)+B57-B58+SUM(B59:B62) -> 0 | C63: 0 | D63: =D52-SUM(D53:D56)+D57-D58+SUM(D59:D62) -> 0
A64: Dividends
A66: Adjustments During the Year
A67: Non-Dividend Adjmts to Retained Earnings
A68: Other Cash Adjustments to Equity
A69: Other Non-Cash Adjustments to Equity
C71: [Convert to USD button]
A75: Balance Sheet Items
A76: Current Assets
A77: Cash and Cash Equivalents | B77: =B14*(1/$B$10) ->  | C77: =C14*(1/$C$10) ->  | D77: =CashFlow!D42 -> 0
A78: Receivables (Trade) | B78: =B15*(1/$B$10) ->  | C78: =C15*(1/$C$10) ->  | D78: =D15*(1/$D$10) -> 
A79: Receivables (Notes, Other) | B79: =B16*(1/$B$10) ->  | C79: =C16*(1/$C$10) ->  | D79: =D16*(1/$D$10) -> 
A80: Inventory (Sum of all Types) | B80: =B17*(1/$B$10) ->  | C80: =C17*(1/$C$10) ->  | D80: =D17*(1/$D$10) -> 
A81: Fixed Assets
A82: Land | B82: =B19*(1/$B$10) ->  | C82: =C19*(1/$C$10) ->  | D82: =D19*(1/$D$10) -> 
A83: Buildings and Leasehold Improvements | B83: =B20*(1/$B$10) ->  | C83: =C20*(1/$C$10) ->  | D83: =D20*(1/$D$10) -> 
A84: Machinery and Equipment
A85: Furniture and Fixtures
A86: Transportation Equipment
A87: Long Term Receivables
A88: Other Fixed Assets
A89: Intangibles
A90: Accumulated Depreciation (-) | C90: =B27/$B$10+(B27/$C$10-B27/$B$10)-C118 ->  | D90: =C27/$C$10+(C27/$D$10-C27/$C$10)-D118 -> 
A92: Total Assets | B92: =SUM(B77:B80)+SUM(B82:B90) ->  | C92: =SUM(C77:C80)+SUM(C82:C90) ->  | D92: =SUM(D77:D80)+SUM(D82:D90) -> 
A94: Current Liabilities
A95: Trade and Other Payables | B95: =B32*(1/$B$10) ->  | C95: =C32*(1/$C$10) ->  | D95: =D32*(1/$D$10) -> 
A96: Short Term Debt | B96: =B33*(1/$B$10) ->  | C96: =C33*(1/$C$10) ->  | D96: =D33*(1/$D$10) -> 
A97: Current Portion of Long Term Debt
A99: Long Term Liabilities
A100: Long Term Debt (Senior) | B100: =B37*(1/$B$10) ->  | C100: =C37*(1/$C$10) ->  | D100: =D37*(1/$D$10) -> 
A101: Subordinated Debt
A102: Other Long-Term Liabilities
A104: Equity/Net Worth
A105: Common Stock | B105: =B42*(1/$B$10) ->  | C105: =C42*(1/$C$10) ->  | D105: =D42*(1/$D$10) -> 
A106: Paid in Capital | B106: =B43*(1/$B$10) ->  | C106: =C43*(1/$C$10) ->  | D106: =D43*(1/$D$10) -> 
A107: Retained Earnings | B107: =B44*(1/$B$10) ->  | C107: =B44/$B$10+(B44/$C$10-B44/$B$10)+C125-C126 ->  | D107: =C44/$C$10+(C44/$D$10-C44/$C$10)+D125-D126 -> 
A109: Total Liabilites and Net Worth | B109: =SUM(B95:B97)+SUM(B100:B102)+SUM(B105:B107) ->  | C109: =SUM(C95:C97)+SUM(C100:C102)+SUM(C105:C107) ->  | D109: =SUM(D95:D97)+SUM(D100:D102)+SUM(D105:D107) -> 
B110: =IF(OR(B92-B109<1,B92-B109>-1)," ","Error") ->  | C110: =IF(OR(C92-C109<1,C92-C109>-1)," ","Error") ->  | D110: =IF(OR(D92-D109<1,D92-D109>-1)," ","Error") -> 
A113: Profit and Loss/Income Statement Items
A114: Revenue (net of discounts/allowances) | B114: =B52*(1/$B$10) ->  | C114: =C52*(1/$C$10) ->  | D114: =D52*(1/$D$10) -> 
A115: Cost of Goods Sold
A116: Cash Operating Expenses
A117: Non-Cash Operating Expenses
A118: Depreciation and Amortization
A119: Net Interest Income/(Expense)
A120: Taxes
A121: Other Cash Income
A122: Other Non-Cash Income
A123: Other Cash Deductions
A124: Other Non-Cash Deductions
A125: Net Income | B125: =B114-SUM(B115:B118)+B119-B120+SUM(B121:B124) -> 
A126: Dividends | B126: =B64*(1/$B$10) ->  | C126: =C64*(1/$C$10) ->  | D126: =D64*(1/$D$10) -> 
A128: Adjustments During the Year
A129: Non-Dividend Adjmts to Retained Earnings | B129: =B67*(1/$B$10) ->  | C129: =C67*(1/$C$10) ->  | D129: =D67*(1/$D$10) -> 
A130: Other Cash Adjustments to Equity | B130: =B68*(1/$B$10) ->  | C130: =C68*(1/$C$10) ->  | D130: =D68*(1/$D$10) -> 
A131: Other Non-Cash Adjustments to Equity | B131: =B69*(1/$B$10) ->  | C131: =C69*(1/$C$10) ->  | D131: =D69*(1/$D$10) -> 
A134: Reconciliation of Equity
A135: Starting Equity | C135: =IF($C$10=0,SUM(B42:B44),SUM(B105:B107)) -> 0 | D135: =IF($D$10=0,SUM(C42:C44),SUM(C105:C107)) -> 0
A136: Changes to Retained Earnings | C136: =IF($C$10=0,C63-C64+C67,C125-C126+C129) -> 0 | D136: =IF($D$10=0,D63-D64+D67,D125-D126+D129) -> 0
A137: Changes to Other Equity | C137: =IF($C$10=0,C68+C69,C130+C131) -> 0 | D137: =IF($D$10=0,D68+D69,D130+D131) -> 0
A138: Changes due to Y-to-Y Exchange Rate | C138: =IF(C10=0,0,(SUM(B42:B44)/C10)-(SUM(B42:B44)/B10)) -> 0 | D138: =IF(D10=0,0,(SUM(C42:C44)/D10)-(SUM(C42:C44)/C10)) -> 0
A139: Unexplained Changes to Equity | C139: =C140-SUM(C135:C138) -> 0 | D139: 0
A140: Ending Equity | C140: =IF($C$10=0,SUM(C42:C44),SUM(C105:C107)) -> 0 | D140: =IF($D$10=0,SUM(D42:D44),SUM(D105:D107)) -> 0

Sheet Assumptions
A1: Calendar Year | D1: =YEAR(Start!E13) -> 2022 | E1: =D1+1 -> 2023 | F1: =E1+1 -> 2024 | G1: 2025 | H1: 2026 | I1: 2027 | J1: 2028 | K1: 2029 | L1: 2030 | M1: =L1+1 -> 2031 | N1: =M1+1 -> 2032 | O1: =N1+1 -> 2033 | P1: =O1+1 -> 2034
D2: =Start!C6 -> Sample Company
A3: Revenues in $000s
A5: Business Line "A"
A6: Number of Units sold annually | D6: 0 | E6: 0 | F6: 0 | G6: 0 | H6: 0 | I6: 0 | J6: 0 | K6: 0 | L6: 0 | M6: 0 | N6: 0 | O6: 0 | P6: 0 | R6: Existing | S6: 1
A7: Price per Unit (local currency) | D7: 0 | E7: 0 | F7: 0 | G7: 0 | H7: 0 | I7: 0 | J7: 0 | K7: 0 | L7: 0 | M7: 0 | N7: 0 | O7: 0 | P7: 0 | R7: New
A8: Currency conversion (local currency per USD) | D8: 1 | E8: 1 | F8: 1 | G8: =$F$8 -> 1 | H8: =$F$8 -> 1 | I8: 1 | J8: 1 | K8: 1 | L8: 1 | M8: 1 | N8: 1 | O8: 1 | P8: 1
A9: =CONCATENATE(A5," Revenue in $000s") -> Business Line "A" Revenue in $000s | D9: =(D6*D7/1000)*(1/D8) -> 0 | E9: =(E6*E7/1000)*(1/E8) -> 0 | F9: 0 | G9: 0 | H9: 0 | I9: 0 | J9: 0 | K9: 0 | L9: 0 | M9: 0 | N9: 0 | O9: 0 | P9: 0
A11: Business Line "B"
A12: Number of Units sold annually | D12: 0 | E12: 0 | F12: 0 | G12: 0 | H12: 0 | I12: 0 | J12: 0 | K12: 0 | L12: 0 | M12: 0 | N12: 0 | O12: 0 | P12: 0 | R12: Existing | S12: 1
A13: Price per Unit (local currency) | D13: 0 | E13: 0 | F13: 0 | G13: 0 | H13: 0 | I13: 0 | J13: 0 | K13: 0 | L13: 0 | M13: 0 | N13: 0 | O13: 0 | P13: 0 | R13: New
A14: Currency conversion (local currency per USD) | D14: =D8 -> 1 | E14: =E8 -> 1 | F14: 1 | G14: 1 | H14: 1 | I14: 1 | J14: 1 | K14: 1 | L14: 1 | M14: 1 | N14: 1 | O14: =O8 -> 1 | P14: =P8 -> 1
A15: =CONCATENATE(A11," Revenue in $000s") -> Business Line "B" Revenue in $000s | D15: =(D12*D13/1000)*(1/D14) -> 0 | E15: =(E12*E13/1000)*(1/E14) -> 0 | F15: 0 | G15: 0 | H15: 0 | I15: 0 | J15: 0 | K15: 0 | L15: 0 | M15: 0 | N15: 0 | O15: 0 | P15: 0
A17: Business Line "C"
A18: Number of Units sold annually | D18: 0 | E18: 0 | F18: 0 | G18: 0 | H18: 0 | I18: 0 | J18: 0 | K18: 0 | L18: 0 | M18: 0 | N18: 0 | O18: 0 | P18: 0 | R18: Existing | S18: 1
A19: Price per Unit (local currency) | D19: 0 | E19: 0 | F19: 0 | G19: 0 | H19: 0 | I19: 0 | J19: 0 | K19: 0 | L19: 0 | M19: 0 | N19: 0 | O19: 0 | P19: 0 | R19: New
A20: Currency conversion (local currency per USD) | D20: =D8 -> 1 | E20: =E8 -> 1 | F20: 1 | G20: 1 | H20: 1 | I20: 1 | J20: 1 | K20: 1 | L20: 1 | M20: 1 | N20: 1 | O20: =O8 -> 1 | P20: =P8 -> 1
A21: =CONCATENATE(A17," Revenue in $000s") -> Business Line "C" Revenue in $000s | D21: =(D18*D19/1000)*(1/D20) -> 0 | E21: =(E18*E19/1000)*(1/E20) -> 0 | F21: 0 | G21: 0 | H21: 0 | I21: 0 | J21: 0 | K21: 0 | L21: 0 | M21: 0 | N21: 0 | O21: 0 | P21: 0
A23: Business Line "D"
A24: Number of Units sold annually | D24: 0 | E24: 0 | F24: 0 | G24: 0 | H24: 0 | I24: 0 | J24: 0 | K24: 0 | L24: 0 | M24: 0 | N24: 0 | O24: 0 | P24: 0 | R24: Existing | S24: 1
A25: Price per Unit (local currency) | D25: 0 | E25: 0 | F25: 0 | G25: 0 | H25: 0 | I25: 0 | J25: 0 | K25: 0 | L25: 0 | M25: 0 | N25: 0 | O25: 0 | P25: 0 | R25: New
A26: Currency conversion (local currency per USD) | D26: =D8 -> 1 | E26: =E8 -> 1 | F26: 1 | G26: 1 | H26: 1 | I26: 1 | J26: 1 | K26: 1 | L26: 1 | M26: 1 | N26: 1 | O26: =O8 -> 1 | P26: =P8 -> 1
A27: =CONCATENATE(A23," Revenue in $000s") -> Business Line "D" Revenue in $000s | D27: =(D24*D25/1000)*(1/D26) -> 0 | E27: =(E24*E25/1000)*(1/E26) -> 0 | F27: 0 | G27: 0 | H27: 0 | I27: 0 | J27: 0 | K27: 0 | L27: 0 | M27: 0 | N27: 0 | O27: 0 | P27: 0
A29: =CONCATENATE("Total Sales Revenues in $000s") -> Total Sales Revenues in $000s | D29: =D9+D15+D21+D27 -> 0 | E29: =E9+E15+E21+E27 -> 0 | F29: 0 | G29: 0 | H29: 0 | I29: 0 | J29: 0 | K29: 0 | L29: 0 | M29: 0 | N29: 0 | O29: 0 | P29: 0
A31: Operating Costs in $000s
A33: Cost of Goods Sold as % of Total Sales Revenue | D33: 0 | E33: 0 | F33: 0 | G33: 0 | H33: 0 | I33: 0 | J33: 0 | K33: 0 | L33: 0 | M33: 0 | N33: 0 | O33: 0 | P33: 0
A34: Cost of Goods Sold in $000s | D34: =D29*D33 -> 0 | E34: 0 | F34: 0 | G34: 0 | H34: 0 | I34: 0 | J34: 0 | K34: 0 | L34: 0 | M34: =M29*M33 -> 0 | N34: =N29*N33 -> 0 | O34: =O29*O33 -> 0 | P34: =P29*P33 -> 0
A36: Indirect/Overhead Costs
A37: Local Currency Costs
A38: Operating Expense (local 000s) | D38: 0 | E38: 0 | F38: 0 | G38: 0 | H38: 0 | I38: 0 | J38: 0 | K38: 0 | L38: 0 | M38: 0 | N38: 0 | O38: 0 | P38: 0
A39: Operating Expense (local 000s) | D39: 0 | E39: 0 | F39: 0 | G39: 0 | H39: 0 | I39: 0 | J39: 0 | K39: 0 | L39: 0 | M39: 0 | N39: 0 | O39: 0 | P39: 0
A40: Operating Expense (local 000s) | D40: 0 | E40: 0 | F40: 0 | G40: 0 | H40: 0 | I40: 0 | J40: 0 | K40: 0 | L40: 0 | M40: 0 | N40: 0 | O40: 0 | P40: 0
A41: Operating Expense (local 000s) | D41: 0 | E41: 0 | F41: 0 | G41: 0 | H41: 0 | I41: 0 | J41: 0 | K41: 0 | L41: 0 | M41: 0 | N41: 0 | O41: 0 | P41: 0
A42: Operating Expense (local 000s) | D42: 0 | E42: 0 | F42: 0 | G42: 0 | H42: 0 | I42: 0 | J42: 0 | K42: 0 | L42: 0 | M42: 0 | N42: 0 | O42: 0 | P42: 0
A43: Total Local Currency Cost (local 000s) | D43: =SUM(D38:D42) -> 0 | E43: =SUM(E38:E42) -> 0 | F43: 0 | G43: 0 | H43: 0 | I43: 0 | J43: 0 | K43: 0 | L43: 0 | M43: 0 | N43: 0 | O43: =SUM(O38:O42) -> 0 | P43: =SUM(P38:P42) -> 0
A44: Conversion (local currency per USD) | D44: =D8 -> 1 | E44: =E8 -> 1 | F44: 1 | G44: 1 | H44: 1 | I44: 1 | J44: 1 | K44: 1 | L44: 1 | M44: 1 | N44: 1 | O44: =O8 -> 1 | P44: =P8 -> 1
A45: Total Local currency cost in $000s | D45: =D43*(1/D44) -> 0 | E45: =E43*(1/E44) -> 0 | F45: 0 | G45: 0 | H45: 0 | I45: 0 | J45: 0 | K45: 0 | L45: 0 | M45: 0 | N45: 0 | O45: =O43*(1/O44) -> 0 | P45: =P43*(1/P44) -> 0
A47: US Dollar Costs
A48: Operating Expense ($000s) | D48: 0 | E48: 0 | F48: 0 | G48: 0 | H48: 0 | I48: 0 | J48: 0 | K48: 0 | L48: 0 | M48: 0 | N48: 0 | O48: 0 | P48: 0
A49: Operating Expense ($000s) | D49: 0 | E49: 0 | F49: 0 | G49: 0 | H49: 0 | I49: 0 | J49: 0 | K49: 0 | L49: 0 | M49: 0 | N49: 0 | O49: 0 | P49: 0
A50: Operating Expense ($000s) | D50: 0 | E50: 0 | F50: 0 | G50: 0 | H50: 0 | I50: 0 | J50: 0 | K50: 0 | L50: 0 | M50: 0 | N50: 0 | O50: 0 | P50: 0
A51: Operating Expense ($000s) | D51: 0 | E51: 0 | F51: 0 | G51: 0 | H51: 0 | I51: 0 | J51: 0 | K51: 0 | L51: 0 | M51: 0 | N51: 0 | O51: 0 | P51: 0
A52: Operating Expense ($000s) | D52: 0 | E52: 0 | F52: 0 | G52: 0 | H52: 0 | I52: 0 | J52: 0 | K52: 0 | L52: 0 | M52: 0 | N52: 0 | O52: 0 | P52: 0
A53: Total US Dollar Costs ($000s) | D53: =SUM(D48:D52) -> 0 | E53: =SUM(E48:E52) -> 0 | F53: 0 | G53: 0 | H53: 0 | I53: 0 | J53: 0 | K53: 0 | L53: 0 | M53: 0 | N53: 0 | O53: =SUM(O48:O52) -> 0 | P53: =SUM(P48:P52) -> 0
A54: Total Indirect Costs ($000s) | D54: =D45+D53 -> 0 | E54: =E45+E53 -> 0 | F54: 0 | G54: 0 | H54: 0 | I54: 0 | J54: 0 | K54: 0 | L54: 0 | M54: 0 | N54: 0 | O54: =O45+O53 -> 0 | P54: =P45+P53 -> 0
A56: Capital Costs in $000s
A57: Capital Expenditures (Up-front costs)
A58: Expense Line Item 1 | D58: 0 | E58: 0 | F58: 0 | G58: 0 | H58: 0 | I58: 0 | J58: 0 | K58: 0 | L58: 0 | M58: 0 | N58: 0 | O58: 0 | P58: 0
A59: Expense Line Item 2 | D59: 0 | E59: 0 | F59: 0 | G59: 0 | H59: 0 | I59: 0 | J59: 0 | K59: 0 | L59: 0 | M59: 0 | N59: 0 | O59: 0 | P59: 0
A60: Expense Line Item 3 | D60: 0 | E60: 0 | F60: 0 | G60: 0 | H60: 0 | I60: 0 | J60: 0 | K60: 0 | L60: 0 | M60: 0 | N60: 0 | O60: 0 | P60: 0
A61: Expense Line Item 4 | D61: 0 | E61: 0 | F61: 0 | G61: 0 | H61: 0 | I61: 0 | J61: 0 | K61: 0 | L61: 0 | M61: 0 | N61: 0 | O61: 0 | P61: 0
A62: Expense Line Item 5 | D62: 0 | E62: 0 | F62: 0 | G62: 0 | H62: 0 | I62: 0 | J62: 0 | K62: 0 | L62: 0 | M62: 0 | N62: 0 | O62: 0 | P62: 0
A63: Expense Line Item 6 | D63: 0 | E63: 0 | F63: 0 | G63: 0 | H63: 0 | I63: 0 | J63: 0 | K63: 0 | L63: 0 | M63: 0 | N63: 0 | O63: 0 | P63: 0
A64: Expense Line Item 7 | D64: 0 | E64: 0 | F64: 0 | G64: 0 | H64: 0 | I64: 0 | J64: 0 | K64: 0 | L64: 0 | M64: 0 | N64: 0 | O64: 0 | P64: 0
A65: Expense Line Item 8 | D65: 0 | E65: 0 | F65: 0 | G65: 0 | H65: 0 | I65: 0 | J65: 0 | K65: 0 | L65: 0 | M65: 0 | N65: 0 | O65: 0 | P65: 0
A66: Expense Line Item 9 | D66: 0 | E66: 0 | F66: 0 | G66: 0 | H66: 0 | I66: 0 | J66: 0 | K66: 0 | L66: 0 | M66: 0 | N66: 0 | O66: 0 | P66: 0
A67: Expense Line Item 10 | D67: 0 | E67: 0 | F67: 0 | G67: 0 | H67: 0 | I67: 0 | J67: 0 | K67: 0 | L67: 0 | M67: 0 | N67: 0 | O67: 0 | P67: 0
A68: Total Annual Capital Expenditures | D68: =SUM(D58:D67) -> 0 | E68: =SUM(E58:E67) -> 0 | F68: 0 | G68: 0 | H68: 0 | I68: 0 | J68: 0 | K68: 0 | L68: 0 | M68: =SUM(M58:M67) -> 0 | N68: =SUM(N58:N67) -> 0 | O68: =SUM(O58:O67) -> 0 | P68: =SUM(P58:P67) -> 0
A71: DFC Debt Assumptions and Schedule
I72: Anchor Date
A73: Total Loan Amount in $000s | D73: 0
A74: Base Interest Cost (%) | D74: 0.025
A75: Interest Risk Spread (%) | D75: 0.04
A76: All-in Annual Interest Rate (%) | D76: =D74+D75 -> 0.065
A77: Commitment Fee (%) | D77: 0
A78: Facility/Administrative Fee (%) | D78: 0
A79: Total Loan Term (months) | D79: 120
A80: Grace Period on Principal Repayment (months) | D80: 12
A81: # of payments per year | D81: 4
A82: Estimated Date of First Drawdown | D82: =Start!E13 -> 2022-06-15 | E82: =IF(D82>DATE(D1,12,31),"Error -- 1st disb must be in 1st year."," ") -> 
A83: Estimated Date of First Principal Repayment | D83: =EDATE(D82,D80) -> 2023-06-15
A84: Estimated Maturity Date | D84: =EDATE(D82,D79) -> 2032-06-15
A85: Number of Principal Payments | D85: =COUPNUM(D83,D84,D81,1)+1 -> 37
A86: Straight-line or Mortgage-Style? | D86: 1
I87: "
A88: # of principal Payments if quarterly | D88: =IF(OR(DATE(D1,12,31)<$D$83,DATE(D1,1,1)>$D$84),0,IF(AND(DATE(D1,1,1)>$D$83,DATE(D1,12,31)<$D$84),4,IF(AND($D$83>DATE(D1,1,1),$D$83<DATE(D1,12,31)),COUPNUM($D$83,DATE(D1,12,31),4,1),COUPNUM(DATE(D1,1,1),$D$84,4,1)))) -> 0 | E88: 3 | F88: 4 | G88: 4 | H88: 4 | I88: 4 | J88: 4 | K88: 4 | L88: 4 | M88: 4 | N88: 2 | O88: 0 | P88: 0
A89: # of principal Payments if semi-annual | D89: =IF(OR(DATE(D1,12,31)<$D$83,DATE(D1,1,1)>$D$84),0,IF(AND(DATE(D1,1,1)>$D$83,DATE(D1,12,31)<$D$84),2,IF(AND($D$83>DATE(D1,1,1),$D$83<DATE(D1,12,31)),COUPNUM($D$83,DATE(D1,12,31),2,1),COUPNUM(DATE(D1,1,1),$D$84,2,1)))) -> 0 | E89: 2 | F89: 2 | G89: 2 | H89: 2 | I89: 2 | J89: 2 | K89: 2 | L89: 2 | M89: 2 | N89: 1 | O89: 0 | P89: 0
D90: =IF($D$81=4,D88,D89) -> 0 | E90: 3 | F90: 4 | G90: 4 | H90: 4 | I90: 4 | J90: 4 | K90: 4 | L90: 4 | M90: 4 | N90: 2 | O90: 0 | P90: 0
A91: Outstanding Principal (Start of Year) | D91: 0 | E91: =D97 -> 0 | F91: 0 | G91: 0 | H91: =G97 -> 0 | I91: =H97 -> 0 | J91: 0 | K91: 0 | L91: 0 | M91: =L97 -> 0 | N91: =M97 -> 0 | O91: =N97 -> 0 | P91: =O97 -> 0
A92: DFC Debt Principal Disbursements in $000s | D92: 0 | E92: 0 | F92: 0 | G92: 0 | H92: 0 | I92: 0 | J92: 0 | K92: 0 | L92: 0 | M92: 0 | N92: 0 | O92: 0 | P92: 0
A93: DFC Debt Fees (Facility, Commitment) | D93: =$D$73*$D$78+YEARFRAC(D82,DATE(D1,12,31))*$D$77*($D$73-$D$92) -> 0 | E93: =($D$73-SUM($D$92:D92)-E92/2)*$D$77/2+($D$73-SUM($D$92:E92))*$D$77/2 -> 0 | F93: =($D$73-SUM($D$92:E92)-F92/2)*$D$77/2+($D$73-SUM($D$92:F92))*$D$77/2 -> 0 | G93: =($D$73-SUM($D$92:F92)-G92/2)*$D$77/2+($D$73-SUM($D$92:G92))*$D$77/2 -> 0 | H93: =($D$73-SUM($D$92:G92)-H92/2)*$D$77/2+($D$73-SUM($D$92:H92))*$D$77/2 -> 0 | I93: =($D$73-SUM($D$92:H92)-I92/2)*$D$77/2+($D$73-SUM($D$92:I92))*$D$77/2 -> 0 | J93: =($D$73-SUM($D$92:I92)-J92/2)*$D$77/2+($D$73-SUM($D$92:J92))*$D$77/2 -> 0 | K93: =($D$73-SUM($D$92:J92)-K92/2)*$D$77/2+($D$73-SUM($D$92:K92))*$D$77/2 -> 0 | L93: =($D$73-SUM($D$92:K92)-L92/2)*$D$77/2+($D$73-SUM($D$92:L92))*$D$77/2 -> 0 | M93: =($D$73-SUM($D$92:L92)-M92/2)*$D$77/2+($D$73-SUM($D$92:M92))*$D$77/2 -> 0 | N93: =($D$73-SUM($D$92:M92)-N92/2)*$D$77/2+($D$73-SUM($D$92:N92))*$D$77/2 -> 0 | O93: =($D$73-SUM($D$92:N92)-O92/2)*$D$77/2+($D$73-SUM($D$92:O92))*$D$77/2 -> 0 | P93: =($D$73-SUM($D$92:O92)-P92/2)*$D$77/2+($D$73-SUM($D$92:P92))*$D$77/2 -> 0
A94: DFC Debt Interest | D94: =YEARFRAC(D82,DATE(D1,12,31))*D92*$D$76 -> 0 | E94: =IF($D$86=1,((E91+E97)/2)*$D$76,LOOKUP(E1,'Mortgage-StyleDetail'!$A$13:$A$28,'Mortgage-StyleDetail'!$C$13:$C$28)) -> 0 | F94: =IF($D$86=1,((F91+F97)/2)*$D$76,LOOKUP(F1,'Mortgage-StyleDetail'!$A$13:$A$28,'Mortgage-StyleDetail'!$C$13:$C$28)) -> 0 | G94: =IF($D$86=1,((G91+G97)/2)*$D$76,LOOKUP(G1,'Mortgage-StyleDetail'!$A$13:$A$28,'Mortgage-StyleDetail'!$C$13:$C$28)) -> 0 | H94: =IF($D$86=1,((H91+H97)/2)*$D$76,LOOKUP(H1,'Mortgage-StyleDetail'!$A$13:$A$28,'Mortgage-StyleDetail'!$C$13:$C$28)) -> 0 | I94: =IF($D$86=1,((I91+I97)/2)*$D$76,LOOKUP(I1,'Mortgage-StyleDetail'!$A$13:$A$28,'Mortgage-StyleDetail'!$C$13:$C$28)) -> 0 | J94: =IF($D$86=1,((J91+J97)/2)*$D$76,LOOKUP(J1,'Mortgage-StyleDetail'!$A$13:$A$28,'Mortgage-StyleDetail'!$C$13:$C$28)) -> 0 | K94: =IF($D$86=1,((K91+K97)/2)*$D$76,LOOKUP(K1,'Mortgage-StyleDetail'!$A$13:$A$28,'Mortgage-StyleDetail'!$C$13:$C$28)) -> 0 | L94: =IF($D$86=1,((L91+L97)/2)*$D$76,LOOKUP(L1,'Mortgage-StyleDetail'!$A$13:$A$28,'Mortgage-StyleDetail'!$C$13:$C$28)) -> 0 | M94: =IF($D$86=1,((M91+M97)/2)*$D$76,LOOKUP(M1,'Mortgage-StyleDetail'!$A$13:$A$28,'Mortgage-StyleDetail'!$C$13:$C$28)) -> 0 | N94: =IF($D$86=1,((N91+N97)/2)*$D$76,LOOKUP(N1,'Mortgage-StyleDetail'!$A$13:$A$28,'Mortgage-StyleDetail'!$C$13:$C$28)) -> 0 | O94: =IF($D$86=1,((O91+O97)/2)*$D$76,LOOKUP(O1,'Mortgage-StyleDetail'!$A$13:$A$28,'Mortgage-StyleDetail'!$C$13:$C$28)) -> 0 | P94: =IF($D$86=1,((P91+P97)/2)*$D$76,LOOKUP(P1,'Mortgage-StyleDetail'!$A$13:$A$28,'Mortgage-StyleDetail'!$C$13:$C$28)) -> 0
A95: DFC Debt Principal Repayments | D95: =IF($D$86=1,($D$73/$D$85)*D90,LOOKUP(D1,'Mortgage-StyleDetail'!$A$13:$A$28,'Mortgage-StyleDetail'!$B$13:$B$28)) -> 0 | E95: =IF($D$86=1,($D$73/$D$85)*E90,LOOKUP(E1,'Mortgage-StyleDetail'!$A$13:$A$28,'Mortgage-StyleDetail'!$B$13:$B$28)) -> 0 | F95: =IF($D$86=1,($D$73/$D$85)*F90,LOOKUP(F1,'Mortgage-StyleDetail'!$A$13:$A$28,'Mortgage-StyleDetail'!$B$13:$B$28)) -> 0 | G95: =IF($D$86=1,($D$73/$D$85)*G90,LOOKUP(G1,'Mortgage-StyleDetail'!$A$13:$A$28,'Mortgage-StyleDetail'!$B$13:$B$28)) -> 0 | H95: =IF($D$86=1,($D$73/$D$85)*H90,LOOKUP(H1,'Mortgage-StyleDetail'!$A$13:$A$28,'Mortgage-StyleDetail'!$B$13:$B$28)) -> 0 | I95: =IF($D$86=1,($D$73/$D$85)*I90,LOOKUP(I1,'Mortgage-StyleDetail'!$A$13:$A$28,'Mortgage-StyleDetail'!$B$13:$B$28)) -> 0 | J95: =IF($D$86=1,($D$73/$D$85)*J90,LOOKUP(J1,'Mortgage-StyleDetail'!$A$13:$A$28,'Mortgage-StyleDetail'!$B$13:$B$28)) -> 0 | K95: =IF($D$86=1,($D$73/$D$85)*K90,LOOKUP(K1,'Mortgage-StyleDetail'!$A$13:$A$28,'Mortgage-StyleDetail'!$B$13:$B$28)) -> 0 | L95: =IF($D$86=1,($D$73/$D$85)*L90,LOOKUP(L1,'Mortgage-StyleDetail'!$A$13:$A$28,'Mortgage-StyleDetail'!$B$13:$B$28)) -> 0 | M95: =IF($D$86=1,($D$73/$D$85)*M90,LOOKUP(M1,'Mortgage-StyleDetail'!$A$13:$A$28,'Mortgage-StyleDetail'!$B$13:$B$28)) -> 0 | N95: =IF($D$86=1,($D$73/$D$85)*N90,LOOKUP(N1,'Mortgage-StyleDetail'!$A$13:$A$28,'Mortgage-StyleDetail'!$B$13:$B$28)) -> 0 | O95: =IF($D$86=1,($D$73/$D$85)*O90,LOOKUP(O1,'Mortgage-StyleDetail'!$A$13:$A$28,'Mortgage-StyleDetail'!$B$13:$B$28)) -> 0 | P95: =IF($D$86=1,($D$73/$D$85)*P90,LOOKUP(P1,'Mortgage-StyleDetail'!$A$13:$A$28,'Mortgage-StyleDetail'!$B$13:$B$28)) -> 0
A96: Total DFC Debt Service | D96: =SUM(D93:D95) -> 0 | E96: =SUM(E93:E95) -> 0 | F96: 0 | G96: 0 | H96: 0 | I96: 0 | J96: 0 | K96: 0 | L96: 0 | M96: 0 | N96: 0 | O96: 0 | P96: 0
A97: Outstanding Principal (End of Year) | D97: =D91+D92-D95 -> 0 | E97: =E91+E92-E95 -> 0 | F97: 0 | G97: 0 | H97: 0 | I97: 0 | J97: 0 | K97: 0 | L97: 0 | M97: =M91+M92-M95 -> 0 | N97: =N91+N92-N95 -> 0 | O97: =O91+O92-O95 -> 0 | P97: =P91+P92-P95 -> 0
A99: Other Senior Debt -- Assumptions and Schedule
A100: Name of Lender | B100: Name
A101: Annual Interest Rate (%) | D101: 0
A103: Outstanding Principal (Start of Year) | D103: =IF(ISBLANK(HistoricalData!$D$10)=TRUE,HistoricalData!D37,HistoricalData!D100)+IF(ISBLANK(HistoricalData!$D$10)=TRUE,HistoricalData!D34,HistoricalData!D97) -> 0 | E103: =D109 -> 0 | F103: =E109 -> 0 | G103: 0 | H103: 0 | I103: 0 | J103: 0 | K103: 0 | L103: 0 | M103: 0 | N103: 0 | O103: 0 | P103: 0
A104: Principal Disbursements (in $000s) | D104: 0 | E104: 0 | F104: 0 | G104: 0 | H104: 0 | I104: 0 | J104: 0 | K104: 0 | L104: 0 | M104: 0 | N104: 0 | O104: 0 | P104: 0
A105: Fees (in $000s) | D105: 0 | E105: 0 | F105: 0 | G105: 0 | H105: 0 | I105: 0 | J105: 0 | K105: 0 | L105: 0 | M105: 0 | N105: 0 | O105: 0 | P105: 0
A106: Interest | D106: =((D103+D109)/2)*$D$101 -> 0 | E106: =((E103+E109)/2)*$D$101 -> 0 | F106: 0 | G106: 0 | H106: 0 | I106: 0 | J106: 0 | K106: 0 | L106: 0 | M106: 0 | N106: 0 | O106: 0 | P106: 0
A107: Principal Repayments (in $000s) | D107: 0 | E107: 0 | F107: 0 | G107: 0 | H107: 0 | I107: 0 | J107: 0 | K107: 0 | L107: 0 | M107: 0 | N107: 0 | O107: 0 | P107: 0
A108: Total Other Senior Debt Service | D108: =SUM(D105:D107) -> 0 | E108: =SUM(E105:E107) -> 0 | F108: 0 | G108: 0 | H108: 0 | I108: 0 | J108: 0 | K108: 0 | L108: 0 | M108: 0 | N108: 0 | O108: 0 | P108: 0
A109: Outstanding Principal (End of Year) | D109: =D103+D104-D107 -> 0 | E109: =E103+E104-E107 -> 0 | F109: 0 | G109: 0 | H109: 0 | I109: 0 | J109: 0 | K109: 0 | L109: 0 | M109: 0 | N109: 0 | O109: 0 | P109: 0
A111: Short Term Debt -- Assumptions and Schedule
A112: Name of Lender | B112: Name
A113: Annual Interest Rate (%) | D113: 0
A115: Outstanding Principal (Start of Year) | D115: =IF(ISBLANK(HistoricalData!$D$10)=TRUE,HistoricalData!D33,HistoricalData!D96) -> 0 | E115: =D121 -> 0 | F115: =E121 -> 0 | G115: =F121 -> 0 | H115: =G121 -> 0 | I115: =H121 -> 0 | J115: =I121 -> 0 | K115: =J121 -> 0 | L115: =K121 -> 0 | M115: =L121 -> 0 | N115: =M121 -> 0 | O115: =N121 -> 0 | P115: =O121 -> 0
A116: Principal Disbursements (in $000s) | D116: 0 | E116: 0 | F116: 0 | G116: 0 | H116: 0 | I116: 0 | J116: 0 | K116: 0 | L116: 0 | M116: 0 | N116: 0 | O116: 0 | P116: 0
A117: Fees (in $000s) | D117: 0 | E117: 0 | F117: 0 | G117: 0 | H117: 0 | I117: 0 | J117: 0 | K117: 0 | L117: 0 | M117: 0 | N117: 0 | O117: 0 | P117: 0
A118: Interest | D118: =((D115+D121)/2)*$D$113 -> 0 | E118: =((E115+E121)/2)*$D$113 -> 0 | F118: 0 | G118: 0 | H118: 0 | I118: 0 | J118: 0 | K118: 0 | L118: 0 | M118: 0 | N118: 0 | O118: 0 | P118: 0
A119: Principal Repayments (in $000) | D119: 0 | E119: 0 | F119: 0 | G119: 0 | H119: 0 | I119: 0 | J119: 0 | K119: 0 | L119: 0 | M119: 0 | N119: 0 | O119: 0 | P119: 0
A120: Total Short Term Debt Service | D120: =SUM(D117:D119) -> 0 | E120: =SUM(E117:E119) -> 0 | F120: 0 | G120: 0 | H120: 0 | I120: 0 | J120: 0 | K120: 0 | L120: 0 | M120: 0 | N120: 0 | O120: 0 | P120: 0
A121: Outstanding Principal (End of Year) | D121: =D115+D116-D119 -> 0 | E121: =E115+E116-E119 -> 0 | F121: 0 | G121: 0 | H121: 0 | I121: 0 | J121: 0 | K121: 0 | L121: 0 | M121: 0 | N121: 0 | O121: 0 | P121: 0
A123: Subordinated Debt -- Assumptions and Schedule
A124: Name of Lender | B124: Name
A127: Outstanding Principal (Start of Year) | D127: =IF(ISBLANK(HistoricalData!$D$10)=TRUE,HistoricalData!D38,HistoricalData!D101) -> 0 | E127: =D132 -> 0 | F127: =E132 -> 0 | G127: =F132 -> 0 | H127: =G132 -> 0 | I127: =H132 -> 0 | J127: =I132 -> 0 | K127: =J132 -> 0 | L127: =K132 -> 0 | M127: =L132 -> 0 | N127: =M132 -> 0 | O127: =N132 -> 0 | P127: =O132 -> 0
A128: Principal Disbursements ($000s) | D128: 0 | E128: 0 | F128: 0 | G128: 0 | H128: 0 | I128: 0 | J128: 0 | K128: 0 | L128: 0 | M128: 0 | N128: 0 | O128: 0 | P128: 0
A129: Fees or Interest (if allowed) ($000s) | D129: 0 | E129: 0 | F129: 0 | G129: 0 | H129: 0 | I129: 0 | J129: 0 | K129: 0 | L129: 0 | M129: 0 | N129: 0 | O129: 0 | P129: 0
A130: Principal Repayments ($000s) | D130: 0 | E130: 0 | F130: 0 | G130: 0 | H130: 0 | I130: 0 | J130: 0 | K130: 0 | L130: 0 | M130: 0 | N130: 0 | O130: 0 | P130: 0
A131: Total Subordinated Debt Service | D131: =SUM(D129:D130) -> 0 | E131: 0 | F131: 0 | G131: 0 | H131: 0 | I131: 0 | J131: 0 | K131: 0 | L131: 0 | M131: 0 | N131: 0 | O131: 0 | P131: 0
A132: Outstanding Principal (End of Year) | D132: =D127+D128-D130 -> 0 | E132: 0 | F132: 0 | G132: 0 | H132: 0 | I132: 0 | J132: 0 | K132: 0 | L132: 0 | M132: 0 | N132: 0 | O132: 0 | P132: 0
A134: Equity and Reconciliation of Retained Earnings
A136: Equity (Start of Year) in $000s | D136: =IF(ISBLANK(HistoricalData!$D$10)=TRUE,SUM(HistoricalData!D42:D43),SUM(HistoricalData!D105:D106)) -> 0 | E136: =D138 -> 0 | F136: 0 | G136: 0 | H136: =G138 -> 0 | I136: =H138 -> 0 | J136: 0 | K136: 0 | L136: 0 | M136: =L138 -> 0 | N136: =M138 -> 0 | O136: =N138 -> 0 | P136: =O138 -> 0
A137: New Equity Contributions in $000s | D137: 0
A138: Equity (End of Year) | D138: =D136+D137 -> 0 | E138: =E136+E137 -> 0 | F138: 0 | G138: 0 | H138: 0 | I138: 0 | J138: 0 | K138: 0 | L138: 0 | M138: =M136+M137 -> 0 | N138: =N136+N137 -> 0 | O138: =O136+O137 -> 0 | P138: =P136+P137 -> 0
A140: Retained Earnings (Start of Year) | D140: =IF(ISBLANK(HistoricalData!$D$10)=TRUE,HistoricalData!D44,HistoricalData!D107) -> 0 | E140: =D144 -> 0 | F140: 0 | G140: 0 | H140: =G144 -> 0 | I140: =H144 -> 0 | J140: 0 | K140: 0 | L140: 0 | M140: =L144 -> 0 | N140: =M144 -> 0 | O140: =N144 -> 0 | P140: =O144 -> 0
A141: Net Income | D141: =Income!F39 -> 0 | E141: =Income!H39 -> 0 | F141: =Income!J39 -> 0 | G141: =Income!L39 -> 0 | H141: =Income!N39 -> 0 | I141: =Income!P39 -> 0 | J141: =Income!R39 -> 0 | K141: =Income!T39 -> 0 | L141: =Income!V39 -> 0 | M141: =Income!X39 -> 0 | N141: =Income!Z39 -> 0 | O141: =Income!AB39 -> 0 | P141: =Income!AD39 -> 0
A142: Dividend Payout Ratio (%) | D142: 0 | E142: 0 | F142: 0 | G142: 0 | H142: 0 | I142: 0 | J142: 0 | K142: 0 | L142: 0 | M142: 0 | N142: 0 | O142: 0 | P142: 0
A143: Dividends Paid | D143: =IF(D141>0,D141*D142,0) -> 0 | E143: 0 | F143: 0 | G143: 0 | H143: 0 | I143: 0 | J143: 0 | K143: 0 | L143: 0 | M143: 0 | N143: 0 | O143: =IF(O141>0,O141*O142,0) -> 0 | P143: =IF(P141>0,P141*P142,0) -> 0
A144: Retained Earnings (End of Year) | D144: =D140+D141-D143 -> 0 | E144: =E140+E141-E143 -> 0 | F144: 0 | G144: 0 | H144: 0 | I144: 0 | J144: 0 | K144: 0 | L144: 0 | M144: =M140+M141-M143 -> 0 | N144: =N140+N141-N143 -> 0 | O144: =O140+O141-O143 -> 0 | P144: =P140+P141-P143 -> 0
A146: Income Tax Assumptions
A148: Tax Rate | D148: 0 | E148: 0 | F148: 0 | G148: 0 | H148: 0 | I148: 0 | J148: 0 | K148: 0 | L148: 0 | M148: 0 | N148: 0 | O148: 0 | P148: 0
A151: Depreciation/Amortization Assumptions
A152: Year Depreciation/Amortization Begins | D152: 2013
B153: Years
A154: Pre-Existing Fixed Assets | B154: 0 | D154: =IF(D1-$D$1<$B$154,IF(ISBLANK(HistoricalData!$D$10)=TRUE,SUM(HistoricalData!$D$19:$D$27)/$B$154,SUM(HistoricalData!$D$82:$D$90)/$B$154),0) -> 0 | E154: =IF(E1-$D$1<$B$154,IF(ISBLANK(HistoricalData!$D$10)=TRUE,SUM(HistoricalData!$D$19:$D$27)/$B$154,SUM(HistoricalData!$D$82:$D$90)/$B$154),0) -> 0 | F154: =IF(F1-$D$1<$B$154,IF(ISBLANK(HistoricalData!$D$10)=TRUE,SUM(HistoricalData!$D$19:$D$27)/$B$154,SUM(HistoricalData!$D$82:$D$90)/$B$154),0) -> 0 | G154: =IF(G1-$D$1<$B$154,IF(ISBLANK(HistoricalData!$D$10)=TRUE,SUM(HistoricalData!$D$19:$D$27)/$B$154,SUM(HistoricalData!$D$82:$D$90)/$B$154),0) -> 0 | H154: =IF(H1-$D$1<$B$154,IF(ISBLANK(HistoricalData!$D$10)=TRUE,SUM(HistoricalData!$D$19:$D$27)/$B$154,SUM(HistoricalData!$D$82:$D$90)/$B$154),0) -> 0 | I154: =IF(I1-$D$1<$B$154,IF(ISBLANK(HistoricalData!$D$10)=TRUE,SUM(HistoricalData!$D$19:$D$27)/$B$154,SUM(HistoricalData!$D$82:$D$90)/$B$154),0) -> 0 | J154: =IF(J1-$D$1<$B$154,IF(ISBLANK(HistoricalData!$D$10)=TRUE,SUM(HistoricalData!$D$19:$D$27)/$B$154,SUM(HistoricalData!$D$82:$D$90)/$B$154),0) -> 0 | K154: =IF(K1-$D$1<$B$154,IF(ISBLANK(HistoricalData!$D$10)=TRUE,SUM(HistoricalData!$D$19:$D$27)/$B$154,SUM(HistoricalData!$D$82:$D$90)/$B$154),0) -> 0 | L154: =IF(L1-$D$1<$B$154,IF(ISBLANK(HistoricalData!$D$10)=TRUE,SUM(HistoricalData!$D$19:$D$27)/$B$154,SUM(HistoricalData!$D$82:$D$90)/$B$154),0) -> 0 | M154: =IF(M1-$D$1<$B$154,IF(ISBLANK(HistoricalData!$D$10)=TRUE,SUM(HistoricalData!$D$19:$D$27)/$B$154,SUM(HistoricalData!$D$82:$D$90)/$B$154),0) -> 0 | N154: =IF(N1-$D$1<$B$154,IF(ISBLANK(HistoricalData!$D$10)=TRUE,SUM(HistoricalData!$D$19:$D$27)/$B$154,SUM(HistoricalData!$D$82:$D$90)/$B$154),0) -> 0 | O154: =IF(O1-$D$1<$B$154,IF(ISBLANK(HistoricalData!$D$10)=TRUE,SUM(HistoricalData!$D$19:$D$27)/$B$154,SUM(HistoricalData!$D$82:$D$90)/$B$154),0) -> 0 | P154: =IF(P1-$D$1<$B$154,IF(ISBLANK(HistoricalData!$D$10)=TRUE,SUM(HistoricalData!$D$19:$D$27)/$B$154,SUM(HistoricalData!$D$82:$D$90)/$B$154),0) -> 0
A155: =A58 -> Expense Line Item 1 | B155: 0 | D155: =IF(AND(D1>=$D$152,(D1-$D$152)<$B$155),SUM(C$58:$D58)/$B$155,0) -> 0 | E155: =IF(AND(E1>=$D$152,(E1-$D$152)<$B$155),SUM($D$58:D58)/$B$155,0) -> 0 | F155: =IF(AND(F1>=$D$152,(F1-$D$152)<$B$155),SUM($D$58:E58)/$B$155,0) -> 0 | G155: =IF(AND(G1>=$D$152,(G1-$D$152)<$B$155),SUM($D$58:F58)/$B$155,0) -> 0 | H155: =IF(AND(H1>=$D$152,(H1-$D$152)<$B$155),SUM($D$58:G58)/$B$155,0) -> 0 | I155: =IF(AND(I1>=$D$152,(I1-$D$152)<$B$155),SUM($D$58:H58)/$B$155,0) -> 0 | J155: =IF(AND(J1>=$D$152,(J1-$D$152)<$B$155),SUM($D$58:I58)/$B$155,0) -> 0 | K155: =IF(AND(K1>=$D$152,(K1-$D$152)<$B$155),SUM($D$58:J58)/$B$155,0) -> 0 | L155: =IF(AND(L1>=$D$152,(L1-$D$152)<$B$155),SUM($D$58:K58)/$B$155,0) -> 0 | M155: =IF(AND(M1>=$D$152,(M1-$D$152)<$B$155),SUM($D$58:L58)/$B$155,0) -> 0 | N155: =IF(AND(N1>=$D$152,(N1-$D$152)<$B$155),SUM($D$58:M58)/$B$155,0) -> 0 | O155: =IF(AND(O1>=$D$152,(O1-$D$152)<$B$155),SUM($D$58:N58)/$B$155,0) -> 0 | P155: =IF(AND(P1>=$D$152,(P1-$D$152)<$B$155),SUM($D$58:O58)/$B$155,0) -> 0
A156: Expense Line Item 2 | B156: 0 | D156: =IF(AND(D1>=$D$152,(D1-$D$152)<$B$156),SUM(C$59:$D59)/$B$156,0) -> 0 | E156: =IF(AND(E1>=$D$152,(E1-$D$152)<$B$156),SUM($D$59:D59)/$B$156,0) -> 0 | F156: =IF(AND(F1>=$D$152,(F1-$D$152)<$B$156),SUM($D$59:E59)/$B$156,0) -> 0 | G156: =IF(AND(G1>=$D$152,(G1-$D$152)<$B$156),SUM($D$59:F59)/$B$156,0) -> 0 | H156: =IF(AND(H1>=$D$152,(H1-$D$152)<$B$156),SUM($D$59:G59)/$B$156,0) -> 0 | I156: =IF(AND(I1>=$D$152,(I1-$D$152)<$B$156),SUM($D$59:H59)/$B$156,0) -> 0 | J156: =IF(AND(J1>=$D$152,(J1-$D$152)<$B$156),SUM($D$59:I59)/$B$156,0) -> 0 | K156: =IF(AND(K1>=$D$152,(K1-$D$152)<$B$156),SUM($D$59:J59)/$B$156,0) -> 0 | L156: =IF(AND(L1>=$D$152,(L1-$D$152)<$B$156),SUM($D$59:K59)/$B$156,0) -> 0 | M156: =IF(AND(M1>=$D$152,(M1-$D$152)<$B$156),SUM($D$59:L59)/$B$156,0) -> 0 | N156: =IF(AND(N1>=$D$152,(N1-$D$152)<$B$156),SUM($D$59:M59)/$B$156,0) -> 0 | O156: =IF(AND(O1>=$D$152,(O1-$D$152)<$B$156),SUM($D$59:N59)/$B$156,0) -> 0 | P156: =IF(AND(P1>=$D$152,(P1-$D$152)<$B$156),SUM($D$59:O59)/$B$156,0) -> 0
A157: Expense Line Item 3 | B157: 0 | D157: =IF(AND(D1>=$D$152,(D1-$D$152)<$B$157),SUM(C$60:$D60)/$B$157,0) -> 0 | E157: =IF(AND(E1>=$D$152,(E1-$D$152)<$B$157),SUM($D$60:D60)/$B$157,0) -> 0 | F157: =IF(AND(F1>=$D$152,(F1-$D$152)<$B$157),SUM($D$60:E60)/$B$157,0) -> 0 | G157: =IF(AND(G1>=$D$152,(G1-$D$152)<$B$157),SUM($D$60:F60)/$B$157,0) -> 0 | H157: =IF(AND(H1>=$D$152,(H1-$D$152)<$B$157),SUM($D$60:G60)/$B$157,0) -> 0 | I157: =IF(AND(I1>=$D$152,(I1-$D$152)<$B$157),SUM($D$60:H60)/$B$157,0) -> 0 | J157: =IF(AND(J1>=$D$152,(J1-$D$152)<$B$157),SUM($D$60:I60)/$B$157,0) -> 0 | K157: =IF(AND(K1>=$D$152,(K1-$D$152)<$B$157),SUM($D$60:J60)/$B$157,0) -> 0 | L157: =IF(AND(L1>=$D$152,(L1-$D$152)<$B$157),SUM($D$60:K60)/$B$157,0) -> 0 | M157: =IF(AND(M1>=$D$152,(M1-$D$152)<$B$157),SUM($D$60:L60)/$B$157,0) -> 0 | N157: =IF(AND(N1>=$D$152,(N1-$D$152)<$B$157),SUM($D$60:M60)/$B$157,0) -> 0 | O157: =IF(AND(O1>=$D$152,(O1-$D$152)<$B$157),SUM($D$60:N60)/$B$157,0) -> 0 | P157: =IF(AND(P1>=$D$152,(P1-$D$152)<$B$157),SUM($D$60:O60)/$B$157,0) -> 0
A158: Expense Line Item 4 | B158: 0 | D158: =IF(AND(D1>=$D$152,(D1-$D$152)<$B$158),SUM(C$61:$D61)/$B$158,0) -> 0 | E158: =IF(AND(E1>=$D$152,(E1-$D$152)<$B$158),SUM($D$61:D61)/$B$158,0) -> 0 | F158: =IF(AND(F1>=$D$152,(F1-$D$152)<$B$158),SUM($D$61:E61)/$B$158,0) -> 0 | G158: =IF(AND(G1>=$D$152,(G1-$D$152)<$B$158),SUM($D$61:F61)/$B$158,0) -> 0 | H158: =IF(AND(H1>=$D$152,(H1-$D$152)<$B$158),SUM($D$61:G61)/$B$158,0) -> 0 | I158: =IF(AND(I1>=$D$152,(I1-$D$152)<$B$158),SUM($D$61:H61)/$B$158,0) -> 0 | J158: =IF(AND(J1>=$D$152,(J1-$D$152)<$B$158),SUM($D$61:I61)/$B$158,0) -> 0 | K158: =IF(AND(K1>=$D$152,(K1-$D$152)<$B$158),SUM($D$61:J61)/$B$158,0) -> 0 | L158: =IF(AND(L1>=$D$152,(L1-$D$152)<$B$158),SUM($D$61:K61)/$B$158,0) -> 0 | M158: =IF(AND(M1>=$D$152,(M1-$D$152)<$B$158),SUM($D$61:L61)/$B$158,0) -> 0 | N158: =IF(AND(N1>=$D$152,(N1-$D$152)<$B$158),SUM($D$61:M61)/$B$158,0) -> 0 | O158: =IF(AND(O1>=$D$152,(O1-$D$152)<$B$158),SUM($D$61:N61)/$B$158,0) -> 0 | P158: =IF(AND(P1>=$D$152,(P1-$D$152)<$B$158),SUM($D$61:O61)/$B$158,0) -> 0
A159: Expense Line Item 5 | B159: 0 | D159: =IF(AND(D1>=$D$152,(D1-$D$152)<$B$159),SUM(C$62:$D62)/$B$159,0) -> 0 | E159: =IF(AND(E1>=$D$152,(E1-$D$152)<$B$159),SUM($D$62:D62)/$B$159,0) -> 0 | F159: =IF(AND(F1>=$D$152,(F1-$D$152)<$B$159),SUM($D$62:E62)/$B$159,0) -> 0 | G159: =IF(AND(G1>=$D$152,(G1-$D$152)<$B$159),SUM($D$62:F62)/$B$159,0) -> 0 | H159: =IF(AND(H1>=$D$152,(H1-$D$152)<$B$159),SUM($D$62:G62)/$B$159,0) -> 0 | I159: =IF(AND(I1>=$D$152,(I1-$D$152)<$B$159),SUM($D$62:H62)/$B$159,0) -> 0 | J159: =IF(AND(J1>=$D$152,(J1-$D$152)<$B$159),SUM($D$62:I62)/$B$159,0) -> 0 | K159: =IF(AND(K1>=$D$152,(K1-$D$152)<$B$159),SUM($D$62:J62)/$B$159,0) -> 0 | L159: =IF(AND(L1>=$D$152,(L1-$D$152)<$B$159),SUM($D$62:K62)/$B$159,0) -> 0 | M159: =IF(AND(M1>=$D$152,(M1-$D$152)<$B$159),SUM($D$62:L62)/$B$159,0) -> 0 | N159: =IF(AND(N1>=$D$152,(N1-$D$152)<$B$159),SUM($D$62:M62)/$B$159,0) -> 0 | O159: =IF(AND(O1>=$D$152,(O1-$D$152)<$B$159),SUM($D$62:N62)/$B$159,0) -> 0 | P159: =IF(AND(P1>=$D$152,(P1-$D$152)<$B$159),SUM($D$62:O62)/$B$159,0) -> 0
A160: Expense Line Item 6 | B160: 0 | D160: =IF(AND(D1>=$D$152,(D1-$D$152)<$B$160),SUM(C$63:$D63)/$B$160,0) -> 0 | E160: =IF(AND(E1>=$D$152,(E1-$D$152)<$B$160),SUM($D$63:D63)/$B$160,0) -> 0 | F160: =IF(AND(F1>=$D$152,(F1-$D$152)<$B$160),SUM($D$63:E63)/$B$160,0) -> 0 | G160: =IF(AND(G1>=$D$152,(G1-$D$152)<$B$160),SUM($D$63:F63)/$B$160,0) -> 0 | H160: =IF(AND(H1>=$D$152,(H1-$D$152)<$B$160),SUM($D$63:G63)/$B$160,0) -> 0 | I160: =IF(AND(I1>=$D$152,(I1-$D$152)<$B$160),SUM($D$63:H63)/$B$160,0) -> 0 | J160: =IF(AND(J1>=$D$152,(J1-$D$152)<$B$160),SUM($D$63:I63)/$B$160,0) -> 0 | K160: =IF(AND(K1>=$D$152,(K1-$D$152)<$B$160),SUM($D$63:J63)/$B$160,0) -> 0 | L160: =IF(AND(L1>=$D$152,(L1-$D$152)<$B$160),SUM($D$63:K63)/$B$160,0) -> 0 | M160: =IF(AND(M1>=$D$152,(M1-$D$152)<$B$160),SUM($D$63:L63)/$B$160,0) -> 0 | N160: =IF(AND(N1>=$D$152,(N1-$D$152)<$B$160),SUM($D$63:M63)/$B$160,0) -> 0 | O160: =IF(AND(O1>=$D$152,(O1-$D$152)<$B$160),SUM($D$63:N63)/$B$160,0) -> 0 | P160: =IF(AND(P1>=$D$152,(P1-$D$152)<$B$160),SUM($D$63:O63)/$B$160,0) -> 0
A161: Expense Line Item 7 | B161: 0 | D161: =IF(AND(D1>=$D$152,(D1-$D$152)<$B$161),SUM(C$64:$D64)/$B$161,0) -> 0 | E161: =IF(AND(E1>=$D$152,(E1-$D$152)<$B$161),SUM($D$64:D64)/$B$161,0) -> 0 | F161: =IF(AND(F1>=$D$152,(F1-$D$152)<$B$161),SUM($D$64:E64)/$B$161,0) -> 0 | G161: =IF(AND(G1>=$D$152,(G1-$D$152)<$B$161),SUM($D$64:F64)/$B$161,0) -> 0 | H161: =IF(AND(H1>=$D$152,(H1-$D$152)<$B$161),SUM($D$64:G64)/$B$161,0) -> 0 | I161: =IF(AND(I1>=$D$152,(I1-$D$152)<$B$161),SUM($D$64:H64)/$B$161,0) -> 0 | J161: =IF(AND(J1>=$D$152,(J1-$D$152)<$B$161),SUM($D$64:I64)/$B$161,0) -> 0 | K161: =IF(AND(K1>=$D$152,(K1-$D$152)<$B$161),SUM($D$64:J64)/$B$161,0) -> 0 | L161: =IF(AND(L1>=$D$152,(L1-$D$152)<$B$161),SUM($D$64:K64)/$B$161,0) -> 0 | M161: =IF(AND(M1>=$D$152,(M1-$D$152)<$B$161),SUM($D$64:L64)/$B$161,0) -> 0 | N161: =IF(AND(N1>=$D$152,(N1-$D$152)<$B$161),SUM($D$64:M64)/$B$161,0) -> 0 | O161: =IF(AND(O1>=$D$152,(O1-$D$152)<$B$161),SUM($D$64:N64)/$B$161,0) -> 0 | P161: =IF(AND(P1>=$D$152,(P1-$D$152)<$B$161),SUM($D$64:O64)/$B$161,0) -> 0
A162: Expense Line Item 8 | B162: 0 | D162: =IF(AND(D1>=$D$152,(D1-$D$152)<$B$162),SUM(C$65:$D65)/$B$162,0) -> 0 | E162: =IF(AND(E1>=$D$152,(E1-$D$152)<$B$162),SUM($D$65:D65)/$B$162,0) -> 0 | F162: =IF(AND(F1>=$D$152,(F1-$D$152)<$B$162),SUM($D$65:E65)/$B$162,0) -> 0 | G162: =IF(AND(G1>=$D$152,(G1-$D$152)<$B$162),SUM($D$65:F65)/$B$162,0) -> 0 | H162: =IF(AND(H1>=$D$152,(H1-$D$152)<$B$162),SUM($D$65:G65)/$B$162,0) -> 0 | I162: =IF(AND(I1>=$D$152,(I1-$D$152)<$B$162),SUM($D$65:H65)/$B$162,0) -> 0 | J162: =IF(AND(J1>=$D$152,(J1-$D$152)<$B$162),SUM($D$65:I65)/$B$162,0) -> 0 | K162: =IF(AND(K1>=$D$152,(K1-$D$152)<$B$162),SUM($D$65:J65)/$B$162,0) -> 0 | L162: =IF(AND(L1>=$D$152,(L1-$D$152)<$B$162),SUM($D$65:K65)/$B$162,0) -> 0 | M162: =IF(AND(M1>=$D$152,(M1-$D$152)<$B$162),SUM($D$65:L65)/$B$162,0) -> 0 | N162: =IF(AND(N1>=$D$152,(N1-$D$152)<$B$162),SUM($D$65:M65)/$B$162,0) -> 0 | O162: =IF(AND(O1>=$D$152,(O1-$D$152)<$B$162),SUM($D$65:N65)/$B$162,0) -> 0 | P162: =IF(AND(P1>=$D$152,(P1-$D$152)<$B$162),SUM($D$65:O65)/$B$162,0) -> 0
A163: Expense Line Item 9 | B163: 0 | D163: =IF(AND(D1>=$D$152,(D1-$D$152)<$B$163),SUM(C$66:$D66)/$B$163,0) -> 0 | E163: =IF(AND(E1>=$D$152,(E1-$D$152)<$B$163),SUM($D$66:D66)/$B$163,0) -> 0 | F163: =IF(AND(F1>=$D$152,(F1-$D$152)<$B$163),SUM($D$66:E66)/$B$163,0) -> 0 | G163: =IF(AND(G1>=$D$152,(G1-$D$152)<$B$163),SUM($D$66:F66)/$B$163,0) -> 0 | H163: =IF(AND(H1>=$D$152,(H1-$D$152)<$B$163),SUM($D$66:G66)/$B$163,0) -> 0 | I163: =IF(AND(I1>=$D$152,(I1-$D$152)<$B$163),SUM($D$66:H66)/$B$163,0) -> 0 | J163: =IF(AND(J1>=$D$152,(J1-$D$152)<$B$163),SUM($D$66:I66)/$B$163,0) -> 0 | K163: =IF(AND(K1>=$D$152,(K1-$D$152)<$B$163),SUM($D$66:J66)/$B$163,0) -> 0 | L163: =IF(AND(L1>=$D$152,(L1-$D$152)<$B$163),SUM($D$66:K66)/$B$163,0) -> 0 | M163: =IF(AND(M1>=$D$152,(M1-$D$152)<$B$163),SUM($D$66:L66)/$B$163,0) -> 0 | N163: =IF(AND(N1>=$D$152,(N1-$D$152)<$B$163),SUM($D$66:M66)/$B$163,0) -> 0 | O163: =IF(AND(O1>=$D$152,(O1-$D$152)<$B$163),SUM($D$66:N66)/$B$163,0) -> 0 | P163: =IF(AND(P1>=$D$152,(P1-$D$152)<$B$163),SUM($D$66:O66)/$B$163,0) -> 0
A164: Expense Line Item 10 | B164: 0 | D164: =IF(AND(D1>=$D$152,(D1-$D$152)<$B$164),SUM(C$67:$D67)/$B$164,0) -> 0 | E164: =IF(AND(E1>=$D$152,(E1-$D$152)<$B$164),SUM($D$67:D67)/$B$164,0) -> 0 | F164: =IF(AND(F1>=$D$152,(F1-$D$152)<$B$164),SUM($D$67:E67)/$B$164,0) -> 0 | G164: =IF(AND(G1>=$D$152,(G1-$D$152)<$B$164),SUM($D$67:F67)/$B$164,0) -> 0 | H164: =IF(AND(H1>=$D$152,(H1-$D$152)<$B$164),SUM($D$67:G67)/$B$164,0) -> 0 | I164: =IF(AND(I1>=$D$152,(I1-$D$152)<$B$164),SUM($D$67:H67)/$B$164,0) -> 0 | J164: =IF(AND(J1>=$D$152,(J1-$D$152)<$B$164),SUM($D$67:I67)/$B$164,0) -> 0 | K164: =IF(AND(K1>=$D$152,(K1-$D$152)<$B$164),SUM($D$67:J67)/$B$164,0) -> 0 | L164: =IF(AND(L1>=$D$152,(L1-$D$152)<$B$164),SUM($D$67:K67)/$B$164,0) -> 0 | M164: =IF(AND(M1>=$D$152,(M1-$D$152)<$B$164),SUM($D$67:L67)/$B$164,0) -> 0 | N164: =IF(AND(N1>=$D$152,(N1-$D$152)<$B$164),SUM($D$67:M67)/$B$164,0) -> 0 | O164: =IF(AND(O1>=$D$152,(O1-$D$152)<$B$164),SUM($D$67:N67)/$B$164,0) -> 0 | P164: =IF(AND(P1>=$D$152,(P1-$D$152)<$B$164),SUM($D$67:O67)/$B$164,0) -> 0
A165: Total Annual Depreciation Exp. | D165: =SUM(D154:D164) -> 0 | E165: =SUM(E154:E164) -> 0 | F165: 0 | G165: 0 | H165: 0 | I165: 0 | J165: 0 | K165: 0 | L165: 0 | M165: 0 | N165: 0 | O165: 0 | P165: 0
A167: Working Capital and Debt Service Reserve Assumptions
A168: Days in Receivables | D168: 0 | E168: 0 | F168: 0 | G168: 0 | H168: 0 | I168: 0 | J168: 0 | K168: 0 | L168: 0 | M168: 0 | N168: 0 | O168: 0 | P168: 0
A169: Days Inventory | D169: 0 | E169: 0 | F169: 0 | G169: 0 | H169: 0 | I169: 0 | J169: 0 | K169: 0 | L169: 0 | M169: 0 | N169: 0 | O169: 0 | P169: 0
A170: Days in Payables | D170: 0 | E170: 0 | F170: 0 | G170: 0 | H170: 0 | I170: 0 | J170: 0 | K170: 0 | L170: 0 | M170: 0 | N170: 0 | O170: 0 | P170: 0
A171: Months Debt Service to Restricted Cash | D171: 0 | E171: 0 | F171: 0 | G171: 0 | H171: 0 | I171: 0 | J171: 0 | K171: 0 | L171: 0 | M171: 0 | N171: 0 | O171: 0 | P171: 0
A173: Cost of Capital (for Net Present Value Calculation Purposes)
A174: Amount of DFC Debt | B174: =D73 -> 0 | C174: =B174/B177 -> 
A175: Amount of other Senior Debt | B175: =SUM(D104:P104) -> 0 | C175: =B175/B177 -> 
A176: Amount of Sub-Debt/Equity | B176: =SUM(D137:P137)+SUM(D128:P128) -> 0 | C176: =B176/B177 -> 
A177: Total Project Capitalization | B177: =SUM(B174:B176) -> 0 | C177: =SUM(C174:C176) -> 
A179: Cost of Debt | B179: =(((B174)/(B174+B175))*D76)+(((B175)/(B174+B175))*D101) -> 
A180: Cost of Equity | B180: 0.2
A181: Weighted Average Cost of Capital | B181: =C174*B179+C176*B180 -> 

Sheet Mortgage-StyleDetail (hidden)
A1: Assumptions | E1: Payment Date | F1: Year | G1: Mortgage Payment | H1: Interest Portion | I1: Principal Portion | J1: Principal Balance
A2: Disbursement Amount | C2: =Assumptions!D73 -> 0 | E2: =C4 -> 2022-09-15 | F2: =YEAR(E2) -> 2022 | G2: =IF(OR(E2<$C$5,E2>$C$6),0,-PMT($C$8/$C$7,$C$9,$C$2)) -> 0 | H2: =YEARFRAC(C3,E2)*C2*C8 -> 0 | I2: =IF($C$5>E2,0,G2-H2) -> 0 | J2: =$C$2-I2 -> 0
A3: Disbursement Date | C3: =Assumptions!D82 -> 2022-06-15 | E3: =IF($C$7=12,EDATE(E2,1),IF($C$7=4,EDATE(E2,3),IF($C$7=2,EDATE(E2,6),0))) -> 2022-12-15 | F3: =YEAR(E3) -> 2022 | G3: =IF(OR(E3<$C$5,E3>$C$6),0,-PMT($C$8/$C$7,$C$9,$C$2)) -> 0 | H3: =IF(OR(E3<$C$5,E3>$C$6),YEARFRAC(E2,E3)*J2*$C$8,($C$2-SUM($I$1:I2))*($C$8/$C$7)) -> 0 | I3: =IF($C$5>E3,0,G3-H3) -> 0 | J3: =J2-I3 -> 0
A4: First Int Payment Date | C4: =EDATE(C3,12/C7) -> 2022-09-15 | E4: 2023-03-15 | F4: 2023 | G4: 0 | H4: =IF(OR(E4<$C$5,E4>$C$6),YEARFRAC(E3,E4)*J3*$C$8,($C$2-SUM($I$1:I3))*($C$8/$C$7)) -> 0 | I4: 0 | J4: =J3-I4 -> 0
A5: First Principal Payment Date | C5: =Assumptions!D83 -> 2023-06-15 | E5: 2023-06-15 | F5: 2023 | G5: 0 | H5: =IF(OR(E5<$C$5,E5>$C$6),YEARFRAC(E4,E5)*J4*$C$8,($C$2-SUM($I$1:I4))*($C$8/$C$7)) -> 0 | I5: 0 | J5: 0
A6: Maturity Date | C6: =Assumptions!D84 -> 2032-06-15 | E6: 2023-09-15 | F6: 2023 | G6: 0 | H6: =IF(OR(E6<$C$5,E6>$C$6),YEARFRAC(E5,E6)*J5*$C$8,($C$2-SUM($I$1:I5))*($C$8/$C$7)) -> 0 | I6: 0 | J6: 0
A7: Number of Payments per Year | C7: =Assumptions!D81 -> 4 | E7: 2023-12-15 | F7: 2023 | G7: 0 | H7: =IF(OR(E7<$C$5,E7>$C$6),YEARFRAC(E6,E7)*J6*$C$8,($C$2-SUM($I$1:I6))*($C$8/$C$7)) -> 0 | I7: 0 | J7: 0
A8: Estimated Annual Interest Rate | C8: =Assumptions!D76 -> 0.065 | E8: 2024-03-15 | F8: 2024 | G8: 0 | H8: =IF(OR(E8<$C$5,E8>$C$6),YEARFRAC(E7,E8)*J7*$C$8,($C$2-SUM($I$1:I7))*($C$8/$C$7)) -> 0 | I8: 0 | J8: 0
A9: # of Principal Payments | C9: =Assumptions!D85 -> 37 | E9: 2024-06-15 | F9: 2024 | G9: 0 | H9: =IF(OR(E9<$C$5,E9>$C$6),YEARFRAC(E8,E9)*J8*$C$8,($C$2-SUM($I$1:I8))*($C$8/$C$7)) -> 0 | I9: 0 | J9: 0
E10: 2024-09-15 | F10: 2024 | G10: 0 | H10: =IF(OR(E10<$C$5,E10>$C$6),YEARFRAC(E9,E10)*J9*$C$8,($C$2-SUM($I$1:I9))*($C$8/$C$7)) -> 0 | I10: 0 | J10: 0
E11: 2024-12-15 | F11: 2024 | G11: 0 | H11: =IF(OR(E11<$C$5,E11>$C$6),YEARFRAC(E10,E11)*J10*$C$8,($C$2-SUM($I$1:I10))*($C$8/$C$7)) -> 0 | I11: 0 | J11: 0
A12: Summary | B12: Principal | C12: Interest | E12: 2025-03-15 | F12: 2025 | G12: 0 | H12: =IF(OR(E12<$C$5,E12>$C$6),YEARFRAC(E11,E12)*J11*$C$8,($C$2-SUM($I$1:I11))*($C$8/$C$7)) -> 0 | I12: 0 | J12: 0
A13: =F2 -> 2022 | B13: =SUMIF($F$2:$F$182,A13,$I$2:$I$182) -> 0 | C13: =SUMIF($F$2:$F$182,A13,$H$2:$H$182) -> 0 | E13: 2025-06-15 | F13: 2025 | G13: 0 | H13: =IF(OR(E13<$C$5,E13>$C$6),YEARFRAC(E12,E13)*J12*$C$8,($C$2-SUM($I$1:I12))*($C$8/$C$7)) -> 0 | I13: 0 | J13: 0
A14: =A13+1 -> 2023 | B14: =SUMIF($F$2:$F$182,A14,$I$2:$I$182) -> 0 | C14: =SUMIF($F$2:$F$182,A14,$H$2:$H$182) -> 0 | E14: 2025-09-15 | F14: 2025 | G14: 0 | H14: =IF(OR(E14<$C$5,E14>$C$6),YEARFRAC(E13,E14)*J13*$C$8,($C$2-SUM($I$1:I13))*($C$8/$C$7)) -> 0 | I14: 0 | J14: 0
A15: =A14+1 -> 2024 | B15: 0 | C15: 0 | E15: 2025-12-15 | F15: 2025 | G15: 0 | H15: =IF(OR(E15<$C$5,E15>$C$6),YEARFRAC(E14,E15)*J14*$C$8,($C$2-SUM($I$1:I14))*($C$8/$C$7)) -> 0 | I15: 0 | J15: 0
A16: 2025 | B16: 0 | C16: 0 | E16: 2026-03-15 | F16: 2026 | G16: 0 | H16: =IF(OR(E16<$C$5,E16>$C$6),YEARFRAC(E15,E16)*J15*$C$8,($C$2-SUM($I$1:I15))*($C$8/$C$7)) -> 0 | I16: 0 | J16: 0
A17: 2026 | B17: 0 | C17: 0 | E17: 2026-06-15 | F17: 2026 | G17: 0 | H17: =IF(OR(E17<$C$5,E17>$C$6),YEARFRAC(E16,E17)*J16*$C$8,($C$2-SUM($I$1:I16))*($C$8/$C$7)) -> 0 | I17: 0 | J17: 0
A18: 2027 | B18: 0 | C18: 0 | E18: 2026-09-15 | F18: 2026 | G18: 0 | H18: =IF(OR(E18<$C$5,E18>$C$6),YEARFRAC(E17,E18)*J17*$C$8,($C$2-SUM($I$1:I17))*($C$8/$C$7)) -> 0 | I18: 0 | J18: 0
A19: 2028 | B19: 0 | C19: 0 | E19: 2026-12-15 | F19: 2026 | G19: 0 | H19: =IF(OR(E19<$C$5,E19>$C$6),YEARFRAC(E18,E19)*J18*$C$8,($C$2-SUM($I$1:I18))*($C$8/$C$7)) -> 0 | I19: 0 | J19: 0
A20: 2029 | B20: 0 | C20: 0 | E20: 2027-03-15 | F20: 2027 | G20: 0 | H20: =IF(OR(E20<$C$5,E20>$C$6),YEARFRAC(E19,E20)*J19*$C$8,($C$2-SUM($I$1:I19))*($C$8/$C$7)) -> 0 | I20: 0 | J20: 0
A21: 2030 | B21: 0 | C21: 0 | E21: 2027-06-15 | F21: 2027 | G21: 0 | H21: =IF(OR(E21<$C$5,E21>$C$6),YEARFRAC(E20,E21)*J20*$C$8,($C$2-SUM($I$1:I20))*($C$8/$C$7)) -> 0 | I21: 0 | J21: 0
A22: 2031 | B22: 0 | C22: 0 | E22: 2027-09-15 | F22: 2027 | G22: 0 | H22: =IF(OR(E22<$C$5,E22>$C$6),YEARFRAC(E21,E22)*J21*$C$8,($C$2-SUM($I$1:I21))*($C$8/$C$7)) -> 0 | I22: 0 | J22: 0
A23: 2032 | B23: 0 | C23: 0 | E23: 2027-12-15 | F23: 2027 | G23: 0 | H23: =IF(OR(E23<$C$5,E23>$C$6),YEARFRAC(E22,E23)*J22*$C$8,($C$2-SUM($I$1:I22))*($C$8/$C$7)) -> 0 | I23: 0 | J23: 0
A24: 2033 | B24: 0 | C24: 0 | E24: 2028-03-15 | F24: 2028 | G24: 0 | H24: =IF(OR(E24<$C$5,E24>$C$6),YEARFRAC(E23,E24)*J23*$C$8,($C$2-SUM($I$1:I23))*($C$8/$C$7)) -> 0 | I24: 0 | J24: 0
A25: 2034 | B25: 0 | C25: 0 | E25: 2028-06-15 | F25: 2028 | G25: 0 | H25: =IF(OR(E25<$C$5,E25>$C$6),YEARFRAC(E24,E25)*J24*$C$8,($C$2-SUM($I$1:I24))*($C$8/$C$7)) -> 0 | I25: 0 | J25: 0
A26: 2035 | B26: 0 | C26: 0 | E26: 2028-09-15 | F26: 2028 | G26: 0 | H26: =IF(OR(E26<$C$5,E26>$C$6),YEARFRAC(E25,E26)*J25*$C$8,($C$2-SUM($I$1:I25))*($C$8/$C$7)) -> 0 | I26: 0 | J26: 0
A27: 2036 | B27: 0 | C27: 0 | E27: 2028-12-15 | F27: 2028 | G27: 0 | H27: =IF(OR(E27<$C$5,E27>$C$6),YEARFRAC(E26,E27)*J26*$C$8,($C$2-SUM($I$1:I26))*($C$8/$C$7)) -> 0 | I27: 0 | J27: 0
A28: 2037 | B28: 0 | C28: 0 | E28: 2029-03-15 | F28: 2029 | G28: 0 | H28: =IF(OR(E28<$C$5,E28>$C$6),YEARFRAC(E27,E28)*J27*$C$8,($C$2-SUM($I$1:I27))*($C$8/$C$7)) -> 0 | I28: 0 | J28: 0
A29: Total | B29: =SUM(B13:B28) -> 0 | C29: =SUM(C13:C28) -> 0 | E29: 2029-06-15 | F29: 2029 | G29: 0 | H29: =IF(OR(E29<$C$5,E29>$C$6),YEARFRAC(E28,E29)*J28*$C$8,($C$2-SUM($I$1:I28))*($C$8/$C$7)) -> 0 | I29: 0 | J29: 0
E30: 2029-09-15 | F30: 2029 | G30: 0 | H30: =IF(OR(E30<$C$5,E30>$C$6),YEARFRAC(E29,E30)*J29*$C$8,($C$2-SUM($I$1:I29))*($C$8/$C$7)) -> 0 | I30: 0 | J30: 0
E31: 2029-12-15 | F31: 2029 | G31: 0 | H31: =IF(OR(E31<$C$5,E31>$C$6),YEARFRAC(E30,E31)*J30*$C$8,($C$2-SUM($I$1:I30))*($C$8/$C$7)) -> 0 | I31: 0 | J31: 0
E32: 2030-03-15 | F32: 2030 | G32: 0 | H32: =IF(OR(E32<$C$5,E32>$C$6),YEARFRAC(E31,E32)*J31*$C$8,($C$2-SUM($I$1:I31))*($C$8/$C$7)) -> 0 | I32: 0 | J32: 0
E33: 2030-06-15 | F33: 2030 | G33: 0 | H33: =IF(OR(E33<$C$5,E33>$C$6),YEARFRAC(E32,E33)*J32*$C$8,($C$2-SUM($I$1:I32))*($C$8/$C$7)) -> 0 | I33: 0 | J33: 0
E34: 2030-09-15 | F34: 2030 | G34: 0 | H34: =IF(OR(E34<$C$5,E34>$C$6),YEARFRAC(E33,E34)*J33*$C$8,($C$2-SUM($I$1:I33))*($C$8/$C$7)) -> 0 | I34: 0 | J34: 0
E35: 2030-12-15 | F35: 2030 | G35: 0 | H35: =IF(OR(E35<$C$5,E35>$C$6),YEARFRAC(E34,E35)*J34*$C$8,($C$2-SUM($I$1:I34))*($C$8/$C$7)) -> 0 | I35: 0 | J35: 0
E36: 2031-03-15 | F36: 2031 | G36: 0 | H36: =IF(OR(E36<$C$5,E36>$C$6),YEARFRAC(E35,E36)*J35*$C$8,($C$2-SUM($I$1:I35))*($C$8/$C$7)) -> 0 | I36: 0 | J36: 0
E37: 2031-06-15 | F37: 2031 | G37: 0 | H37: =IF(OR(E37<$C$5,E37>$C$6),YEARFRAC(E36,E37)*J36*$C$8,($C$2-SUM($I$1:I36))*($C$8/$C$7)) -> 0 | I37: 0 | J37: 0
E38: 2031-09-15 | F38: 2031 | G38: 0 | H38: =IF(OR(E38<$C$5,E38>$C$6),YEARFRAC(E37,E38)*J37*$C$8,($C$2-SUM($I$1:I37))*($C$8/$C$7)) -> 0 | I38: 0 | J38: 0
E39: 2031-12-15 | F39: 2031 | G39: 0 | H39: =IF(OR(E39<$C$5,E39>$C$6),YEARFRAC(E38,E39)*J38*$C$8,($C$2-SUM($I$1:I38))*($C$8/$C$7)) -> 0 | I39: 0 | J39: 0
E40: 2032-03-15 | F40: 2032 | G40: 0 | H40: =IF(OR(E40<$C$5,E40>$C$6),YEARFRAC(E39,E40)*J39*$C$8,($C$2-SUM($I$1:I39))*($C$8/$C$7)) -> 0 | I40: 0 | J40: 0
E41: 2032-06-15 | F41: 2032 | G41: 0 | H41: =IF(OR(E41<$C$5,E41>$C$6),YEARFRAC(E40,E41)*J40*$C$8,($C$2-SUM($I$1:I40))*($C$8/$C$7)) -> 0 | I41: 0 | J41: 0
E42: 2032-09-15 | F42: 2032 | G42: 0 | H42: =IF(OR(E42<$C$5,E42>$C$6),YEARFRAC(E41,E42)*J41*$C$8,($C$2-SUM($I$1:I41))*($C$8/$C$7)) -> 0 | I42: 0 | J42: 0
E43: 2032-12-15 | F43: 2032 | G43: 0 | H43: =IF(OR(E43<$C$5,E43>$C$6),YEARFRAC(E42,E43)*J42*$C$8,($C$2-SUM($I$1:I42))*($C$8/$C$7)) -> 0 | I43: 0 | J43: 0
E44: 2033-03-15 | F44: 2033 | G44: 0 | H44: =IF(OR(E44<$C$5,E44>$C$6),YEARFRAC(E43,E44)*J43*$C$8,($C$2-SUM($I$1:I43))*($C$8/$C$7)) -> 0 | I44: 0 | J44: 0
E45: 2033-06-15 | F45: 2033 | G45: 0 | H45: =IF(OR(E45<$C$5,E45>$C$6),YEARFRAC(E44,E45)*J44*$C$8,($C$2-SUM($I$1:I44))*($C$8/$C$7)) -> 0 | I45: 0 | J45: 0
E46: 2033-09-15 | F46: 2033 | G46: 0 | H46: =IF(OR(E46<$C$5,E46>$C$6),YEARFRAC(E45,E46)*J45*$C$8,($C$2-SUM($I$1:I45))*($C$8/$C$7)) -> 0 | I46: 0 | J46: 0
E47: 2033-12-15 | F47: 2033 | G47: 0 | H47: =IF(OR(E47<$C$5,E47>$C$6),YEARFRAC(E46,E47)*J46*$C$8,($C$2-SUM($I$1:I46))*($C$8/$C$7)) -> 0 | I47: 0 | J47: 0
E48: 2034-03-15 | F48: 2034 | G48: 0 | H48: =IF(OR(E48<$C$5,E48>$C$6),YEARFRAC(E47,E48)*J47*$C$8,($C$2-SUM($I$1:I47))*($C$8/$C$7)) -> 0 | I48: 0 | J48: 0
E49: 2034-06-15 | F49: 2034 | G49: 0 | H49: =IF(OR(E49<$C$5,E49>$C$6),YEARFRAC(E48,E49)*J48*$C$8,($C$2-SUM($I$1:I48))*($C$8/$C$7)) -> 0 | I49: 0 | J49: 0
E50: 2034-09-15 | F50: 2034 | G50: 0 | H50: =IF(OR(E50<$C$5,E50>$C$6),YEARFRAC(E49,E50)*J49*$C$8,($C$2-SUM($I$1:I49))*($C$8/$C$7)) -> 0 | I50: 0 | J50: 0
E51: 2034-12-15 | F51: 2034 | G51: 0 | H51: =IF(OR(E51<$C$5,E51>$C$6),YEARFRAC(E50,E51)*J50*$C$8,($C$2-SUM($I$1:I50))*($C$8/$C$7)) -> 0 | I51: 0 | J51: 0
E52: 2035-03-15 | F52: 2035 | G52: 0 | H52: =IF(OR(E52<$C$5,E52>$C$6),YEARFRAC(E51,E52)*J51*$C$8,($C$2-SUM($I$1:I51))*($C$8/$C$7)) -> 0 | I52: 0 | J52: 0
E53: 2035-06-15 | F53: 2035 | G53: 0 | H53: =IF(OR(E53<$C$5,E53>$C$6),YEARFRAC(E52,E53)*J52*$C$8,($C$2-SUM($I$1:I52))*($C$8/$C$7)) -> 0 | I53: 0 | J53: 0
E54: 2035-09-15 | F54: 2035 | G54: 0 | H54: =IF(OR(E54<$C$5,E54>$C$6),YEARFRAC(E53,E54)*J53*$C$8,($C$2-SUM($I$1:I53))*($C$8/$C$7)) -> 0 | I54: 0 | J54: 0
E55: 2035-12-15 | F55: 2035 | G55: 0 | H55: =IF(OR(E55<$C$5,E55>$C$6),YEARFRAC(E54,E55)*J54*$C$8,($C$2-SUM($I$1:I54))*($C$8/$C$7)) -> 0 | I55: 0 | J55: 0
E56: 2036-03-15 | F56: 2036 | G56: 0 | H56: =IF(OR(E56<$C$5,E56>$C$6),YEARFRAC(E55,E56)*J55*$C$8,($C$2-SUM($I$1:I55))*($C$8/$C$7)) -> 0 | I56: 0 | J56: 0
E57: 2036-06-15 | F57: 2036 | G57: 0 | H57: =IF(OR(E57<$C$5,E57>$C$6),YEARFRAC(E56,E57)*J56*$C$8,($C$2-SUM($I$1:I56))*($C$8/$C$7)) -> 0 | I57: 0 | J57: 0
E58: 2036-09-15 | F58: 2036 | G58: 0 | H58: =IF(OR(E58<$C$5,E58>$C$6),YEARFRAC(E57,E58)*J57*$C$8,($C$2-SUM($I$1:I57))*($C$8/$C$7)) -> 0 | I58: 0 | J58: 0
E59: 2036-12-15 | F59: 2036 | G59: 0 | H59: =IF(OR(E59<$C$5,E59>$C$6),YEARFRAC(E58,E59)*J58*$C$8,($C$2-SUM($I$1:I58))*($C$8/$C$7)) -> 0 | I59: 0 | J59: 0
E60: 2037-03-15 | F60: 2037 | G60: 0 | H60: =IF(OR(E60<$C$5,E60>$C$6),YEARFRAC(E59,E60)*J59*$C$8,($C$2-SUM($I$1:I59))*($C$8/$C$7)) -> 0 | I60: 0 | J60: 0
E61: 2037-06-15 | F61: 2037 | G61: 0 | H61: =IF(OR(E61<$C$5,E61>$C$6),YEARFRAC(E60,E61)*J60*$C$8,($C$2-SUM($I$1:I60))*($C$8/$C$7)) -> 0 | I61: 0 | J61: 0
E62: 2037-09-15 | F62: 2037 | G62: 0 | H62: =IF(OR(E62<$C$5,E62>$C$6),YEARFRAC(E61,E62)*J61*$C$8,($C$2-SUM($I$1:I61))*($C$8/$C$7)) -> 0 | I62: 0 | J62: 0
E63: 2037-12-15 | F63: 2037 | G63: 0 | H63: =IF(OR(E63<$C$5,E63>$C$6),YEARFRAC(E62,E63)*J62*$C$8,($C$2-SUM($I$1:I62))*($C$8/$C$7)) -> 0 | I63: 0 | J63: 0
E64: 2038-03-15 | F64: 2038 | G64: 0 | H64: =IF(OR(E64<$C$5,E64>$C$6),YEARFRAC(E63,E64)*J63*$C$8,($C$2-SUM($I$1:I63))*($C$8/$C$7)) -> 0 | I64: 0 | J64: 0
E65: 2038-06-15 | F65: 2038 | G65: 0 | H65: =IF(OR(E65<$C$5,E65>$C$6),YEARFRAC(E64,E65)*J64*$C$8,($C$2-SUM($I$1:I64))*($C$8/$C$7)) -> 0 | I65: 0 | J65: 0
E66: 2038-09-15 | F66: 2038 | G66: 0 | H66: =IF(OR(E66<$C$5,E66>$C$6),YEARFRAC(E65,E66)*J65*$C$8,($C$2-SUM($I$1:I65))*($C$8/$C$7)) -> 0 | I66: 0 | J66: 0
E67: =IF($C$7=12,EDATE(E66,1),IF($C$7=4,EDATE(E66,3),IF($C$7=2,EDATE(E66,6),0))) -> 2038-12-15 | F67: =YEAR(E67) -> 2038 | G67: =IF(OR(E67<$C$5,E67>$C$6),0,-PMT($C$8/$C$7,$C$9,$C$2)) -> 0 | H67: =IF(OR(E67<$C$5,E67>$C$6),YEARFRAC(E66,E67)*J66*$C$8,($C$2-SUM($I$1:I66))*($C$8/$C$7)) -> 0 | I67: =IF($C$5>E67,0,G67-H67) -> 0 | J67: 0
E68: 2039-03-15 | F68: 2039 | G68: 0 | H68: =IF(OR(E68<$C$5,E68>$C$6),YEARFRAC(E67,E68)*J67*$C$8,($C$2-SUM($I$1:I67))*($C$8/$C$7)) -> 0 | I68: 0 | J68: =J67-I68 -> 0
E69: 2039-06-15 | F69: 2039 | G69: 0 | H69: =IF(OR(E69<$C$5,E69>$C$6),YEARFRAC(E68,E69)*J68*$C$8,($C$2-SUM($I$1:I68))*($C$8/$C$7)) -> 0 | I69: 0 | J69: 0
E70: 2039-09-15 | F70: 2039 | G70: 0 | H70: =IF(OR(E70<$C$5,E70>$C$6),YEARFRAC(E69,E70)*J69*$C$8,($C$2-SUM($I$1:I69))*($C$8/$C$7)) -> 0 | I70: 0 | J70: 0
E71: 2039-12-15 | F71: 2039 | G71: 0 | H71: =IF(OR(E71<$C$5,E71>$C$6),YEARFRAC(E70,E71)*J70*$C$8,($C$2-SUM($I$1:I70))*($C$8/$C$7)) -> 0 | I71: 0 | J71: 0
E72: 2040-03-15 | F72: 2040 | G72: 0 | H72: =IF(OR(E72<$C$5,E72>$C$6),YEARFRAC(E71,E72)*J71*$C$8,($C$2-SUM($I$1:I71))*($C$8/$C$7)) -> 0 | I72: 0 | J72: 0
E73: 2040-06-15 | F73: 2040 | G73: 0 | H73: =IF(OR(E73<$C$5,E73>$C$6),YEARFRAC(E72,E73)*J72*$C$8,($C$2-SUM($I$1:I72))*($C$8/$C$7)) -> 0 | I73: 0 | J73: 0
E74: 2040-09-15 | F74: 2040 | G74: 0 | H74: =IF(OR(E74<$C$5,E74>$C$6),YEARFRAC(E73,E74)*J73*$C$8,($C$2-SUM($I$1:I73))*($C$8/$C$7)) -> 0 | I74: 0 | J74: 0
E75: 2040-12-15 | F75: 2040 | G75: 0 | H75: =IF(OR(E75<$C$5,E75>$C$6),YEARFRAC(E74,E75)*J74*$C$8,($C$2-SUM($I$1:I74))*($C$8/$C$7)) -> 0 | I75: 0 | J75: 0
E76: 2041-03-15 | F76: 2041 | G76: 0 | H76: =IF(OR(E76<$C$5,E76>$C$6),YEARFRAC(E75,E76)*J75*$C$8,($C$2-SUM($I$1:I75))*($C$8/$C$7)) -> 0 | I76: 0 | J76: 0
E77: 2041-06-15 | F77: 2041 | G77: 0 | H77: =IF(OR(E77<$C$5,E77>$C$6),YEARFRAC(E76,E77)*J76*$C$8,($C$2-SUM($I$1:I76))*($C$8/$C$7)) -> 0 | I77: 0 | J77: 0
E78: 2041-09-15 | F78: 2041 | G78: 0 | H78: =IF(OR(E78<$C$5,E78>$C$6),YEARFRAC(E77,E78)*J77*$C$8,($C$2-SUM($I$1:I77))*($C$8/$C$7)) -> 0 | I78: 0 | J78: 0
E79: 2041-12-15 | F79: 2041 | G79: 0 | H79: =IF(OR(E79<$C$5,E79>$C$6),YEARFRAC(E78,E79)*J78*$C$8,($C$2-SUM($I$1:I78))*($C$8/$C$7)) -> 0 | I79: 0 | J79: 0
E80: 2042-03-15 | F80: 2042 | G80: 0 | H80: =IF(OR(E80<$C$5,E80>$C$6),YEARFRAC(E79,E80)*J79*$C$8,($C$2-SUM($I$1:I79))*($C$8/$C$7)) -> 0 | I80: 0 | J80: 0
E81: 2042-06-15 | F81: 2042 | G81: 0 | H81: =IF(OR(E81<$C$5,E81>$C$6),YEARFRAC(E80,E81)*J80*$C$8,($C$2-SUM($I$1:I80))*($C$8/$C$7)) -> 0 | I81: 0 | J81: 0
E82: 2042-09-15 | F82: 2042 | G82: 0 | H82: =IF(OR(E82<$C$5,E82>$C$6),YEARFRAC(E81,E82)*J81*$C$8,($C$2-SUM($I$1:I81))*($C$8/$C$7)) -> 0 | I82: 0 | J82: 0
E83: 2042-12-15 | F83: 2042 | G83: 0 | H83: =IF(OR(E83<$C$5,E83>$C$6),YEARFRAC(E82,E83)*J82*$C$8,($C$2-SUM($I$1:I82))*($C$8/$C$7)) -> 0 | I83: 0 | J83: 0
E84: 2043-03-15 | F84: 2043 | G84: 0 | H84: =IF(OR(E84<$C$5,E84>$C$6),YEARFRAC(E83,E84)*J83*$C$8,($C$2-SUM($I$1:I83))*($C$8/$C$7)) -> 0 | I84: 0 | J84: 0
E85: 2043-06-15 | F85: 2043 | G85: 0 | H85: =IF(OR(E85<$C$5,E85>$C$6),YEARFRAC(E84,E85)*J84*$C$8,($C$2-SUM($I$1:I84))*($C$8/$C$7)) -> 0 | I85: 0 | J85: 0
E86: 2043-09-15 | F86: 2043 | G86: 0 | H86: =IF(OR(E86<$C$5,E86>$C$6),YEARFRAC(E85,E86)*J85*$C$8,($C$2-SUM($I$1:I85))*($C$8/$C$7)) -> 0 | I86: 0 | J86: 0
E87: 2043-12-15 | F87: 2043 | G87: 0 | H87: =IF(OR(E87<$C$5,E87>$C$6),YEARFRAC(E86,E87)*J86*$C$8,($C$2-SUM($I$1:I86))*($C$8/$C$7)) -> 0 | I87: 0 | J87: 0
E88: 2044-03-15 | F88: 2044 | G88: 0 | H88: =IF(OR(E88<$C$5,E88>$C$6),YEARFRAC(E87,E88)*J87*$C$8,($C$2-SUM($I$1:I87))*($C$8/$C$7)) -> 0 | I88: 0 | J88: 0
E89: 2044-06-15 | F89: 2044 | G89: 0 | H89: =IF(OR(E89<$C$5,E89>$C$6),YEARFRAC(E88,E89)*J88*$C$8,($C$2-SUM($I$1:I88))*($C$8/$C$7)) -> 0 | I89: 0 | J89: 0
E90: 2044-09-15 | F90: 2044 | G90: 0 | H90: =IF(OR(E90<$C$5,E90>$C$6),YEARFRAC(E89,E90)*J89*$C$8,($C$2-SUM($I$1:I89))*($C$8/$C$7)) -> 0 | I90: 0 | J90: 0
E91: 2044-12-15 | F91: 2044 | G91: 0 | H91: =IF(OR(E91<$C$5,E91>$C$6),YEARFRAC(E90,E91)*J90*$C$8,($C$2-SUM($I$1:I90))*($C$8/$C$7)) -> 0 | I91: 0 | J91: 0
E92: 2045-03-15 | F92: 2045 | G92: 0 | H92: =IF(OR(E92<$C$5,E92>$C$6),YEARFRAC(E91,E92)*J91*$C$8,($C$2-SUM($I$1:I91))*($C$8/$C$7)) -> 0 | I92: 0 | J92: 0
E93: 2045-06-15 | F93: 2045 | G93: 0 | H93: =IF(OR(E93<$C$5,E93>$C$6),YEARFRAC(E92,E93)*J92*$C$8,($C$2-SUM($I$1:I92))*($C$8/$C$7)) -> 0 | I93: 0 | J93: 0
E94: 2045-09-15 | F94: 2045 | G94: 0 | H94: =IF(OR(E94<$C$5,E94>$C$6),YEARFRAC(E93,E94)*J93*$C$8,($C$2-SUM($I$1:I93))*($C$8/$C$7)) -> 0 | I94: 0 | J94: 0
E95: 2045-12-15 | F95: 2045 | G95: 0 | H95: =IF(OR(E95<$C$5,E95>$C$6),YEARFRAC(E94,E95)*J94*$C$8,($C$2-SUM($I$1:I94))*($C$8/$C$7)) -> 0 | I95: 0 | J95: 0
E96: 2046-03-15 | F96: 2046 | G96: 0 | H96: =IF(OR(E96<$C$5,E96>$C$6),YEARFRAC(E95,E96)*J95*$C$8,($C$2-SUM($I$1:I95))*($C$8/$C$7)) -> 0 | I96: 0 | J96: 0
E97: 2046-06-15 | F97: 2046 | G97: 0 | H97: =IF(OR(E97<$C$5,E97>$C$6),YEARFRAC(E96,E97)*J96*$C$8,($C$2-SUM($I$1:I96))*($C$8/$C$7)) -> 0 | I97: 0 | J97: 0
E98: 2046-09-15 | F98: 2046 | G98: 0 | H98: =IF(OR(E98<$C$5,E98>$C$6),YEARFRAC(E97,E98)*J97*$C$8,($C$2-SUM($I$1:I97))*($C$8/$C$7)) -> 0 | I98: 0 | J98: 0
E99: 2046-12-15 | F99: 2046 | G99: 0 | H99: =IF(OR(E99<$C$5,E99>$C$6),YEARFRAC(E98,E99)*J98*$C$8,($C$2-SUM($I$1:I98))*($C$8/$C$7)) -> 0 | I99: 0 | J99: 0
E100: 2047-03-15 | F100: 2047 | G100: 0 | H100: =IF(OR(E100<$C$5,E100>$C$6),YEARFRAC(E99,E100)*J99*$C$8,($C$2-SUM($I$1:I99))*($C$8/$C$7)) -> 0 | I100: 0 | J100: 0
E101: 2047-06-15 | F101: 2047 | G101: 0 | H101: =IF(OR(E101<$C$5,E101>$C$6),YEARFRAC(E100,E101)*J100*$C$8,($C$2-SUM($I$1:I100))*($C$8/$C$7)) -> 0 | I101: 0 | J101: 0
E102: 2047-09-15 | F102: 2047 | G102: 0 | H102: =IF(OR(E102<$C$5,E102>$C$6),YEARFRAC(E101,E102)*J101*$C$8,($C$2-SUM($I$1:I101))*($C$8/$C$7)) -> 0 | I102: 0 | J102: 0
E103: 2047-12-15 | F103: 2047 | G103: 0 | H103: =IF(OR(E103<$C$5,E103>$C$6),YEARFRAC(E102,E103)*J102*$C$8,($C$2-SUM($I$1:I102))*($C$8/$C$7)) -> 0 | I103: 0 | J103: 0
E104: 2048-03-15 | F104: 2048 | G104: 0 | H104: =IF(OR(E104<$C$5,E104>$C$6),YEARFRAC(E103,E104)*J103*$C$8,($C$2-SUM($I$1:I103))*($C$8/$C$7)) -> 0 | I104: 0 | J104: 0
E105: 2048-06-15 | F105: 2048 | G105: 0 | H105: =IF(OR(E105<$C$5,E105>$C$6),YEARFRAC(E104,E105)*J104*$C$8,($C$2-SUM($I$1:I104))*($C$8/$C$7)) -> 0 | I105: 0 | J105: 0
E106: 2048-09-15 | F106: 2048 | G106: 0 | H106: =IF(OR(E106<$C$5,E106>$C$6),YEARFRAC(E105,E106)*J105*$C$8,($C$2-SUM($I$1:I105))*($C$8/$C$7)) -> 0 | I106: 0 | J106: 0
E107: 2048-12-15 | F107: 2048 | G107: 0 | H107: =IF(OR(E107<$C$5,E107>$C$6),YEARFRAC(E106,E107)*J106*$C$8,($C$2-SUM($I$1:I106))*($C$8/$C$7)) -> 0 | I107: 0 | J107: 0
E108: 2049-03-15 | F108: 2049 | G108: 0 | H108: =IF(OR(E108<$C$5,E108>$C$6),YEARFRAC(E107,E108)*J107*$C$8,($C$2-SUM($I$1:I107))*($C$8/$C$7)) -> 0 | I108: 0 | J108: 0
E109: 2049-06-15 | F109: 2049 | G109: 0 | H109: =IF(OR(E109<$C$5,E109>$C$6),YEARFRAC(E108,E109)*J108*$C$8,($C$2-SUM($I$1:I108))*($C$8/$C$7)) -> 0 | I109: 0 | J109: 0
E110: 2049-09-15 | F110: 2049 | G110: 0 | H110: =IF(OR(E110<$C$5,E110>$C$6),YEARFRAC(E109,E110)*J109*$C$8,($C$2-SUM($I$1:I109))*($C$8/$C$7)) -> 0 | I110: 0 | J110: 0
E111: 2049-12-15 | F111: 2049 | G111: 0 | H111: =IF(OR(E111<$C$5,E111>$C$6),YEARFRAC(E110,E111)*J110*$C$8,($C$2-SUM($I$1:I110))*($C$8/$C$7)) -> 0 | I111: 0 | J111: 0
E112: 2050-03-15 | F112: 2050 | G112: 0 | H112: =IF(OR(E112<$C$5,E112>$C$6),YEARFRAC(E111,E112)*J111*$C$8,($C$2-SUM($I$1:I111))*($C$8/$C$7)) -> 0 | I112: 0 | J112: 0
E113: 2050-06-15 | F113: 2050 | G113: 0 | H113: =IF(OR(E113<$C$5,E113>$C$6),YEARFRAC(E112,E113)*J112*$C$8,($C$2-SUM($I$1:I112))*($C$8/$C$7)) -> 0 | I113: 0 | J113: 0
E114: 2050-09-15 | F114: 2050 | G114: 0 | H114: =IF(OR(E114<$C$5,E114>$C$6),YEARFRAC(E113,E114)*J113*$C$8,($C$2-SUM($I$1:I113))*($C$8/$C$7)) -> 0 | I114: 0 | J114: 0
E115: 2050-12-15 | F115: 2050 | G115: 0 | H115: =IF(OR(E115<$C$5,E115>$C$6),YEARFRAC(E114,E115)*J114*$C$8,($C$2-SUM($I$1:I114))*($C$8/$C$7)) -> 0 | I115: 0 | J115: 0
E116: 2051-03-15 | F116: 2051 | G116: 0 | H116: =IF(OR(E116<$C$5,E116>$C$6),YEARFRAC(E115,E116)*J115*$C$8,($C$2-SUM($I$1:I115))*($C$8/$C$7)) -> 0 | I116: 0 | J116: 0
E117: 2051-06-15 | F117: 2051 | G117: 0 | H117: =IF(OR(E117<$C$5,E117>$C$6),YEARFRAC(E116,E117)*J116*$C$8,($C$2-SUM($I$1:I116))*($C$8/$C$7)) -> 0 | I117: 0 | J117: 0
E118: 2051-09-15 | F118: 2051 | G118: 0 | H118: =IF(OR(E118<$C$5,E118>$C$6),YEARFRAC(E117,E118)*J117*$C$8,($C$2-SUM($I$1:I117))*($C$8/$C$7)) -> 0 | I118: 0 | J118: 0
E119: 2051-12-15 | F119: 2051 | G119: 0 | H119: =IF(OR(E119<$C$5,E119>$C$6),YEARFRAC(E118,E119)*J118*$C$8,($C$2-SUM($I$1:I118))*($C$8/$C$7)) -> 0 | I119: 0 | J119: 0
E120: 2052-03-15 | F120: 2052 | G120: 0 | H120: =IF(OR(E120<$C$5,E120>$C$6),YEARFRAC(E119,E120)*J119*$C$8,($C$2-SUM($I$1:I119))*($C$8/$C$7)) -> 0 | I120: 0 | J120: 0
E121: 2052-06-15 | F121: 2052 | G121: 0 | H121: =IF(OR(E121<$C$5,E121>$C$6),YEARFRAC(E120,E121)*J120*$C$8,($C$2-SUM($I$1:I120))*($C$8/$C$7)) -> 0 | I121: 0 | J121: 0
E122: 2052-09-15 | F122: 2052 | G122: 0 | H122: =IF(OR(E122<$C$5,E122>$C$6),YEARFRAC(E121,E122)*J121*$C$8,($C$2-SUM($I$1:I121))*($C$8/$C$7)) -> 0 | I122: 0 | J122: 0
E123: 2052-12-15 | F123: 2052 | G123: 0 | H123: =IF(OR(E123<$C$5,E123>$C$6),YEARFRAC(E122,E123)*J122*$C$8,($C$2-SUM($I$1:I122))*($C$8/$C$7)) -> 0 | I123: 0 | J123: 0
E124: 2053-03-15 | F124: 2053 | G124: 0 | H124: =IF(OR(E124<$C$5,E124>$C$6),YEARFRAC(E123,E124)*J123*$C$8,($C$2-SUM($I$1:I123))*($C$8/$C$7)) -> 0 | I124: 0 | J124: 0
E125: 2053-06-15 | F125: 2053 | G125: 0 | H125: =IF(OR(E125<$C$5,E125>$C$6),YEARFRAC(E124,E125)*J124*$C$8,($C$2-SUM($I$1:I124))*($C$8/$C$7)) -> 0 | I125: 0 | J125: 0
E126: 2053-09-15 | F126: 2053 | G126: 0 | H126: =IF(OR(E126<$C$5,E126>$C$6),YEARFRAC(E125,E126)*J125*$C$8,($C$2-SUM($I$1:I125))*($C$8/$C$7)) -> 0 | I126: 0 | J126: 0
E127: 2053-12-15 | F127: 2053 | G127: 0 | H127: =IF(OR(E127<$C$5,E127>$C$6),YEARFRAC(E126,E127)*J126*$C$8,($C$2-SUM($I$1:I126))*($C$8/$C$7)) -> 0 | I127: 0 | J127: 0
E128: 2054-03-15 | F128: 2054 | G128: 0 | H128: =IF(OR(E128<$C$5,E128>$C$6),YEARFRAC(E127,E128)*J127*$C$8,($C$2-SUM($I$1:I127))*($C$8/$C$7)) -> 0 | I128: 0 | J128: 0
E129: 2054-06-15 | F129: 2054 | G129: 0 | H129: =IF(OR(E129<$C$5,E129>$C$6),YEARFRAC(E128,E129)*J128*$C$8,($C$2-SUM($I$1:I128))*($C$8/$C$7)) -> 0 | I129: 0 | J129: 0
E130: 2054-09-15 | F130: 2054 | G130: 0 | H130: =IF(OR(E130<$C$5,E130>$C$6),YEARFRAC(E129,E130)*J129*$C$8,($C$2-SUM($I$1:I129))*($C$8/$C$7)) -> 0 | I130: 0 | J130: 0
E131: =IF($C$7=12,EDATE(E130,1),IF($C$7=4,EDATE(E130,3),IF($C$7=2,EDATE(E130,6),0))) -> 2054-12-15 | F131: =YEAR(E131) -> 2054 | G131: =IF(OR(E131<$C$5,E131>$C$6),0,-PMT($C$8/$C$7,$C$9,$C$2)) -> 0 | H131: =IF(OR(E131<$C$5,E131>$C$6),YEARFRAC(E130,E131)*J130*$C$8,($C$2-SUM($I$1:I130))*($C$8/$C$7)) -> 0 | I131: =IF($C$5>E131,0,G131-H131) -> 0 | J131: 0
E132: 2055-03-15 | F132: 2055 | G132: 0 | H132: =IF(OR(E132<$C$5,E132>$C$6),YEARFRAC(E131,E132)*J131*$C$8,($C$2-SUM($I$1:I131))*($C$8/$C$7)) -> 0 | I132: 0 | J132: =J131-I132 -> 0
E133: 2055-06-15 | F133: 2055 | G133: 0 | H133: =IF(OR(E133<$C$5,E133>$C$6),YEARFRAC(E132,E133)*J132*$C$8,($C$2-SUM($I$1:I132))*($C$8/$C$7)) -> 0 | I133: 0 | J133: 0
E134: 2055-09-15 | F134: 2055 | G134: 0 | H134: =IF(OR(E134<$C$5,E134>$C$6),YEARFRAC(E133,E134)*J133*$C$8,($C$2-SUM($I$1:I133))*($C$8/$C$7)) -> 0 | I134: 0 | J134: 0
E135: 2055-12-15 | F135: 2055 | G135: 0 | H135: =IF(OR(E135<$C$5,E135>$C$6),YEARFRAC(E134,E135)*J134*$C$8,($C$2-SUM($I$1:I134))*($C$8/$C$7)) -> 0 | I135: 0 | J135: 0
E136: 2056-03-15 | F136: 2056 | G136: 0 | H136: =IF(OR(E136<$C$5,E136>$C$6),YEARFRAC(E135,E136)*J135*$C$8,($C$2-SUM($I$1:I135))*($C$8/$C$7)) -> 0 | I136: 0 | J136: 0
E137: 2056-06-15 | F137: 2056 | G137: 0 | H137: =IF(OR(E137<$C$5,E137>$C$6),YEARFRAC(E136,E137)*J136*$C$8,($C$2-SUM($I$1:I136))*($C$8/$C$7)) -> 0 | I137: 0 | J137: 0
E138: 2056-09-15 | F138: 2056 | G138: 0 | H138: =IF(OR(E138<$C$5,E138>$C$6),YEARFRAC(E137,E138)*J137*$C$8,($C$2-SUM($I$1:I137))*($C$8/$C$7)) -> 0 | I138: 0 | J138: 0
E139: 2056-12-15 | F139: 2056 | G139: 0 | H139: =IF(OR(E139<$C$5,E139>$C$6),YEARFRAC(E138,E139)*J138*$C$8,($C$2-SUM($I$1:I138))*($C$8/$C$7)) -> 0 | I139: 0 | J139: 0
E140: 2057-03-15 | F140: 2057 | G140: 0 | H140: =IF(OR(E140<$C$5,E140>$C$6),YEARFRAC(E139,E140)*J139*$C$8,($C$2-SUM($I$1:I139))*($C$8/$C$7)) -> 0 | I140: 0 | J140: 0
E141: 2057-06-15 | F141: 2057 | G141: 0 | H141: =IF(OR(E141<$C$5,E141>$C$6),YEARFRAC(E140,E141)*J140*$C$8,($C$2-SUM($I$1:I140))*($C$8/$C$7)) -> 0 | I141: 0 | J141: 0
E142: 2057-09-15 | F142: 2057 | G142: 0 | H142: =IF(OR(E142<$C$5,E142>$C$6),YEARFRAC(E141,E142)*J141*$C$8,($C$2-SUM($I$1:I141))*($C$8/$C$7)) -> 0 | I142: 0 | J142: 0
E143: 2057-12-15 | F143: 2057 | G143: 0 | H143: =IF(OR(E143<$C$5,E143>$C$6),YEARFRAC(E142,E143)*J142*$C$8,($C$2-SUM($I$1:I142))*($C$8/$C$7)) -> 0 | I143: 0 | J143: 0
E144: 2058-03-15 | F144: 2058 | G144: 0 | H144: =IF(OR(E144<$C$5,E144>$C$6),YEARFRAC(E143,E144)*J143*$C$8,($C$2-SUM($I$1:I143))*($C$8/$C$7)) -> 0 | I144: 0 | J144: 0
E145: 2058-06-15 | F145: 2058 | G145: 0 | H145: =IF(OR(E145<$C$5,E145>$C$6),YEARFRAC(E144,E145)*J144*$C$8,($C$2-SUM($I$1:I144))*($C$8/$C$7)) -> 0 | I145: 0 | J145: 0
E146: 2058-09-15 | F146: 2058 | G146: 0 | H146: =IF(OR(E146<$C$5,E146>$C$6),YEARFRAC(E145,E146)*J145*$C$8,($C$2-SUM($I$1:I145))*($C$8/$C$7)) -> 0 | I146: 0 | J146: 0
E147: 2058-12-15 | F147: 2058 | G147: 0 | H147: =IF(OR(E147<$C$5,E147>$C$6),YEARFRAC(E146,E147)*J146*$C$8,($C$2-SUM($I$1:I146))*($C$8/$C$7)) -> 0 | I147: 0 | J147: 0
E148: 2059-03-15 | F148: 2059 | G148: 0 | H148: =IF(OR(E148<$C$5,E148>$C$6),YEARFRAC(E147,E148)*J147*$C$8,($C$2-SUM($I$1:I147))*($C$8/$C$7)) -> 0 | I148: 0 | J148: 0
E149: 2059-06-15 | F149: 2059 | G149: 0 | H149: =IF(OR(E149<$C$5,E149>$C$6),YEARFRAC(E148,E149)*J148*$C$8,($C$2-SUM($I$1:I148))*($C$8/$C$7)) -> 0 | I149: 0 | J149: 0
E150: 2059-09-15 | F150: 2059 | G150: 0 | H150: =IF(OR(E150<$C$5,E150>$C$6),YEARFRAC(E149,E150)*J149*$C$8,($C$2-SUM($I$1:I149))*($C$8/$C$7)) -> 0 | I150: 0 | J150: 0
E151: 2059-12-15 | F151: 2059 | G151: 0 | H151: =IF(OR(E151<$C$5,E151>$C$6),YEARFRAC(E150,E151)*J150*$C$8,($C$2-SUM($I$1:I150))*($C$8/$C$7)) -> 0 | I151: 0 | J151: 0
E152: 2060-03-15 | F152: 2060 | G152: 0 | H152: =IF(OR(E152<$C$5,E152>$C$6),YEARFRAC(E151,E152)*J151*$C$8,($C$2-SUM($I$1:I151))*($C$8/$C$7)) -> 0 | I152: 0 | J152: 0
E153: 2060-06-15 | F153: 2060 | G153: 0 | H153: =IF(OR(E153<$C$5,E153>$C$6),YEARFRAC(E152,E153)*J152*$C$8,($C$2-SUM($I$1:I152))*($C$8/$C$7)) -> 0 | I153: 0 | J153: 0
E154: 2060-09-15 | F154: 2060 | G154: 0 | H154: =IF(OR(E154<$C$5,E154>$C$6),YEARFRAC(E153,E154)*J153*$C$8,($C$2-SUM($I$1:I153))*($C$8/$C$7)) -> 0 | I154: 0 | J154: 0
E155: 2060-12-15 | F155: 2060 | G155: 0 | H155: =IF(OR(E155<$C$5,E155>$C$6),YEARFRAC(E154,E155)*J154*$C$8,($C$2-SUM($I$1:I154))*($C$8/$C$7)) -> 0 | I155: 0 | J155: 0
E156: 2061-03-15 | F156: 2061 | G156: 0 | H156: =IF(OR(E156<$C$5,E156>$C$6),YEARFRAC(E155,E156)*J155*$C$8,($C$2-SUM($I$1:I155))*($C$8/$C$7)) -> 0 | I156: 0 | J156: 0
E157: 2061-06-15 | F157: 2061 | G157: 0 | H157: =IF(OR(E157<$C$5,E157>$C$6),YEARFRAC(E156,E157)*J156*$C$8,($C$2-SUM($I$1:I156))*($C$8/$C$7)) -> 0 | I157: 0 | J157: 0
E158: 2061-09-15 | F158: 2061 | G158: 0 | H158: =IF(OR(E158<$C$5,E158>$C$6),YEARFRAC(E157,E158)*J157*$C$8,($C$2-SUM($I$1:I157))*($C$8/$C$7)) -> 0 | I158: 0 | J158: 0
E159: 2061-12-15 | F159: 2061 | G159: 0 | H159: =IF(OR(E159<$C$5,E159>$C$6),YEARFRAC(E158,E159)*J158*$C$8,($C$2-SUM($I$1:I158))*($C$8/$C$7)) -> 0 | I159: 0 | J159: 0
E160: 2062-03-15 | F160: 2062 | G160: 0 | H160: =IF(OR(E160<$C$5,E160>$C$6),YEARFRAC(E159,E160)*J159*$C$8,($C$2-SUM($I$1:I159))*($C$8/$C$7)) -> 0 | I160: 0 | J160: 0
E161: 2062-06-15 | F161: 2062 | G161: 0 | H161: =IF(OR(E161<$C$5,E161>$C$6),YEARFRAC(E160,E161)*J160*$C$8,($C$2-SUM($I$1:I160))*($C$8/$C$7)) -> 0 | I161: 0 | J161: 0
E162: 2062-09-15 | F162: 2062 | G162: 0 | H162: =IF(OR(E162<$C$5,E162>$C$6),YEARFRAC(E161,E162)*J161*$C$8,($C$2-SUM($I$1:I161))*($C$8/$C$7)) -> 0 | I162: 0 | J162: 0
E163: 2062-12-15 | F163: 2062 | G163: 0 | H163: =IF(OR(E163<$C$5,E163>$C$6),YEARFRAC(E162,E163)*J162*$C$8,($C$2-SUM($I$1:I162))*($C$8/$C$7)) -> 0 | I163: 0 | J163: 0
E164: 2063-03-15 | F164: 2063 | G164: 0 | H164: =IF(OR(E164<$C$5,E164>$C$6),YEARFRAC(E163,E164)*J163*$C$8,($C$2-SUM($I$1:I163))*($C$8/$C$7)) -> 0 | I164: 0 | J164: 0
E165: 2063-06-15 | F165: 2063 | G165: 0 | H165: =IF(OR(E165<$C$5,E165>$C$6),YEARFRAC(E164,E165)*J164*$C$8,($C$2-SUM($I$1:I164))*($C$8/$C$7)) -> 0 | I165: 0 | J165: 0
E166: 2063-09-15 | F166: 2063 | G166: 0 | H166: =IF(OR(E166<$C$5,E166>$C$6),YEARFRAC(E165,E166)*J165*$C$8,($C$2-SUM($I$1:I165))*($C$8/$C$7)) -> 0 | I166: 0 | J166: 0
E167: 2063-12-15 | F167: 2063 | G167: 0 | H167: =IF(OR(E167<$C$5,E167>$C$6),YEARFRAC(E166,E167)*J166*$C$8,($C$2-SUM($I$1:I166))*($C$8/$C$7)) -> 0 | I167: 0 | J167: 0
E168: 2064-03-15 | F168: 2064 | G168: 0 | H168: =IF(OR(E168<$C$5,E168>$C$6),YEARFRAC(E167,E168)*J167*$C$8,($C$2-SUM($I$1:I167))*($C$8/$C$7)) -> 0 | I168: 0 | J168: 0
E169: 2064-06-15 | F169: 2064 | G169: 0 | H169: =IF(OR(E169<$C$5,E169>$C$6),YEARFRAC(E168,E169)*J168*$C$8,($C$2-SUM($I$1:I168))*($C$8/$C$7)) -> 0 | I169: 0 | J169: 0
E170: 2064-09-15 | F170: 2064 | G170: 0 | H170: =IF(OR(E170<$C$5,E170>$C$6),YEARFRAC(E169,E170)*J169*$C$8,($C$2-SUM($I$1:I169))*($C$8/$C$7)) -> 0 | I170: 0 | J170: 0
E171: 2064-12-15 | F171: 2064 | G171: 0 | H171: =IF(OR(E171<$C$5,E171>$C$6),YEARFRAC(E170,E171)*J170*$C$8,($C$2-SUM($I$1:I170))*($C$8/$C$7)) -> 0 | I171: 0 | J171: 0
E172: 2065-03-15 | F172: 2065 | G172: 0 | H172: =IF(OR(E172<$C$5,E172>$C$6),YEARFRAC(E171,E172)*J171*$C$8,($C$2-SUM($I$1:I171))*($C$8/$C$7)) -> 0 | I172: 0 | J172: 0
E173: 2065-06-15 | F173: 2065 | G173: 0 | H173: =IF(OR(E173<$C$5,E173>$C$6),YEARFRAC(E172,E173)*J172*$C$8,($C$2-SUM($I$1:I172))*($C$8/$C$7)) -> 0 | I173: 0 | J173: 0
E174: 2065-09-15 | F174: 2065 | G174: 0 | H174: =IF(OR(E174<$C$5,E174>$C$6),YEARFRAC(E173,E174)*J173*$C$8,($C$2-SUM($I$1:I173))*($C$8/$C$7)) -> 0 | I174: 0 | J174: 0
E175: 2065-12-15 | F175: 2065 | G175: 0 | H175: =IF(OR(E175<$C$5,E175>$C$6),YEARFRAC(E174,E175)*J174*$C$8,($C$2-SUM($I$1:I174))*($C$8/$C$7)) -> 0 | I175: 0 | J175: 0
E176: 2066-03-15 | F176: 2066 | G176: 0 | H176: =IF(OR(E176<$C$5,E176>$C$6),YEARFRAC(E175,E176)*J175*$C$8,($C$2-SUM($I$1:I175))*($C$8/$C$7)) -> 0 | I176: 0 | J176: 0
E177: 2066-06-15 | F177: 2066 | G177: 0 | H177: =IF(OR(E177<$C$5,E177>$C$6),YEARFRAC(E176,E177)*J176*$C$8,($C$2-SUM($I$1:I176))*($C$8/$C$7)) -> 0 | I177: 0 | J177: 0
E178: 2066-09-15 | F178: 2066 | G178: 0 | H178: =IF(OR(E178<$C$5,E178>$C$6),YEARFRAC(E177,E178)*J177*$C$8,($C$2-SUM($I$1:I177))*($C$8/$C$7)) -> 0 | I178: 0 | J178: 0
E179: 2066-12-15 | F179: 2066 | G179: 0 | H179: =IF(OR(E179<$C$5,E179>$C$6),YEARFRAC(E178,E179)*J178*$C$8,($C$2-SUM($I$1:I178))*($C$8/$C$7)) -> 0 | I179: 0 | J179: 0
E180: 2067-03-15 | F180: 2067 | G180: 0 | H180: =IF(OR(E180<$C$5,E180>$C$6),YEARFRAC(E179,E180)*J179*$C$8,($C$2-SUM($I$1:I179))*($C$8/$C$7)) -> 0 | I180: 0 | J180: 0
E181: 2067-06-15 | F181: 2067 | G181: 0 | H181: =IF(OR(E181<$C$5,E181>$C$6),YEARFRAC(E180,E181)*J180*$C$8,($C$2-SUM($I$1:I180))*($C$8/$C$7)) -> 0 | I181: 0 | J181: 0
E182: 2067-09-15 | F182: 2067 | G182: 0 | H182: =IF(OR(E182<$C$5,E182>$C$6),YEARFRAC(E181,E182)*J181*$C$8,($C$2-SUM($I$1:I181))*($C$8/$C$7)) -> 0 | I182: 0 | J182: 0

Sheet Income
L1: =Start!C6 -> Sample Company
A2: Calendar Year | D2: =HistoricalData!D6 -> 2021 | F2: =Assumptions!D1 -> 2022 | H2: =F2+1 -> 2023 | J2: =H2+1 -> 2024 | L2: =J2+1 -> 2025 | N2: =L2+1 -> 2026 | P2: =N2+1 -> 2027 | R2: =P2+1 -> 2028 | T2: =R2+1 -> 2029 | V2: =T2+1 -> 2030 | X2: =V2+1 -> 2031 | Z2: =X2+1 -> 2032 | AB2: =Z2+1 -> 2033 | AD2: =AB2+1 -> 2034
D3: Actual | F3: Projected | H3: Projected | J3: Projected | L3: Projected | N3: Projected | P3: Projected | R3: Projected | T3: Projected | V3: Projected | X3: Projected | Z3: Projected | AB3: Projected | AD3: Projected
A5: Revenues | E5: % | G5: % | I5: % | K5: % | M5: % | O5: % | Q5: % | S5: % | U5: % | W5: % | Y5: % | AA5: % | AC5: % | AE5: %
A6: =Assumptions!A9 -> Business Line "A" Revenue in $000s | F6: =Assumptions!D9 -> 0 | G6: =IFERROR(F6/$F$10," ") ->  | H6: =Assumptions!E9 -> 0 | I6: =IFERROR(H6/$H$10," ") ->  | J6: =Assumptions!F9 -> 0 | K6: =IFERROR(J6/$J$10," ") ->  | L6: =Assumptions!G9 -> 0 | M6: =IFERROR(L6/$L$10," ") ->  | N6: =Assumptions!H9 -> 0 | O6: =IFERROR(N6/$N$10," ") ->  | P6: =Assumptions!I9 -> 0 | Q6: =IFERROR(P6/$P$10," ") ->  | R6: =Assumptions!J9 -> 0 | S6: =IFERROR(R6/$R$10," ") ->  | T6: =Assumptions!K9 -> 0 | U6: =IFERROR(T6/$T$10," ") ->  | V6: =Assumptions!L9 -> 0 | W6: =IFERROR(V6/$V$10," ") ->  | X6: =Assumptions!M9 -> 0 | Y6: =IFERROR(X6/$X$10," ") ->  | Z6: =Assumptions!N9 -> 0 | AA6: =IFERROR(Z6/$Z$10," ") ->  | AB6: =Assumptions!O9 -> 0 | AC6: =IFERROR(AB6/$AB$10," ") ->  | AD6: =Assumptions!P9 -> 0 | AE6: =IFERROR(AD6/$AD$10," ") -> 
A7: =Assumptions!A15 -> Business Line "B" Revenue in $000s | F7: =Assumptions!D15 -> 0 | G7: =IFERROR(F7/$F$10," ") ->  | H7: =Assumptions!E15 -> 0 | I7: =IFERROR(H7/$H$10," ") ->  | J7: =Assumptions!F15 -> 0 | K7: =IFERROR(J7/$J$10," ") ->  | L7: =Assumptions!G15 -> 0 | M7: =IFERROR(L7/$L$10," ") ->  | N7: =Assumptions!H15 -> 0 | O7: =IFERROR(N7/$N$10," ") ->  | P7: =Assumptions!I15 -> 0 | Q7: =IFERROR(P7/$P$10," ") ->  | R7: =Assumptions!J15 -> 0 | S7: =IFERROR(R7/$R$10," ") ->  | T7: =Assumptions!K15 -> 0 | U7: =IFERROR(T7/$T$10," ") ->  | V7: =Assumptions!L15 -> 0 | W7: =IFERROR(V7/$V$10," ") ->  | X7: =Assumptions!M15 -> 0 | Y7: =IFERROR(X7/$X$10," ") ->  | Z7: =Assumptions!N15 -> 0 | AA7: =IFERROR(Z7/$Z$10," ") ->  | AB7: =Assumptions!O15 -> 0 | AC7: =IFERROR(AB7/$AB$10," ") ->  | AD7: =Assumptions!P15 -> 0 | AE7: =IFERROR(AD7/$AD$10," ") -> 
A8: =Assumptions!A21 -> Business Line "C" Revenue in $000s | F8: =Assumptions!D21 -> 0 | G8: =IFERROR(F8/$F$10," ") ->  | H8: =Assumptions!E21 -> 0 | I8: =IFERROR(H8/$H$10," ") ->  | J8: =Assumptions!F21 -> 0 | K8: =IFERROR(J8/$J$10," ") ->  | L8: =Assumptions!G21 -> 0 | M8: =IFERROR(L8/$L$10," ") ->  | N8: =Assumptions!H21 -> 0 | O8: =IFERROR(N8/$N$10," ") ->  | P8: =Assumptions!I21 -> 0 | Q8: =IFERROR(P8/$P$10," ") ->  | R8: =Assumptions!J21 -> 0 | S8: =IFERROR(R8/$R$10," ") ->  | T8: =Assumptions!K21 -> 0 | U8: =IFERROR(T8/$T$10," ") ->  | V8: =Assumptions!L21 -> 0 | W8: =IFERROR(V8/$V$10," ") ->  | X8: =Assumptions!M21 -> 0 | Y8: =IFERROR(X8/$X$10," ") ->  | Z8: =Assumptions!N21 -> 0 | AA8: =IFERROR(Z8/$Z$10," ") ->  | AB8: =Assumptions!O21 -> 0 | AC8: =IFERROR(AB8/$AB$10," ") ->  | AD8: =Assumptions!P21 -> 0 | AE8: =IFERROR(AD8/$AD$10," ") -> 
A9: =Assumptions!A27 -> Business Line "D" Revenue in $000s | F9: =Assumptions!D27 -> 0 | G9: =IFERROR(F9/$F$10," ") ->  | H9: =Assumptions!E27 -> 0 | I9: =IFERROR(H9/$H$10," ") ->  | J9: =Assumptions!F27 -> 0 | K9: =IFERROR(J9/$J$10," ") ->  | L9: =Assumptions!G27 -> 0 | M9: =IFERROR(L9/$L$10," ") ->  | N9: =Assumptions!H27 -> 0 | O9: =IFERROR(N9/$N$10," ") ->  | P9: =Assumptions!I27 -> 0 | Q9: =IFERROR(P9/$P$10," ") ->  | R9: =Assumptions!J27 -> 0 | S9: =IFERROR(R9/$R$10," ") ->  | T9: =Assumptions!K27 -> 0 | U9: =IFERROR(T9/$T$10," ") ->  | V9: =Assumptions!L27 -> 0 | W9: =IFERROR(V9/$V$10," ") ->  | X9: =Assumptions!M27 -> 0 | Y9: =IFERROR(X9/$X$10," ") ->  | Z9: =Assumptions!N27 -> 0 | AA9: =IFERROR(Z9/$Z$10," ") ->  | AB9: =Assumptions!O27 -> 0 | AC9: =IFERROR(AB9/$AB$10," ") ->  | AD9: =Assumptions!P27 -> 0 | AE9: =IFERROR(AD9/$AD$10," ") -> 
A10: Gross Revenues | D10: =IF(ISBLANK(HistoricalData!$D$10)=TRUE,HistoricalData!D52,HistoricalData!D114) -> 0 | F10: =SUM(F6:F9) -> 0 | H10: =SUM(H6:H9) -> 0 | J10: 0 | L10: 0 | N10: 0 | P10: 0 | R10: 0 | T10: 0 | V10: 0 | X10: 0 | Z10: 0 | AB10: 0 | AD10: 0
A12: Cost of Product Sold | D12: =IF(ISBLANK(HistoricalData!$D$10)=TRUE,HistoricalData!D53,HistoricalData!D115) -> 0 | E12: =IFERROR(D12/$D$10," ") ->  | F12: =Assumptions!D34 -> 0 | G12: =IFERROR(F12/$F$10," ") ->  | H12: =Assumptions!E34 -> 0 | I12: =IFERROR(H12/$H$10," ") ->  | J12: =Assumptions!F34 -> 0 | K12: =IFERROR(J12/$J$10," ") ->  | L12: =Assumptions!G34 -> 0 | M12: =IFERROR(L12/$L$10," ") ->  | N12: =Assumptions!H34 -> 0 | O12: =IFERROR(N12/$N$10," ") ->  | P12: =Assumptions!I34 -> 0 | Q12: =IFERROR(P12/$P$10," ") ->  | R12: =Assumptions!J34 -> 0 | S12: =IFERROR(R12/$R$10," ") ->  | T12: =Assumptions!K34 -> 0 | U12: =IFERROR(T12/$T$10," ") ->  | V12: =Assumptions!L34 -> 0 | W12: =IFERROR(V12/$V$10," ") ->  | X12: =Assumptions!M34 -> 0 | Y12: =IFERROR(X12/$X$10," ") ->  | Z12: =Assumptions!N34 -> 0 | AA12: =IFERROR(Z12/$Z$10," ") ->  | AB12: =Assumptions!O34 -> 0 | AC12: =IFERROR(AB12/$AB$10," ") ->  | AD12: =Assumptions!P34 -> 0 | AE12: =IFERROR(AD12/$AD$10," ") -> 
A14: Operating Expenses
A15: =Assumptions!A38 -> Operating Expense (local 000s) | F15: =Assumptions!D38*(1/Assumptions!D44) -> 0 | H15: =Assumptions!E38*(1/Assumptions!E44) -> 0 | J15: =Assumptions!F38*(1/Assumptions!F44) -> 0 | L15: =Assumptions!G38*(1/Assumptions!G44) -> 0 | N15: =Assumptions!H38*(1/Assumptions!H44) -> 0 | P15: =Assumptions!I38*(1/Assumptions!I44) -> 0 | R15: =Assumptions!J38*(1/Assumptions!J44) -> 0 | T15: =Assumptions!K38*(1/Assumptions!K44) -> 0 | V15: =Assumptions!L38*(1/Assumptions!L44) -> 0 | X15: =Assumptions!M38*(1/Assumptions!M44) -> 0 | Z15: =Assumptions!N38*(1/Assumptions!N44) -> 0 | AB15: =Assumptions!O38*(1/Assumptions!O44) -> 0 | AD15: =Assumptions!P38*(1/Assumptions!P44) -> 0
A16: =Assumptions!A39 -> Operating Expense (local 000s) | F16: =Assumptions!D39*(1/Assumptions!D44) -> 0 | H16: =Assumptions!E39*(1/Assumptions!E44) -> 0 | J16: =Assumptions!F39*(1/Assumptions!F44) -> 0 | L16: =Assumptions!G39*(1/Assumptions!G44) -> 0 | N16: =Assumptions!H39*(1/Assumptions!H44) -> 0 | P16: =Assumptions!I39*(1/Assumptions!I44) -> 0 | R16: =Assumptions!J39*(1/Assumptions!J44) -> 0 | T16: =Assumptions!K39*(1/Assumptions!K44) -> 0 | V16: =Assumptions!L39*(1/Assumptions!L44) -> 0 | X16: =Assumptions!M39*(1/Assumptions!M44) -> 0 | Z16: =Assumptions!N39*(1/Assumptions!N44) -> 0 | AB16: =Assumptions!O39*(1/Assumptions!O44) -> 0 | AD16: =Assumptions!P39*(1/Assumptions!P44) -> 0
A17: =Assumptions!A40 -> Operating Expense (local 000s) | F17: =Assumptions!D40*(1/Assumptions!D44) -> 0 | H17: =Assumptions!E40*(1/Assumptions!E44) -> 0 | J17: =Assumptions!F40*(1/Assumptions!F44) -> 0 | L17: =Assumptions!G40*(1/Assumptions!G44) -> 0 | N17: =Assumptions!H40*(1/Assumptions!H44) -> 0 | P17: =Assumptions!I40*(1/Assumptions!I44) -> 0 | R17: =Assumptions!J40*(1/Assumptions!J44) -> 0 | T17: =Assumptions!K40*(1/Assumptions!K44) -> 0 | V17: =Assumptions!L40*(1/Assumptions!L44) -> 0 | X17: =Assumptions!M40*(1/Assumptions!M44) -> 0 | Z17: =Assumptions!N40*(1/Assumptions!N44) -> 0 | AB17: =Assumptions!O40*(1/Assumptions!O44) -> 0 | AD17: =Assumptions!P40*(1/Assumptions!P44) -> 0
A18: =Assumptions!A41 -> Operating Expense (local 000s) | F18: =Assumptions!D41*(1/Assumptions!D44) -> 0 | H18: =Assumptions!E41*(1/Assumptions!E44) -> 0 | J18: =Assumptions!F41*(1/Assumptions!F44) -> 0 | L18: =Assumptions!G41*(1/Assumptions!G44) -> 0 | N18: =Assumptions!H41*(1/Assumptions!H44) -> 0 | P18: =Assumptions!I41*(1/Assumptions!I44) -> 0 | R18: =Assumptions!J41*(1/Assumptions!J44) -> 0 | T18: =Assumptions!K41*(1/Assumptions!K44) -> 0 | V18: =Assumptions!L41*(1/Assumptions!L44) -> 0 | X18: =Assumptions!M41*(1/Assumptions!M44) -> 0 | Z18: =Assumptions!N41*(1/Assumptions!N44) -> 0 | AB18: =Assumptions!O41*(1/Assumptions!O44) -> 0 | AD18: =Assumptions!P41*(1/Assumptions!P44) -> 0
A19: =Assumptions!A42 -> Operating Expense (local 000s) | F19: =Assumptions!D42*(1/Assumptions!D44) -> 0 | H19: =Assumptions!E42*(1/Assumptions!E44) -> 0 | J19: =Assumptions!F42*(1/Assumptions!F44) -> 0 | L19: =Assumptions!G42*(1/Assumptions!G44) -> 0 | N19: =Assumptions!H42*(1/Assumptions!H44) -> 0 | P19: =Assumptions!I42*(1/Assumptions!I44) -> 0 | R19: =Assumptions!J42*(1/Assumptions!J44) -> 0 | T19: =Assumptions!K42*(1/Assumptions!K44) -> 0 | V19: =Assumptions!L42*(1/Assumptions!L44) -> 0 | X19: =Assumptions!M42*(1/Assumptions!M44) -> 0 | Z19: =Assumptions!N42*(1/Assumptions!N44) -> 0 | AB19: =Assumptions!O42*(1/Assumptions!O44) -> 0 | AD19: =Assumptions!P42*(1/Assumptions!P44) -> 0
A20: =Assumptions!A48 -> Operating Expense ($000s) | F20: =Assumptions!D48 -> 0 | H20: =Assumptions!E48 -> 0 | J20: =Assumptions!F48 -> 0 | L20: =Assumptions!G48 -> 0 | N20: =Assumptions!H48 -> 0 | P20: =Assumptions!I48 -> 0 | R20: =Assumptions!J48 -> 0 | T20: =Assumptions!K48 -> 0 | V20: =Assumptions!L48 -> 0 | X20: =Assumptions!M48 -> 0 | Z20: =Assumptions!N48 -> 0 | AB20: =Assumptions!O48 -> 0 | AD20: =Assumptions!P48 -> 0
A21: =Assumptions!A49 -> Operating Expense ($000s) | F21: =Assumptions!D49 -> 0 | H21: =Assumptions!E49 -> 0 | J21: =Assumptions!F49 -> 0 | L21: =Assumptions!G49 -> 0 | N21: =Assumptions!H49 -> 0 | P21: =Assumptions!I49 -> 0 | R21: =Assumptions!J49 -> 0 | T21: =Assumptions!K49 -> 0 | V21: =Assumptions!L49 -> 0 | X21: =Assumptions!M49 -> 0 | Z21: =Assumptions!N49 -> 0 | AB21: =Assumptions!O49 -> 0 | AD21: =Assumptions!P49 -> 0
A22: =Assumptions!A50 -> Operating Expense ($000s) | F22: =Assumptions!D50 -> 0 | H22: =Assumptions!E50 -> 0 | J22: =Assumptions!F50 -> 0 | L22: =Assumptions!G50 -> 0 | N22: =Assumptions!H50 -> 0 | P22: =Assumptions!I50 -> 0 | R22: =Assumptions!J50 -> 0 | T22: =Assumptions!K50 -> 0 | V22: =Assumptions!L50 -> 0 | X22: =Assumptions!M50 -> 0 | Z22: =Assumptions!N50 -> 0 | AB22: =Assumptions!O50 -> 0 | AD22: =Assumptions!P50 -> 0
A23: =Assumptions!A51 -> Operating Expense ($000s) | F23: =Assumptions!D51 -> 0 | H23: =Assumptions!E51 -> 0 | J23: =Assumptions!F51 -> 0 | L23: =Assumptions!G51 -> 0 | N23: =Assumptions!H51 -> 0 | P23: =Assumptions!I51 -> 0 | R23: =Assumptions!J51 -> 0 | T23: =Assumptions!K51 -> 0 | V23: =Assumptions!L51 -> 0 | X23: =Assumptions!M51 -> 0 | Z23: =Assumptions!N51 -> 0 | AB23: =Assumptions!O51 -> 0 | AD23: =Assumptions!P51 -> 0
A24: =Assumptions!A52 -> Operating Expense ($000s) | F24: =Assumptions!D52 -> 0 | H24: =Assumptions!E52 -> 0 | J24: =Assumptions!F52 -> 0 | L24: =Assumptions!G52 -> 0 | N24: =Assumptions!H52 -> 0 | P24: =Assumptions!I52 -> 0 | R24: =Assumptions!J52 -> 0 | T24: =Assumptions!K52 -> 0 | V24: =Assumptions!L52 -> 0 | X24: =Assumptions!M52 -> 0 | Z24: =Assumptions!N52 -> 0 | AB24: =Assumptions!O52 -> 0 | AD24: =Assumptions!P52 -> 0
A25: Total Operating Expenses | D25: =IF(ISBLANK(HistoricalData!$D$10)=TRUE,HistoricalData!D54+HistoricalData!D55,HistoricalData!D116+HistoricalData!D117) -> 0 | E25: =IFERROR(D25/$D$10," ") ->  | F25: =SUM(F15:F24) -> 0 | G25: =IFERROR(F25/$F$10," ") ->  | H25: 0 | I25: =IFERROR(H25/$H$10," ") ->  | J25: 0 | K25: =IFERROR(J25/$J$10," ") ->  | L25: 0 | M25: =IFERROR(L25/$L$10," ") ->  | N25: 0 | O25: =IFERROR(N25/$N$10," ") ->  | P25: 0 | Q25: =IFERROR(P25/$P$10," ") ->  | R25: 0 | S25: =IFERROR(R25/$R$10," ") ->  | T25: 0 | U25: =IFERROR(T25/$T$10," ") ->  | V25: 0 | W25: =IFERROR(V25/$V$10," ") ->  | X25: =SUM(X15:X24) -> 0 | Y25: =IFERROR(X25/$X$10," ") ->  | Z25: =SUM(Z15:Z24) -> 0 | AA25: =IFERROR(Z25/$Z$10," ") ->  | AB25: =SUM(AB15:AB24) -> 0 | AC25: =IFERROR(AB25/$AB$10," ") ->  | AD25: =SUM(AD15:AD24) -> 0 | AE25: =IFERROR(AD25/$AD$10," ") -> 
A27: Gross Operating Profit (EBITDA) | D27: =D10-D12-D25 -> 0 | E27: =IFERROR(D27/$D$10," ") ->  | F27: 0 | G27: =IFERROR(F27/$F$10," ") ->  | H27: 0 | I27: =IFERROR(H27/$H$10," ") ->  | J27: 0 | K27: =IFERROR(J27/$J$10," ") ->  | L27: 0 | M27: =IFERROR(L27/$L$10," ") ->  | N27: 0 | O27: =IFERROR(N27/$N$10," ") ->  | P27: 0 | Q27: =IFERROR(P27/$P$10," ") ->  | R27: 0 | S27: =IFERROR(R27/$R$10," ") ->  | T27: 0 | U27: =IFERROR(T27/$T$10," ") ->  | V27: =V10-V12-V25 -> 0 | W27: =IFERROR(V27/$V$10," ") ->  | X27: =X10-X12-X25 -> 0 | Y27: =IFERROR(X27/$X$10," ") ->  | Z27: =Z10-Z12-Z25 -> 0 | AA27: =IFERROR(Z27/$Z$10," ") ->  | AB27: =AB10-AB12-AB25 -> 0 | AC27: =IFERROR(AB27/$AB$10," ") ->  | AD27: =AD10-AD12-AD25 -> 0 | AE27: =IFERROR(AD27/$AD$10," ") -> 
A29: Depreciation Expense | D29: =IF(ISBLANK(HistoricalData!$D$10)=TRUE,HistoricalData!D56,HistoricalData!D118) -> 0 | E29: =IFERROR(D29/$D$10," ") ->  | F29: =Assumptions!D165 -> 0 | G29: =IFERROR(F29/$F$10," ") ->  | H29: =Assumptions!E165 -> 0 | I29: =IFERROR(H29/$H$10," ") ->  | J29: =Assumptions!F165 -> 0 | K29: =IFERROR(J29/$J$10," ") ->  | L29: =Assumptions!G165 -> 0 | M29: =IFERROR(L29/$L$10," ") ->  | N29: =Assumptions!H165 -> 0 | O29: =IFERROR(N29/$N$10," ") ->  | P29: =Assumptions!I165 -> 0 | Q29: =IFERROR(P29/$P$10," ") ->  | R29: =Assumptions!J165 -> 0 | S29: =IFERROR(R29/$R$10," ") ->  | T29: =Assumptions!K165 -> 0 | U29: =IFERROR(T29/$T$10," ") ->  | V29: =Assumptions!L165 -> 0 | W29: =IFERROR(V29/$V$10," ") ->  | X29: =Assumptions!M165 -> 0 | Y29: =IFERROR(X29/$X$10," ") ->  | Z29: =Assumptions!N165 -> 0 | AA29: =IFERROR(Z29/$Z$10," ") ->  | AB29: =Assumptions!O165 -> 0 | AC29: =IFERROR(AB29/$AB$10," ") ->  | AD29: =Assumptions!P165 -> 0 | AE29: =IFERROR(AD29/$AD$10," ") -> 
A31: EBIT | D31: =D27-D29 -> 0 | E31: =IFERROR(D31/$D$10," ") ->  | F31: =F27-F29 -> 0 | G31: =IFERROR(F31/$F$10," ") ->  | H31: =H27-H29 -> 0 | I31: =IFERROR(H31/$H$10," ") ->  | J31: 0 | K31: =IFERROR(J31/$J$10," ") ->  | L31: 0 | M31: =IFERROR(L31/$L$10," ") ->  | N31: 0 | O31: =IFERROR(N31/$N$10," ") ->  | P31: 0 | Q31: =IFERROR(P31/$P$10," ") ->  | R31: 0 | S31: =IFERROR(R31/$R$10," ") ->  | T31: 0 | U31: =IFERROR(T31/$T$10," ") ->  | V31: 0 | W31: =IFERROR(V31/$V$10," ") ->  | X31: =X27-X29 -> 0 | Y31: =IFERROR(X31/$X$10," ") ->  | Z31: =Z27-Z29 -> 0 | AA31: =IFERROR(Z31/$Z$10," ") ->  | AB31: =AB27-AB29 -> 0 | AC31: =IFERROR(AB31/$AB$10," ") ->  | AD31: =AD27-AD29 -> 0 | AE31: =IFERROR(AD31/$AD$10," ") -> 
A33: Interest & Fee Income/(Expense) | D33: =IF(ISBLANK(HistoricalData!$D$10)=TRUE,HistoricalData!D57,HistoricalData!D119) -> 0 | E33: =IFERROR(ABS(D33/$D$10)," ") ->  | F33: =-(Assumptions!D93+Assumptions!D94+Assumptions!D105+Assumptions!D106+Assumptions!D117+Assumptions!D118+Assumptions!D129) -> 0 | G33: =IFERROR(ABS(F33/$F$10)," ") ->  | H33: =-(Assumptions!E93+Assumptions!E94+Assumptions!E105+Assumptions!E106+Assumptions!E117+Assumptions!E118+Assumptions!E129) -> 0 | I33: =IFERROR(ABS(H33/$H$10)," ") ->  | J33: =-(Assumptions!F93+Assumptions!F94+Assumptions!F105+Assumptions!F106+Assumptions!F117+Assumptions!F118+Assumptions!F129) -> 0 | K33: =IFERROR(ABS(J33/$J$10)," ") ->  | L33: =-(Assumptions!G93+Assumptions!G94+Assumptions!G105+Assumptions!G106+Assumptions!G117+Assumptions!G118+Assumptions!G129) -> 0 | M33: =IFERROR(ABS(L33/$L$10)," ") ->  | N33: =-(Assumptions!H93+Assumptions!H94+Assumptions!H105+Assumptions!H106+Assumptions!H117+Assumptions!H118+Assumptions!H129) -> 0 | O33: =IFERROR(ABS(N33/$N$10)," ") ->  | P33: =-(Assumptions!I93+Assumptions!I94+Assumptions!I105+Assumptions!I106+Assumptions!I117+Assumptions!I118+Assumptions!I129) -> 0 | Q33: =IFERROR(ABS(P33/$P$10)," ") ->  | R33: =-(Assumptions!J93+Assumptions!J94+Assumptions!J105+Assumptions!J106+Assumptions!J117+Assumptions!J118+Assumptions!J129) -> 0 | S33: =IFERROR(ABS(R33/$R$10)," ") ->  | T33: =-(Assumptions!K93+Assumptions!K94+Assumptions!K105+Assumptions!K106+Assumptions!K117+Assumptions!K118+Assumptions!K129) -> 0 | U33: =IFERROR(ABS(T33/$T$10)," ") ->  | V33: =-(Assumptions!L93+Assumptions!L94+Assumptions!L105+Assumptions!L106+Assumptions!L117+Assumptions!L118+Assumptions!L129) -> 0 | W33: =IFERROR(ABS(V33/$V$10)," ") ->  | X33: =-(Assumptions!M93+Assumptions!M94+Assumptions!M105+Assumptions!M106+Assumptions!M117+Assumptions!M118+Assumptions!M129) -> 0 | Y33: =IFERROR(ABS(X33/$X$10)," ") ->  | Z33: =-(Assumptions!N93+Assumptions!N94+Assumptions!N105+Assumptions!N106+Assumptions!N117+Assumptions!N118+Assumptions!N129) -> 0 | AA33: =IFERROR(ABS(Z33/$Z$10)," ") ->  | AB33: =-(Assumptions!O93+Assumptions!O94+Assumptions!O105+Assumptions!O106+Assumptions!O117+Assumptions!O118+Assumptions!O129) -> 0 | AC33: =IFERROR(ABS(AB33/$AB$10)," ") ->  | AD33: =-(Assumptions!P93+Assumptions!P94+Assumptions!P105+Assumptions!P106+Assumptions!P117+Assumptions!P118+Assumptions!P129) -> 0 | AE33: =IFERROR(ABS(AD33/$AD$10)," ") -> 
A35: Income Taxes | D35: =IF(ISBLANK(HistoricalData!$D$10)=TRUE,HistoricalData!D58,HistoricalData!D120) -> 0 | E35: =IFERROR(D35/$D$10," ") ->  | F35: =IF((F31+F33)<=0,0,(F31+F33)*Assumptions!D148) -> 0 | G35: =IFERROR(F35/$F$10," ") ->  | H35: =IF((H31+H33)<=0,0,(H31+H33)*Assumptions!E148) -> 0 | I35: =IFERROR(H35/$H$10," ") ->  | J35: =IF((J31+J33)<=0,0,(J31+J33)*Assumptions!F148) -> 0 | K35: =IFERROR(J35/$J$10," ") ->  | L35: =IF((L31+L33)<=0,0,(L31+L33)*Assumptions!G148) -> 0 | M35: =IFERROR(L35/$L$10," ") ->  | N35: =IF((N31+N33)<=0,0,(N31+N33)*Assumptions!H148) -> 0 | O35: =IFERROR(N35/$N$10," ") ->  | P35: =IF((P31+P33)<=0,0,(P31+P33)*Assumptions!I148) -> 0 | Q35: =IFERROR(P35/$P$10," ") ->  | R35: =IF((R31+R33)<=0,0,(R31+R33)*Assumptions!J148) -> 0 | S35: =IFERROR(R35/$R$10," ") ->  | T35: =IF((T31+T33)<=0,0,(T31+T33)*Assumptions!K148) -> 0 | U35: =IFERROR(T35/$T$10," ") ->  | V35: =IF((V31+V33)<=0,0,(V31+V33)*Assumptions!L148) -> 0 | W35: =IFERROR(V35/$V$10," ") ->  | X35: =IF((X31+X33)<=0,0,(X31+X33)*Assumptions!M148) -> 0 | Y35: =IFERROR(X35/$X$10," ") ->  | Z35: =IF((Z31+Z33)<=0,0,(Z31+Z33)*Assumptions!N148) -> 0 | AA35: =IFERROR(Z35/$Z$10," ") ->  | AB35: =IF((AB31+AB33)<=0,0,(AB31+AB33)*Assumptions!O148) -> 0 | AC35: =IFERROR(AB35/$AB$10," ") ->  | AD35: =IF((AD31+AD33)<=0,0,(AD31+AD33)*Assumptions!P148) -> 0 | AE35: =IFERROR(AD35/$AD$10," ") -> 
A37: Special (Historical) Items | D37: =IF(ISBLANK(HistoricalData!$D$10)=TRUE,SUM(HistoricalData!D59:'HistoricalData'!D62),SUM(HistoricalData!D121:'HistoricalData'!D124)) -> 0
A39: Net Income | D39: =D31+D33-D35+D37 -> 0 | E39: =IFERROR(D39/$D$10," ") ->  | F39: =F31+F33-F35 -> 0 | G39: =IFERROR(F39/$F$10," ") ->  | H39: =H31+H33-H35 -> 0 | I39: =IFERROR(H39/$H$10," ") ->  | J39: =J31+J33-J35 -> 0 | K39: =IFERROR(J39/$J$10," ") ->  | L39: =L31+L33-L35 -> 0 | M39: =IFERROR(L39/$L$10," ") ->  | N39: =N31+N33-N35 -> 0 | O39: =IFERROR(N39/$N$10," ") ->  | P39: =P31+P33-P35 -> 0 | Q39: =IFERROR(P39/$P$10," ") ->  | R39: =R31+R33-R35 -> 0 | S39: =IFERROR(R39/$R$10," ") ->  | T39: =T31+T33-T35 -> 0 | U39: =IFERROR(T39/$T$10," ") ->  | V39: =V31+V33-V35 -> 0 | W39: =IFERROR(V39/$V$10," ") ->  | X39: =X31+X33-X35 -> 0 | Y39: =IFERROR(X39/$X$10," ") ->  | Z39: =Z31+Z33-Z35 -> 0 | AA39: =IFERROR(Z39/$Z$10," ") ->  | AB39: =AB31+AB33-AB35 -> 0 | AC39: =IFERROR(AB39/$AB$10," ") ->  | AD39: =AD31+AD33-AD35 -> 0 | AE39: =IFERROR(AD39/$AD$10," ") -> 
A41: Dividends | D41: =IF(ISBLANK(HistoricalData!$D$10)=TRUE,HistoricalData!D64,HistoricalData!D126) -> 0 | F41: =Assumptions!D143 -> 0 | H41: =Assumptions!E143 -> 0 | J41: =Assumptions!F143 -> 0 | L41: =Assumptions!G143 -> 0 | N41: =Assumptions!H143 -> 0 | P41: =Assumptions!I143 -> 0 | R41: =Assumptions!J143 -> 0 | T41: =Assumptions!K143 -> 0 | V41: =Assumptions!L143 -> 0 | X41: =Assumptions!M143 -> 0 | Z41: =Assumptions!N143 -> 0 | AB41: =Assumptions!O143 -> 0 | AD41: =Assumptions!P143 -> 0
A43: Addition to Retained Earnings | D43: =D39-D41 -> 0 | F43: 0 | H43: 0 | J43: 0 | L43: 0 | N43: 0 | P43: 0 | R43: 0 | T43: 0 | V43: =V39-V41 -> 0 | X43: =X39-X41 -> 0 | Z43: =Z39-Z41 -> 0 | AB43: =AB39-AB41 -> 0 | AD43: =AD39-AD41 -> 0

Sheet CashFlow
H1: =Start!C6 -> Sample Company
A2: Calendar Year | D2: =HistoricalData!D6 -> 2021 | E2: =Assumptions!D1 -> 2022 | F2: =E2+1 -> 2023 | G2: 2024 | H2: 2025 | I2: 2026 | J2: 2027 | K2: 2028 | L2: 2029 | M2: =L2+1 -> 2030 | N2: =M2+1 -> 2031 | O2: =N2+1 -> 2032 | P2: =O2+1 -> 2033 | Q2: =P2+1 -> 2034
D3: Actual | E3: Projected | F3: Projected | G3: Projected | H3: Projected | I3: Projected | J3: Projected | K3: Projected | L3: Projected | M3: Projected | N3: Projected | O3: Projected | P3: Projected | Q3: Projected
A4: Cash Flow Statement
A5: Sales | D5: =Income!D10 -> 0 | E5: =Income!F10 -> 0 | F5: =Income!H10 -> 0 | G5: =Income!J10 -> 0 | H5: =Income!L10 -> 0 | I5: =Income!N10 -> 0 | J5: =Income!P10 -> 0 | K5: =Income!R10 -> 0 | L5: =Income!T10 -> 0 | M5: =Income!V10 -> 0 | N5: =Income!X10 -> 0 | O5: =Income!Z10 -> 0 | P5: =Income!AB10 -> 0 | Q5: =Income!AD10 -> 0
A6: Change in Receivables | D6: =-IF(ISBLANK(HistoricalData!$D$10)=TRUE,SUM(HistoricalData!D15:D16)-SUM(HistoricalData!C15:C16),SUM(HistoricalData!D78:D79)-SUM(HistoricalData!C78:C79)-(SUM(HistoricalData!C15:C16)/HistoricalData!D10-SUM(HistoricalData!C15:C16)/HistoricalData!C10)) -> 0 | E6: =-(Balance!E9-Balance!D9) -> 0 | F6: =-(Balance!F9-Balance!E9) -> 0 | G6: =-(Balance!G9-Balance!F9) -> 0 | H6: =-(Balance!H9-Balance!G9) -> 0 | I6: =-(Balance!I9-Balance!H9) -> 0 | J6: =-(Balance!J9-Balance!I9) -> 0 | K6: =-(Balance!K9-Balance!J9) -> 0 | L6: =-(Balance!L9-Balance!K9) -> 0 | M6: =-(Balance!M9-Balance!L9) -> 0 | N6: =-(Balance!N9-Balance!M9) -> 0 | O6: =-(Balance!O9-Balance!N9) -> 0 | P6: =-(Balance!P9-Balance!O9) -> 0 | Q6: =-(Balance!Q9-Balance!P9) -> 0
A7: Cash from Sales | D7: =D5+D6 -> 0 | E7: 0 | F7: 0 | G7: 0 | H7: 0 | I7: 0 | J7: 0 | K7: 0 | L7: 0 | M7: 0 | N7: =N5+N6 -> 0 | O7: =O5+O6 -> 0 | P7: =P5+P6 -> 0 | Q7: =Q5+Q6 -> 0
A9: Cost of Goods Sold | D9: =Income!D12 -> 0 | E9: =Income!F12 -> 0 | F9: =Income!H12 -> 0 | G9: =Income!J12 -> 0 | H9: =Income!L12 -> 0 | I9: =Income!N12 -> 0 | J9: =Income!P12 -> 0 | K9: =Income!R12 -> 0 | L9: =Income!T12 -> 0 | M9: =Income!V12 -> 0 | N9: =Income!X12 -> 0 | O9: =Income!Z12 -> 0 | P9: =Income!AB12 -> 0 | Q9: =Income!AD12 -> 0
A10: Change in Inventory | D10: =IF(ISBLANK(HistoricalData!$D$10)=TRUE,HistoricalData!D17-HistoricalData!C17,HistoricalData!D80-HistoricalData!C80-(HistoricalData!C17/HistoricalData!D10-HistoricalData!C17/HistoricalData!C10)) -> 0 | E10: =Balance!E10-Balance!D10 -> 0 | F10: =Balance!F10-Balance!E10 -> 0 | G10: =Balance!G10-Balance!F10 -> 0 | H10: =Balance!H10-Balance!G10 -> 0 | I10: =Balance!I10-Balance!H10 -> 0 | J10: =Balance!J10-Balance!I10 -> 0 | K10: =Balance!K10-Balance!J10 -> 0 | L10: =Balance!L10-Balance!K10 -> 0 | M10: =Balance!M10-Balance!L10 -> 0 | N10: =Balance!N10-Balance!M10 -> 0 | O10: =Balance!O10-Balance!N10 -> 0 | P10: =Balance!P10-Balance!O10 -> 0 | Q10: =Balance!Q10-Balance!P10 -> 0
A11: Change in Payables/Other Curr. Liabilities | D11: =-IF(ISBLANK(HistoricalData!$D$10)=TRUE,HistoricalData!D32-HistoricalData!C32,HistoricalData!D95-HistoricalData!C95-(HistoricalData!C32/HistoricalData!D10-HistoricalData!C32/HistoricalData!C10)) -> 0 | E11: =-(Balance!E36-Balance!D36) -> 0 | F11: =-(Balance!F36-Balance!E36) -> 0 | G11: =-(Balance!G36-Balance!F36) -> 0 | H11: =-(Balance!H36-Balance!G36) -> 0 | I11: =-(Balance!I36-Balance!H36) -> 0 | J11: =-(Balance!J36-Balance!I36) -> 0 | K11: =-(Balance!K36-Balance!J36) -> 0 | L11: =-(Balance!L36-Balance!K36) -> 0 | M11: =-(Balance!M36-Balance!L36) -> 0 | N11: =-(Balance!N36-Balance!M36) -> 0 | O11: =-(Balance!O36-Balance!N36) -> 0 | P11: =-(Balance!P36-Balance!O36) -> 0 | Q11: =-(Balance!Q36-Balance!P36) -> 0
A12: Cash Production Costs | D12: =SUM(D9:D11) -> 0 | E12: 0 | F12: 0 | G12: 0 | H12: 0 | I12: 0 | J12: 0 | K12: 0 | L12: 0 | M12: 0 | N12: =SUM(N9:N11) -> 0 | O12: =SUM(O9:O11) -> 0 | P12: =SUM(P9:P11) -> 0 | Q12: =SUM(Q9:Q11) -> 0
A14: Gross Cash Profits | D14: =D7-D12 -> 0 | E14: 0 | F14: 0 | G14: 0 | H14: 0 | I14: 0 | J14: 0 | K14: 0 | L14: 0 | M14: =M7-M12 -> 0 | N14: =N7-N12 -> 0 | O14: =O7-O12 -> 0 | P14: =P7-P12 -> 0 | Q14: =Q7-Q12 -> 0
A16: Cash Operating Expenses | D16: =Income!D25-IF(ISBLANK(HistoricalData!$D$10)=TRUE,HistoricalData!D55,HistoricalData!D117) -> 0 | E16: =Income!F25 -> 0 | F16: =Income!H25 -> 0 | G16: =Income!J25 -> 0 | H16: =Income!L25 -> 0 | I16: =Income!N25 -> 0 | J16: =Income!P25 -> 0 | K16: =Income!R25 -> 0 | L16: =Income!T25 -> 0 | M16: =Income!V25 -> 0 | N16: =Income!X25 -> 0 | O16: =Income!Z25 -> 0 | P16: =Income!AB25 -> 0 | Q16: =Income!AD25 -> 0
A18: Cash After Operations | D18: =D14-D16 -> 0 | E18: 0 | F18: 0 | G18: 0 | H18: 0 | I18: 0 | J18: 0 | K18: 0 | L18: 0 | M18: =M14-M16 -> 0 | N18: =N14-N16 -> 0 | O18: =O14-O16 -> 0 | P18: =P14-P16 -> 0 | Q18: =Q14-Q16 -> 0
A20: Taxes Paid | D20: =Income!D35 -> 0 | E20: =Income!F35 -> 0 | F20: =Income!H35 -> 0 | G20: =Income!J35 -> 0 | H20: =Income!L35 -> 0 | I20: =Income!N35 -> 0 | J20: =Income!P35 -> 0 | K20: =Income!R35 -> 0 | L20: =Income!T35 -> 0 | M20: =Income!V35 -> 0 | N20: =Income!X35 -> 0 | O20: =Income!Z35 -> 0 | P20: =Income!AB35 -> 0 | Q20: =Income!AD35 -> 0
A22: Net Cash After Operations | D22: =D18-D20 -> 0 | E22: 0 | F22: 0 | G22: 0 | H22: 0 | I22: 0 | J22: 0 | K22: 0 | L22: 0 | M22: =M18-M20 -> 0 | N22: =N18-N20 -> 0 | O22: =O18-O20 -> 0 | P22: =P18-P20 -> 0 | Q22: =Q18-Q20 -> 0
A24: Capital Expenditures | D24: =IF(ISBLANK(HistoricalData!$D$10)=TRUE,SUM(HistoricalData!D19:D26)-SUM(HistoricalData!C19:C26),SUM(HistoricalData!D82:D89)-SUM(HistoricalData!C82:C89)-(SUM(HistoricalData!C19:C26)/HistoricalData!D10-SUM(HistoricalData!C19:C26)/HistoricalData!C10)) -> 0 | E24: =Assumptions!D68 -> 0 | F24: =Assumptions!E68 -> 0 | G24: =Assumptions!F68 -> 0 | H24: =Assumptions!G68 -> 0 | I24: =Assumptions!H68 -> 0 | J24: =Assumptions!I68 -> 0 | K24: =Assumptions!J68 -> 0 | L24: =Assumptions!K68 -> 0 | M24: =Assumptions!L68 -> 0 | N24: =Assumptions!M68 -> 0 | O24: =Assumptions!N68 -> 0 | P24: =Assumptions!O68 -> 0 | Q24: =Assumptions!P68 -> 0
A25: Other Historical Cash Items | D25: =IF(ISBLANK(HistoricalData!$D$10)=TRUE,HistoricalData!D59+HistoricalData!D61,HistoricalData!D121+HistoricalData!D123) -> 0
A27: Net Cash After Investing Activities | D27: =D22-D24+D25 -> 0 | E27: =E22-E24+E25 -> 0 | F27: 0 | G27: 0 | H27: 0 | I27: 0 | J27: 0 | K27: 0 | L27: 0 | M27: 0 | N27: 0 | O27: 0 | P27: 0 | Q27: 0
A29: Interest & Fee Income/(Expense) | D29: =Income!D33 -> 0 | E29: =Income!F33 -> 0 | F29: =Income!H33 -> 0 | G29: =Income!J33 -> 0 | H29: =Income!L33 -> 0 | I29: =Income!N33 -> 0 | J29: =Income!P33 -> 0 | K29: =Income!R33 -> 0 | L29: =Income!T33 -> 0 | M29: =Income!V33 -> 0 | N29: =Income!X33 -> 0 | O29: =Income!Z33 -> 0 | P29: =Income!AB33 -> 0 | Q29: =Income!AD33 -> 0
A30: Dividends Paid | D30: =Income!D41 -> 0 | E30: =Income!F41 -> 0 | F30: =Income!H41 -> 0 | G30: =Income!J41 -> 0 | H30: =Income!L41 -> 0 | I30: =Income!N41 -> 0 | J30: =Income!P41 -> 0 | K30: =Income!R41 -> 0 | L30: =Income!T41 -> 0 | M30: =Income!V41 -> 0 | N30: =Income!X41 -> 0 | O30: =Income!Z41 -> 0 | P30: =Income!AB41 -> 0 | Q30: =Income!AD41 -> 0
A31: Short Term Debt Inflow/(Outflow) | D31: =IF(ISBLANK(HistoricalData!$D$10)=TRUE,HistoricalData!D33-HistoricalData!C33,HistoricalData!D96-HistoricalData!C96-(HistoricalData!C33/HistoricalData!D10-HistoricalData!C33/HistoricalData!C10)) -> 0 | E31: =Balance!E37-Balance!D37 -> 0 | F31: =Balance!F37-Balance!E37 -> 0 | G31: =Balance!G37-Balance!F37 -> 0 | H31: =Balance!H37-Balance!G37 -> 0 | I31: =Balance!I37-Balance!H37 -> 0 | J31: =Balance!J37-Balance!I37 -> 0 | K31: =Balance!K37-Balance!J37 -> 0 | L31: =Balance!L37-Balance!K37 -> 0 | M31: =Balance!M37-Balance!L37 -> 0 | N31: =Balance!N37-Balance!M37 -> 0 | O31: =Balance!O37-Balance!N37 -> 0 | P31: =Balance!P37-Balance!O37 -> 0 | Q31: =Balance!Q37-Balance!P37 -> 0
A32: LT Senior Debt Inflow/(Outflow) | D32: =IF(ISBLANK(HistoricalData!$D$10)=TRUE,(HistoricalData!D34+HistoricalData!D37)-(HistoricalData!C34+HistoricalData!C37),(HistoricalData!D97+HistoricalData!D100)-(HistoricalData!C97+HistoricalData!C100)-((HistoricalData!C34+HistoricalData!C37)/HistoricalData!D10-(HistoricalData!C34+HistoricalData!C37)/HistoricalData!C10)) -> 0 | E32: =Balance!E38+Balance!E42-Balance!D38-Balance!D42 -> 0 | F32: =Balance!F38+Balance!F42-Balance!E38-Balance!E42 -> 0 | G32: =Balance!G38+Balance!G42-Balance!F38-Balance!F42 -> 0 | H32: =Balance!H38+Balance!H42-Balance!G38-Balance!G42 -> 0 | I32: =Balance!I38+Balance!I42-Balance!H38-Balance!H42 -> 0 | J32: =Balance!J38+Balance!J42-Balance!I38-Balance!I42 -> 0 | K32: =Balance!K38+Balance!K42-Balance!J38-Balance!J42 -> 0 | L32: =Balance!L38+Balance!L42-Balance!K38-Balance!K42 -> 0 | M32: =Balance!M38+Balance!M42-Balance!L38-Balance!L42 -> 0 | N32: =Balance!N38+Balance!N42-Balance!M38-Balance!M42 -> 0 | O32: =Balance!O38+Balance!O42-Balance!N38-Balance!N42 -> 0 | P32: =Balance!P38+Balance!P42-Balance!O38-Balance!O42 -> 0 | Q32: =Balance!Q38+Balance!Q42-Balance!P38-Balance!P42 -> 0
A33: Subordinated Debt Inflow/(Outflow) | D33: =IF(ISBLANK(HistoricalData!$D$10)=TRUE,HistoricalData!D38-HistoricalData!C38,HistoricalData!D101-HistoricalData!C101-(HistoricalData!C38/HistoricalData!D10-HistoricalData!C38/HistoricalData!C10)) -> 0 | E33: =Balance!E43-Balance!D43 -> 0 | F33: =Balance!F43-Balance!E43 -> 0 | G33: =Balance!G43-Balance!F43 -> 0 | H33: =Balance!H43-Balance!G43 -> 0 | I33: =Balance!I43-Balance!H43 -> 0 | J33: =Balance!J43-Balance!I43 -> 0 | K33: =Balance!K43-Balance!J43 -> 0 | L33: =Balance!L43-Balance!K43 -> 0 | M33: =Balance!M43-Balance!L43 -> 0 | N33: =Balance!N43-Balance!M43 -> 0 | O33: =Balance!O43-Balance!N43 -> 0 | P33: =Balance!P43-Balance!O43 -> 0 | Q33: =Balance!Q43-Balance!P43 -> 0
A34: Change in other LT Liabilities | D34: =IF(ISBLANK(HistoricalData!$D$10)=TRUE,HistoricalData!D39-HistoricalData!C39,HistoricalData!D102-HistoricalData!C102-(HistoricalData!C39/HistoricalData!D10-HistoricalData!C39/HistoricalData!C10)) -> 0 | E34: =Balance!E44-Balance!D44 -> 0 | F34: =Balance!F44-Balance!E44 -> 0 | G34: =Balance!G44-Balance!F44 -> 0 | H34: =Balance!H44-Balance!G44 -> 0 | I34: =Balance!I44-Balance!H44 -> 0 | J34: =Balance!J44-Balance!I44 -> 0 | K34: =Balance!K44-Balance!J44 -> 0 | L34: =Balance!L44-Balance!K44 -> 0 | M34: =Balance!M44-Balance!L44 -> 0 | N34: =Balance!N44-Balance!M44 -> 0 | O34: =Balance!O44-Balance!N44 -> 0 | P34: =Balance!P44-Balance!O44 -> 0 | Q34: =Balance!Q44-Balance!P44 -> 0
A35: Equity Inflow/(Outflow) | D35: =IF(ISBLANK(HistoricalData!$D$10)=TRUE,SUM(HistoricalData!D42:D43)-SUM(HistoricalData!C42:C43),SUM(HistoricalData!D105:D106)-SUM(HistoricalData!C105:C106)-(SUM(HistoricalData!C42:C43)/HistoricalData!D10-SUM(HistoricalData!C42:C43)/HistoricalData!C10)) -> 0 | E35: =Balance!E48-Balance!D48 -> 0 | F35: =Balance!F48-Balance!E48 -> 0 | G35: =Balance!G48-Balance!F48 -> 0 | H35: =Balance!H48-Balance!G48 -> 0 | I35: =Balance!I48-Balance!H48 -> 0 | J35: =Balance!J48-Balance!I48 -> 0 | K35: =Balance!K48-Balance!J48 -> 0 | L35: =Balance!L48-Balance!K48 -> 0 | M35: =Balance!M48-Balance!L48 -> 0 | N35: =Balance!N48-Balance!M48 -> 0 | O35: =Balance!O48-Balance!N48 -> 0 | P35: =Balance!P48-Balance!O48 -> 0 | Q35: =Balance!Q48-Balance!P48 -> 0
A37: Net Cash After Financing Activities | D37: =D27+D29-D30+SUM(D31:D35) -> 0 | E37: =E27+E29-E30+SUM(E31:E35) -> 0 | F37: =F27+F29-F30+SUM(F31:F35) -> 0 | G37: 0 | H37: 0 | I37: 0 | J37: 0 | K37: 0 | L37: 0 | M37: 0 | N37: 0 | O37: 0 | P37: 0 | Q37: 0
A39: Beginning Cash | D39: =IF(ISBLANK(HistoricalData!$D$10)=TRUE,HistoricalData!C14,HistoricalData!C77+(HistoricalData!C14/HistoricalData!D10-HistoricalData!C14/HistoricalData!C10)) -> 0 | E39: =D42 -> 0 | F39: =E42 -> 0 | G39: 0 | H39: 0 | I39: 0 | J39: 0 | K39: 0 | L39: 0 | M39: 0 | N39: =M42 -> 0 | O39: =N42 -> 0 | P39: =O42 -> 0 | Q39: =P42 -> 0
A40: Change in Cash | D40: =D37 -> 0 | E40: =E37 -> 0 | F40: 0 | G40: 0 | H40: 0 | I40: 0 | J40: 0 | K40: 0 | L40: 0 | M40: =M37 -> 0 | N40: =N37 -> 0 | O40: =O37 -> 0 | P40: =P37 -> 0 | Q40: =Q37 -> 0
A41: Cash (to)/from debt reserve | E41: =-((Assumptions!E96)/12)*Assumptions!D171 -> 0 | F41: =-((Assumptions!F96)/12)*Assumptions!E171-SUM($E$41:E41) -> 0 | G41: =-((Assumptions!G96)/12)*Assumptions!F171-SUM($E$41:F41) -> 0 | H41: =-((Assumptions!H96)/12)*Assumptions!G171-SUM($E$41:G41) -> 0 | I41: =-((Assumptions!I96)/12)*Assumptions!H171-SUM($E$41:H41) -> 0 | J41: =-((Assumptions!J96)/12)*Assumptions!I171-SUM($E$41:I41) -> 0 | K41: =-((Assumptions!K96)/12)*Assumptions!J171-SUM($E$41:J41) -> 0 | L41: =-((Assumptions!L96)/12)*Assumptions!K171-SUM($E$41:K41) -> 0 | M41: =-((Assumptions!M96)/12)*Assumptions!L171-SUM($E$41:L41) -> 0 | N41: =-((Assumptions!N96)/12)*Assumptions!M171-SUM($E$41:M41) -> 0 | O41: =-((Assumptions!O96)/12)*Assumptions!N171-SUM($E$41:N41) -> 0 | P41: =-((Assumptions!P96)/12)*Assumptions!O171-SUM($E$41:O41) -> 0 | Q41: =-((Assumptions!Q96)/12)*Assumptions!P171-SUM($E$41:P41) -> 0
A42: Ending Cash | D42: =D39+D40+D41 -> 0 | E42: 0 | F42: 0 | G42: 0 | H42: 0 | I42: 0 | J42: 0 | K42: 0 | L42: 0 | M42: 0 | N42: =N39+N40+N41 -> 0 | O42: =O39+O40+O41 -> 0 | P42: =P39+P40+P41 -> 0 | Q42: =Q39+Q40+Q41 -> 0
H45: =Assumptions!D2 -> Sample Company
A46: Debt Service Coverages/Cash Available for Debt Service (CADS)
A48: Operating Debt Service Coverage
A50: Net Cash After Operations | D50: =D22 -> 0 | E50: =E22 -> 0 | F50: =F22 -> 0 | G50: 0 | H50: 0 | I50: 0 | J50: 0 | K50: 0 | L50: 0 | M50: =M22 -> 0 | N50: =N22 -> 0 | O50: =O22 -> 0 | P50: =P22 -> 0 | Q50: =Q22 -> 0
A51: (Operating CADS)
A53: Net Interest & Fee Expense | D53: =IF(D29<0,-D29,0) -> 0 | E53: =IF(E29<0,-E29,0) -> 0 | F53: 0 | G53: 0 | H53: 0 | I53: 0 | J53: 0 | K53: 0 | L53: 0 | M53: 0 | N53: 0 | O53: 0 | P53: 0 | Q53: 0
A54: Principal Payments | D54: =IF(SUM(D31:D33)<0,-SUM(D31:D33),0) -> 0 | E54: =IF(SUM(E31:E33)<0,-SUM(E31:E33),0) -> 0 | F54: 0 | G54: 0 | H54: 0 | I54: 0 | J54: 0 | K54: 0 | L54: 0 | M54: 0 | N54: 0 | O54: 0 | P54: 0 | Q54: 0
A55: Total Debt Service | D55: =SUM(D53:D54) -> 0 | E55: =SUM(E53:E54) -> 0 | F55: =SUM(F53:F54) -> 0 | G55: 0 | H55: 0 | I55: 0 | J55: 0 | K55: 0 | L55: 0 | M55: 0 | N55: =SUM(N53:N54) -> 0 | O55: =SUM(O53:O54) -> 0 | P55: =SUM(P53:P54) -> 0 | Q55: =SUM(Q53:Q54) -> 0
A57: Operating CADS/Interest & Fee | D57: =IF(ISERROR(D50/D53),"N/A",D50/D53) -> N/A | E57: =IF(ISERROR(E50/E53),"N/A",E50/E53) -> N/A | F57: N/A | G57: N/A | H57: N/A | I57: N/A | J57: N/A | K57: N/A | L57: N/A | M57: N/A | N57: N/A | O57: N/A | P57: N/A | Q57: N/A
A58: Operating CADS/Principal | D58: =IF(ISERROR(D50/D54),"N/A",D50/D54) -> N/A | E58: =IF(ISERROR(E50/E54),"N/A",E50/E54) -> N/A | F58: N/A | G58: N/A | H58: N/A | I58: N/A | J58: N/A | K58: N/A | L58: N/A | M58: N/A | N58: N/A | O58: N/A | P58: N/A | Q58: N/A
A59: Operating CADS/Total Debt Service | D59: =IF(ISERROR(D50/D55),"N/A",D50/D55) -> N/A | E59: =IF(ISERROR(E50/E55),"N/A",E50/E55) -> N/A | F59: N/A | G59: N/A | H59: N/A | I59: N/A | J59: N/A | K59: N/A | L59: N/A | M59: N/A | N59: N/A | O59: N/A | P59: N/A | Q59: N/A
A60: Average Debt Service Coverage | E60: =IF(ISERROR(AVERAGE(E59:Q59)),"N/A",AVERAGE(E59:Q59)) -> N/A
A62: Total Debt Service Coverage
A63: Net Cash Flow | D63: =D37 -> 0 | E63: =E37 -> 0 | F63: 0 | G63: 0 | H63: 0 | I63: 0 | J63: 0 | K63: 0 | L63: 0 | M63: =M37 -> 0 | N63: =N37 -> 0 | O63: =O37 -> 0 | P63: =P37 -> 0 | Q63: =Q37 -> 0
A64: +Interest & Fee Expense | D64: =IF(D29<0,-D29,0) -> 0 | E64: =IF(E29<0,-E29,0) -> 0 | F64: 0 | G64: 0 | H64: 0 | I64: 0 | J64: 0 | K64: 0 | L64: 0 | M64: 0 | N64: 0 | O64: 0 | P64: 0 | Q64: 0
A65: +Principal Repayment | D65: =IF(SUM(D31:D33)<0,-SUM(D31:D33),0) -> 0 | E65: =IF(SUM(E31:E33)<0,-SUM(E31:E33),0) -> 0 | F65: 0 | G65: 0 | H65: 0 | I65: 0 | J65: 0 | K65: 0 | L65: 0 | M65: 0 | N65: 0 | O65: 0 | P65: 0 | Q65: 0
A66: +Dividends Paid | D66: =D30 -> 0 | E66: =E30 -> 0 | F66: =F30 -> 0 | G66: 0 | H66: 0 | I66: 0 | J66: 0 | K66: 0 | L66: 0 | M66: 0 | N66: 0 | O66: 0 | P66: 0 | Q66: 0
A67: Total CADS | D67: =SUM(D63:D66) -> 0 | E67: =SUM(E63:E66) -> 0 | F67: 0 | G67: 0 | H67: 0 | I67: 0 | J67: 0 | K67: 0 | L67: 0 | M67: 0 | N67: =SUM(N63:N66) -> 0 | O67: =SUM(O63:O66) -> 0 | P67: =SUM(P63:P66) -> 0 | Q67: =SUM(Q63:Q66) -> 0
A69: Interest & Fee Expense | D69: =D64 -> 0 | E69: =E64 -> 0 | F69: 0 | G69: 0 | H69: 0 | I69: 0 | J69: 0 | K69: 0 | L69: 0 | M69: =M64 -> 0 | N69: 0 | O69: 0 | P69: =P64 -> 0 | Q69: =Q64 -> 0
A70: Principal Repayment | D70: =D65 -> 0 | E70: 0 | F70: 0 | G70: 0 | H70: 0 | I70: 0 | J70: 0 | K70: 0 | L70: 0 | M70: 0 | N70: 0 | O70: 0 | P70: =P65 -> 0 | Q70: =Q65 -> 0
A71: Total Debt Service | D71: =D69+D70 -> 0 | E71: =E69+E70 -> 0 | F71: 0 | G71: 0 | H71: 0 | I71: 0 | J71: 0 | K71: 0 | L71: 0 | M71: 0 | N71: =N69+N70 -> 0 | O71: =O69+O70 -> 0 | P71: =P69+P70 -> 0 | Q71: =Q69+Q70 -> 0
A73: Total CADS/Interest+Fee | D73: =IF(ISERROR(D67/D69),"N/A",D67/D69) -> N/A | E73: =IF(ISERROR(E67/E69),"N/A",E67/E69) -> N/A | F73: N/A | G73: N/A | H73: N/A | I73: N/A | J73: N/A | K73: N/A | L73: N/A | M73: N/A | N73: N/A | O73: N/A | P73: N/A | Q73: N/A
A74: Total CADS/Scheduled Principal | D74: =IF(ISERROR(D67/D70),"N/A",D67/D70) -> N/A | E74: =IF(ISERROR(E67/E70),"N/A",E67/E70) -> N/A | F74: N/A | G74: N/A | H74: N/A | I74: N/A | J74: N/A | K74: N/A | L74: N/A | M74: N/A | N74: N/A | O74: N/A | P74: N/A | Q74: N/A
A75: Total CADS/Total Debt Service | D75: =IF(ISERROR(D67/D71),"N/A",D67/D71) -> N/A | E75: =IF(ISERROR(E67/E71),"N/A",E67/E71) -> N/A | F75: N/A | G75: N/A | H75: N/A | I75: N/A | J75: N/A | K75: N/A | L75: N/A | M75: N/A | N75: N/A | O75: N/A | P75: N/A | Q75: N/A
A76: Average Debt Service Coverage | E76: =IF(ISERROR(AVERAGE(E75:Q75)),"N/A",AVERAGE(E75:Q75)) -> N/A
A79: Discounted Cash Flow (DCF)/Net Present Value (NPV) Analysis
A81: Project Value/Returns
A82: Equity and Debt Invested | E82: =-(IF(E32>0,E32,0)+IF(E33>0,E33,0)+IF(E35>0,E35,0)) -> 0 | F82: =-(IF(F32>0,F32,0)+IF(F33>0,F33,0)+IF(F35>0,F35,0)) -> 0 | G82: 0 | H82: 0 | I82: 0 | J82: 0 | K82: 0 | L82: 0 | M82: 0 | N82: 0 | O82: 0 | P82: 0 | Q82: 0
A83: Net Cash After Operations | E83: =E22 -> 0 | F83: =F22 -> 0 | G83: 0 | H83: 0 | I83: 0 | J83: 0 | K83: 0 | L83: 0 | M83: 0 | N83: 0 | O83: 0 | P83: 0 | Q83: 0
A84: Net (Outflow)/Inflow | E84: =E82+E83 -> 0 | F84: =F82+F83 -> 0 | G84: 0 | H84: 0 | I84: 0 | J84: 0 | K84: 0 | L84: 0 | M84: 0 | N84: 0 | O84: 0 | P84: 0 | Q84: 0
A85: Weighted average cost of capital | E85: =Assumptions!B181 -> 
A86: Internal Rate of Return | E86: =IRR(E84:Q84) -> 
A87: Net Present Value | E87: =E84+NPV(E85,F84:Q84) -> 
A89: Equity Value/Returns
A90: Equity Invested | E90: =-(IF(E35>0,E35,0)) -> 0 | F90: =-F35 -> 0 | G90: 0 | H90: 0 | I90: 0 | J90: 0 | K90: 0 | L90: 0 | M90: 0 | N90: 0 | O90: 0 | P90: 0 | Q90: 0
A91: Dividends Paid | E91: =E30 -> 0 | F91: =F30 -> 0 | G91: 0 | H91: 0 | I91: 0 | J91: 0 | K91: 0 | L91: 0 | M91: 0 | N91: 0 | O91: 0 | P91: 0 | Q91: 0
A92: Terminal Value
A93: Net (Outflow/Inflow) | E93: =SUM(E90:E92) -> 0 | F93: =SUM(F90:F92) -> 0 | G93: 0 | H93: 0 | I93: 0 | J93: 0 | K93: 0 | L93: 0 | M93: 0 | N93: 0 | O93: 0 | P93: 0 | Q93: 0
A94: Cost of Equity | E94: =Assumptions!B180 -> 0.2
A95: Internal Rate of Return | E95: =IRR(E93:Q93) -> 
A96: Net Present Value | E96: =E93+NPV(E94,F93:Q93) -> 0
A98: Working Capital Analysis
A99: Increase/(Decrease) in Receivables | D99: =-D6 -> 0 | E99: =-E6 -> 0 | F99: 0 | G99: 0 | H99: 0 | I99: 0 | J99: 0 | K99: 0 | L99: 0 | M99: 0 | N99: 0 | O99: 0 | P99: 0 | Q99: 0
A100: Increase/(Decrease) in Inventory | D100: =D10 -> 0 | E100: =E10 -> 0 | F100: 0 | G100: 0 | H100: 0 | I100: 0 | J100: 0 | K100: 0 | L100: 0 | M100: 0 | N100: 0 | O100: 0 | P100: 0 | Q100: 0
A101: (Increase)/Decrease in Payables | D101: =D11 -> 0 | E101: =E11 -> 0 | F101: 0 | G101: 0 | H101: 0 | I101: 0 | J101: 0 | K101: 0 | L101: 0 | M101: 0 | N101: 0 | O101: 0 | P101: 0 | Q101: 0
A102: Net Working Capital Cost | D102: =SUM(D99:D101) -> 0 | E102: =SUM(E99:E101) -> 0 | F102: 0 | G102: 0 | H102: 0 | I102: 0 | J102: 0 | K102: 0 | L102: 0 | M102: 0 | N102: 0 | O102: 0 | P102: 0 | Q102: 0

Sheet Balance
H1: =Start!C6 -> Sample Company
A2: Calendar Year | D2: =HistoricalData!D6 -> 2021 | E2: =Assumptions!D1 -> 2022 | F2: =E2+1 -> 2023 | G2: 2024 | H2: 2025 | I2: 2026 | J2: 2027 | K2: 2028 | L2: 2029 | M2: =L2+1 -> 2030 | N2: =M2+1 -> 2031 | O2: =N2+1 -> 2032 | P2: =O2+1 -> 2033 | Q2: =P2+1 -> 2034
D3: Actual | E3: Projected | F3: Projected | G3: Projected | H3: Projected | I3: Projected | J3: Projected | K3: Projected | L3: Projected | M3: Projected | N3: Projected | O3: Projected | P3: Projected | Q3: Projected
A4: Assets | E4: =IF(OR(E7<0,F7<0,G7<0,H7<0,I7<0,J7<0,K7<0,L7<0,M7<0,N7<0,O7<0,P7<0,Q7<0),"WARNING: CASH BALANCE IS NEGATIVE IN ONE OR MORE PERIODS"," ") -> 
A6: Current Assets
A7: Cash | D7: =CashFlow!D42 -> 0 | E7: =CashFlow!E42 -> 0 | F7: =CashFlow!F42 -> 0 | G7: =CashFlow!G42 -> 0 | H7: =CashFlow!H42 -> 0 | I7: =CashFlow!I42 -> 0 | J7: =CashFlow!J42 -> 0 | K7: =CashFlow!K42 -> 0 | L7: =CashFlow!L42 -> 0 | M7: =CashFlow!M42 -> 0 | N7: =CashFlow!N42 -> 0 | O7: =CashFlow!O42 -> 0 | P7: =CashFlow!P42 -> 0 | Q7: =CashFlow!Q42 -> 0
A8: Debt Service Reserve/Restricted Cash | E8: =-CashFlow!E41 -> 0 | F8: =E8-CashFlow!F41 -> 0 | G8: =F8-CashFlow!G41 -> 0 | H8: =G8-CashFlow!H41 -> 0 | I8: =H8-CashFlow!I41 -> 0 | J8: =I8-CashFlow!J41 -> 0 | K8: =J8-CashFlow!K41 -> 0 | L8: =K8-CashFlow!L41 -> 0 | M8: =L8-CashFlow!M41 -> 0 | N8: =M8-CashFlow!N41 -> 0 | O8: =N8-CashFlow!O41 -> 0 | P8: =O8-CashFlow!P41 -> 0 | Q8: =P8-CashFlow!Q41 -> 0
A9: Accounts Receivable | D9: =IF(ISBLANK(HistoricalData!$D$10)=TRUE,SUM(HistoricalData!D15:D16),SUM(HistoricalData!D78:D79)) -> 0 | E9: =(Income!F10/360)*Assumptions!D168 -> 0 | F9: =(Income!H10/360)*Assumptions!E168 -> 0 | G9: =(Income!J10/360)*Assumptions!F168 -> 0 | H9: =(Income!L10/360)*Assumptions!G168 -> 0 | I9: =(Income!N10/360)*Assumptions!H168 -> 0 | J9: =(Income!P10/360)*Assumptions!I168 -> 0 | K9: =(Income!R10/360)*Assumptions!J168 -> 0 | L9: =(Income!T10/360)*Assumptions!K168 -> 0 | M9: =(Income!V10/360)*Assumptions!L168 -> 0 | N9: =(Income!X10/360)*Assumptions!M168 -> 0 | O9: =(Income!Z10/360)*Assumptions!N168 -> 0 | P9: =(Income!AB10/360)*Assumptions!O168 -> 0 | Q9: =(Income!AD10/360)*Assumptions!P168 -> 0
A10: Inventory | D10: =IF(ISBLANK(HistoricalData!$D$10)=TRUE,HistoricalData!D17,HistoricalData!D80) -> 0 | E10: =(Income!F12/360)*Assumptions!D169 -> 0 | F10: =(Income!H12/360)*Assumptions!E169 -> 0 | G10: =(Income!J12/360)*Assumptions!F169 -> 0 | H10: =(Income!L12/360)*Assumptions!G169 -> 0 | I10: =(Income!N12/360)*Assumptions!H169 -> 0 | J10: =(Income!P12/360)*Assumptions!I169 -> 0 | K10: =(Income!R12/360)*Assumptions!J169 -> 0 | L10: =(Income!T12/360)*Assumptions!K169 -> 0 | M10: =(Income!V12/360)*Assumptions!L169 -> 0 | N10: =(Income!X12/360)*Assumptions!M169 -> 0 | O10: =(Income!Z12/360)*Assumptions!N169 -> 0 | P10: =(Income!AB12/360)*Assumptions!O169 -> 0 | Q10: =(Income!AD12/360)*Assumptions!P169 -> 0
A13: Total Current Assets | D13: =SUM(D7:D12) -> 0 | E13: 0 | F13: 0 | G13: 0 | H13: 0 | I13: 0 | J13: 0 | K13: 0 | L13: 0 | M13: 0 | N13: =SUM(N7:N12) -> 0 | O13: =SUM(O7:O12) -> 0 | P13: =SUM(P7:P12) -> 0 | Q13: =SUM(Q7:Q12) -> 0
A15: Non-Current Assets
A16: Pre-existing Fixed Assets | D16: =IF(ISBLANK(HistoricalData!$D$10)=TRUE,SUM(HistoricalData!D19:D26),SUM(HistoricalData!D82:D89)) -> 0 | E16: =D16 -> 0 | F16: =E16 -> 0 | G16: 0 | H16: 0 | I16: 0 | J16: 0 | K16: 0 | L16: 0 | M16: 0 | N16: 0 | O16: 0 | P16: 0 | Q16: 0
A17: =Assumptions!A58 -> Expense Line Item 1 | E17: =Assumptions!D58 -> 0 | F17: =E17+Assumptions!E58 -> 0 | G17: =F17+Assumptions!F58 -> 0 | H17: =G17+Assumptions!G58 -> 0 | I17: =H17+Assumptions!H58 -> 0 | J17: =I17+Assumptions!I58 -> 0 | K17: =J17+Assumptions!J58 -> 0 | L17: =K17+Assumptions!K58 -> 0 | M17: =L17+Assumptions!L58 -> 0 | N17: =M17+Assumptions!M58 -> 0 | O17: =N17+Assumptions!N58 -> 0 | P17: =O17+Assumptions!O58 -> 0 | Q17: =P17+Assumptions!P58 -> 0
A18: =Assumptions!A59 -> Expense Line Item 2 | E18: =Assumptions!D59 -> 0 | F18: =E18+Assumptions!E59 -> 0 | G18: =F18+Assumptions!F59 -> 0 | H18: =G18+Assumptions!G59 -> 0 | I18: =H18+Assumptions!H59 -> 0 | J18: =I18+Assumptions!I59 -> 0 | K18: =J18+Assumptions!J59 -> 0 | L18: =K18+Assumptions!K59 -> 0 | M18: =L18+Assumptions!L59 -> 0 | N18: =M18+Assumptions!M59 -> 0 | O18: =N18+Assumptions!N59 -> 0 | P18: =O18+Assumptions!O59 -> 0 | Q18: =P18+Assumptions!P59 -> 0
A19: =Assumptions!A60 -> Expense Line Item 3 | E19: =Assumptions!D60 -> 0 | F19: =E19+Assumptions!E60 -> 0 | G19: =F19+Assumptions!F60 -> 0 | H19: =G19+Assumptions!G60 -> 0 | I19: =H19+Assumptions!H60 -> 0 | J19: =I19+Assumptions!I60 -> 0 | K19: =J19+Assumptions!J60 -> 0 | L19: =K19+Assumptions!K60 -> 0 | M19: =L19+Assumptions!L60 -> 0 | N19: =M19+Assumptions!M60 -> 0 | O19: =N19+Assumptions!N60 -> 0 | P19: =O19+Assumptions!O60 -> 0 | Q19: =P19+Assumptions!P60 -> 0
A20: =Assumptions!A61 -> Expense Line Item 4 | E20: =Assumptions!D61 -> 0 | F20: =E20+Assumptions!E61 -> 0 | G20: =F20+Assumptions!F61 -> 0 | H20: =G20+Assumptions!G61 -> 0 | I20: =H20+Assumptions!H61 -> 0 | J20: =I20+Assumptions!I61 -> 0 | K20: =J20+Assumptions!J61 -> 0 | L20: =K20+Assumptions!K61 -> 0 | M20: =L20+Assumptions!L61 -> 0 | N20: =M20+Assumptions!M61 -> 0 | O20: =N20+Assumptions!N61 -> 0 | P20: =O20+Assumptions!O61 -> 0 | Q20: =P20+Assumptions!P61 -> 0
A21: =Assumptions!A62 -> Expense Line Item 5 | E21: =Assumptions!D62 -> 0 | F21: =E21+Assumptions!E62 -> 0 | G21: =F21+Assumptions!F62 -> 0 | H21: =G21+Assumptions!G62 -> 0 | I21: =H21+Assumptions!H62 -> 0 | J21: =I21+Assumptions!I62 -> 0 | K21: =J21+Assumptions!J62 -> 0 | L21: =K21+Assumptions!K62 -> 0 | M21: =L21+Assumptions!L62 -> 0 | N21: =M21+Assumptions!M62 -> 0 | O21: =N21+Assumptions!N62 -> 0 | P21: =O21+Assumptions!O62 -> 0 | Q21: =P21+Assumptions!P62 -> 0
A22: =Assumptions!A63 -> Expense Line Item 6 | E22: =Assumptions!D63 -> 0 | F22: =E22+Assumptions!E63 -> 0 | G22: =F22+Assumptions!F63 -> 0 | H22: =G22+Assumptions!G63 -> 0 | I22: =H22+Assumptions!H63 -> 0 | J22: =I22+Assumptions!I63 -> 0 | K22: =J22+Assumptions!J63 -> 0 | L22: =K22+Assumptions!K63 -> 0 | M22: =L22+Assumptions!L63 -> 0 | N22: =M22+Assumptions!M63 -> 0 | O22: =N22+Assumptions!N63 -> 0 | P22: =O22+Assumptions!O63 -> 0 | Q22: =P22+Assumptions!P63 -> 0
A23: =Assumptions!A64 -> Expense Line Item 7 | E23: =Assumptions!D64 -> 0 | F23: =E23+Assumptions!E64 -> 0 | G23: =F23+Assumptions!F64 -> 0 | H23: =G23+Assumptions!G64 -> 0 | I23: =H23+Assumptions!H64 -> 0 | J23: =I23+Assumptions!I64 -> 0 | K23: =J23+Assumptions!J64 -> 0 | L23: =K23+Assumptions!K64 -> 0 | M23: =L23+Assumptions!L64 -> 0 | N23: =M23+Assumptions!M64 -> 0 | O23: =N23+Assumptions!N64 -> 0 | P23: =O23+Assumptions!O64 -> 0 | Q23: =P23+Assumptions!P64 -> 0
A24: =Assumptions!A65 -> Expense Line Item 8 | E24: =Assumptions!D65 -> 0 | F24: =E24+Assumptions!E65 -> 0 | G24: =F24+Assumptions!F65 -> 0 | H24: =G24+Assumptions!G65 -> 0 | I24: =H24+Assumptions!H65 -> 0 | J24: =I24+Assumptions!I65 -> 0 | K24: =J24+Assumptions!J65 -> 0 | L24: =K24+Assumptions!K65 -> 0 | M24: =L24+Assumptions!L65 -> 0 | N24: =M24+Assumptions!M65 -> 0 | O24: =N24+Assumptions!N65 -> 0 | P24: =O24+Assumptions!O65 -> 0 | Q24: =P24+Assumptions!P65 -> 0
A25: =Assumptions!A66 -> Expense Line Item 9 | E25: =Assumptions!D66 -> 0 | F25: =E25+Assumptions!E66 -> 0 | G25: =F25+Assumptions!F66 -> 0 | H25: =G25+Assumptions!G66 -> 0 | I25: =H25+Assumptions!H66 -> 0 | J25: =I25+Assumptions!I66 -> 0 | K25: =J25+Assumptions!J66 -> 0 | L25: =K25+Assumptions!K66 -> 0 | M25: =L25+Assumptions!L66 -> 0 | N25: =M25+Assumptions!M66 -> 0 | O25: =N25+Assumptions!N66 -> 0 | P25: =O25+Assumptions!O66 -> 0 | Q25: =P25+Assumptions!P66 -> 0
A26: =Assumptions!A67 -> Expense Line Item 10 | E26: =Assumptions!D67 -> 0 | F26: =E26+Assumptions!E67 -> 0 | G26: =F26+Assumptions!F67 -> 0 | H26: =G26+Assumptions!G67 -> 0 | I26: =H26+Assumptions!H67 -> 0 | J26: =I26+Assumptions!I67 -> 0 | K26: =J26+Assumptions!J67 -> 0 | L26: =K26+Assumptions!K67 -> 0 | M26: =L26+Assumptions!L67 -> 0 | N26: =M26+Assumptions!M67 -> 0 | O26: =N26+Assumptions!N67 -> 0 | P26: =O26+Assumptions!O67 -> 0 | Q26: =P26+Assumptions!P67 -> 0
A27: Accumulated Depreciation | D27: =IF(ISBLANK(HistoricalData!$D$10)=TRUE,HistoricalData!D27,HistoricalData!D90) -> 0 | E27: =D27-Assumptions!D165 -> 0 | F27: =E27-Assumptions!E165 -> 0 | G27: =F27-Assumptions!F165 -> 0 | H27: =G27-Assumptions!G165 -> 0 | I27: =H27-Assumptions!H165 -> 0 | J27: =I27-Assumptions!I165 -> 0 | K27: =J27-Assumptions!J165 -> 0 | L27: =K27-Assumptions!K165 -> 0 | M27: =L27-Assumptions!L165 -> 0 | N27: =M27-Assumptions!M165 -> 0 | O27: =N27-Assumptions!N165 -> 0 | P27: =O27-Assumptions!O165 -> 0 | Q27: =P27-Assumptions!P165 -> 0
A28: Total Non-Current Assets | D28: =SUM(D16:D27) -> 0 | E28: =SUM(E16:E27) -> 0 | F28: 0 | G28: 0 | H28: 0 | I28: 0 | J28: 0 | K28: 0 | L28: 0 | M28: 0 | N28: 0 | O28: 0 | P28: 0 | Q28: 0
A30: Total Assets | D30: =D13+D28 -> 0 | E30: 0 | F30: 0 | G30: 0 | H30: 0 | I30: 0 | J30: 0 | K30: 0 | L30: 0 | M30: =M13+M28 -> 0 | N30: =N13+N28 -> 0 | O30: =O13+O28 -> 0 | P30: =P13+P28 -> 0 | Q30: =Q13+Q28 -> 0
A33: Liabilities and Net Worth
A35: Current Liabilities
A36: Accounts Payable | D36: =IF(ISBLANK(HistoricalData!$D$10)=TRUE,HistoricalData!D32,HistoricalData!D95) -> 0 | E36: =((Income!F12+Income!F25)/360)*Assumptions!D170 -> 0 | F36: =((Income!H12+Income!H25)/360)*Assumptions!E170 -> 0 | G36: =((Income!J12+Income!J25)/360)*Assumptions!F170 -> 0 | H36: =((Income!L12+Income!L25)/360)*Assumptions!G170 -> 0 | I36: =((Income!N12+Income!N25)/360)*Assumptions!H170 -> 0 | J36: =((Income!P12+Income!P25)/360)*Assumptions!I170 -> 0 | K36: =((Income!R12+Income!R25)/360)*Assumptions!J170 -> 0 | L36: =((Income!T12+Income!T25)/360)*Assumptions!K170 -> 0 | M36: =((Income!V12+Income!V25)/360)*Assumptions!L170 -> 0 | N36: =((Income!X12+Income!X25)/360)*Assumptions!M170 -> 0 | O36: =((Income!Z12+Income!Z25)/360)*Assumptions!N170 -> 0 | P36: =((Income!AB12+Income!AB25)/360)*Assumptions!O170 -> 0 | Q36: =((Income!AD12+Income!AD25)/360)*Assumptions!P170 -> 0
A37: Short Term Debt | D37: =IF(ISBLANK(HistoricalData!$D$10)=TRUE,HistoricalData!D33,HistoricalData!D96) -> 0 | E37: =Assumptions!D121 -> 0 | F37: =Assumptions!E121 -> 0 | G37: =Assumptions!F121 -> 0 | H37: =Assumptions!G121 -> 0 | I37: =Assumptions!H121 -> 0 | J37: =Assumptions!I121 -> 0 | K37: =Assumptions!J121 -> 0 | L37: =Assumptions!K121 -> 0 | M37: =Assumptions!L121 -> 0 | N37: =Assumptions!M121 -> 0 | O37: =Assumptions!N121 -> 0 | P37: =Assumptions!O121 -> 0 | Q37: =Assumptions!P121 -> 0
A38: Current Portion -- Long Term Debt | D38: =IF(ISBLANK(HistoricalData!$D$10)=TRUE,HistoricalData!D34,HistoricalData!D97) -> 0 | E38: =Assumptions!E95+Assumptions!E107 -> 0 | F38: =Assumptions!F95+Assumptions!F107 -> 0 | G38: =Assumptions!G95+Assumptions!G107 -> 0 | H38: =Assumptions!H95+Assumptions!H107 -> 0 | I38: =Assumptions!I95+Assumptions!I107 -> 0 | J38: =Assumptions!J95+Assumptions!J107 -> 0 | K38: =Assumptions!K95+Assumptions!K107 -> 0 | L38: =Assumptions!L95+Assumptions!L107 -> 0 | M38: =Assumptions!M95+Assumptions!M107 -> 0 | N38: =Assumptions!N95+Assumptions!N107 -> 0 | O38: =Assumptions!O95+Assumptions!O107 -> 0 | P38: =Assumptions!P95+Assumptions!P107 -> 0 | Q38: =Assumptions!Q95+Assumptions!Q107 -> 0
A39: Total Current Liabilities | D39: =SUM(D36:D38) -> 0 | E39: =SUM(E36:E38) -> 0 | F39: 0 | G39: 0 | H39: 0 | I39: 0 | J39: 0 | K39: 0 | L39: 0 | M39: 0 | N39: 0 | O39: 0 | P39: 0 | Q39: 0
A41: Non-Current Liabilities
A42: Long Term Debt-Senior | D42: =IF(ISBLANK(HistoricalData!$D$10)=TRUE,HistoricalData!D37,HistoricalData!D100) -> 0 | E42: =Assumptions!D97+Assumptions!D109-E38 -> 0 | F42: =Assumptions!E97+Assumptions!E109-F38 -> 0 | G42: =Assumptions!F97+Assumptions!F109-G38 -> 0 | H42: =Assumptions!G97+Assumptions!G109-H38 -> 0 | I42: =Assumptions!H97+Assumptions!H109-I38 -> 0 | J42: =Assumptions!I97+Assumptions!I109-J38 -> 0 | K42: =Assumptions!J97+Assumptions!J109-K38 -> 0 | L42: =Assumptions!K97+Assumptions!K109-L38 -> 0 | M42: =Assumptions!L97+Assumptions!L109-M38 -> 0 | N42: =Assumptions!M97+Assumptions!M109-N38 -> 0 | O42: =Assumptions!N97+Assumptions!N109-O38 -> 0 | P42: =Assumptions!O97+Assumptions!O109-P38 -> 0 | Q42: =Assumptions!P97+Assumptions!P109-Q38 -> 0
A43: Subordinated Debt | D43: =IF(ISBLANK(HistoricalData!$D$10)=TRUE,HistoricalData!D38,HistoricalData!D101) -> 0 | E43: =Assumptions!D132 -> 0 | F43: =Assumptions!E132 -> 0 | G43: =Assumptions!F132 -> 0 | H43: =Assumptions!G132 -> 0 | I43: =Assumptions!H132 -> 0 | J43: =Assumptions!I132 -> 0 | K43: =Assumptions!J132 -> 0 | L43: =Assumptions!K132 -> 0 | M43: =Assumptions!L132 -> 0 | N43: =Assumptions!M132 -> 0 | O43: =Assumptions!N132 -> 0 | P43: =Assumptions!O132 -> 0 | Q43: =Assumptions!P132 -> 0
A44: Other Long Term Liabilities | D44: =IF(ISBLANK(HistoricalData!$D$10)=TRUE,HistoricalData!D39,HistoricalData!D102) -> 0 | E44: =D44 -> 0 | F44: =E44 -> 0 | G44: 0 | H44: 0 | I44: 0 | J44: 0 | K44: 0 | L44: 0 | M44: 0 | N44: 0 | O44: 0 | P44: 0 | Q44: 0
A45: Total Non-Current Liabilities | D45: =SUM(D42:D44) -> 0 | E45: =SUM(E42:E44) -> 0 | F45: 0 | G45: 0 | H45: 0 | I45: 0 | J45: 0 | K45: 0 | L45: 0 | M45: 0 | N45: 0 | O45: 0 | P45: 0 | Q45: 0
A47: Net Worth/Stockholders Equity
A48: Stock and Paid in Capital | D48: =IF(ISBLANK(HistoricalData!$D$10)=TRUE,SUM(HistoricalData!D42:D43),SUM(HistoricalData!D105:D106)) -> 0 | E48: =Assumptions!D138 -> 0 | F48: =Assumptions!E138 -> 0 | G48: =Assumptions!F138 -> 0 | H48: =Assumptions!G138 -> 0 | I48: =Assumptions!H138 -> 0 | J48: =Assumptions!I138 -> 0 | K48: =Assumptions!J138 -> 0 | L48: =Assumptions!K138 -> 0 | M48: =Assumptions!L138 -> 0 | N48: =Assumptions!M138 -> 0 | O48: =Assumptions!N138 -> 0 | P48: =Assumptions!O138 -> 0 | Q48: =Assumptions!P138 -> 0
A49: Retained Earnings | D49: =IF(ISBLANK(HistoricalData!$D$10)=TRUE,HistoricalData!D44,HistoricalData!D107) -> 0 | E49: =D49+Income!F43 -> 0 | F49: =E49+Income!H43 -> 0 | G49: =F49+Income!J43 -> 0 | H49: =G49+Income!L43 -> 0 | I49: =H49+Income!N43 -> 0 | J49: =I49+Income!P43 -> 0 | K49: =J49+Income!R43 -> 0 | L49: =K49+Income!T43 -> 0 | M49: =L49+Income!V43 -> 0 | N49: =M49+Income!X43 -> 0 | O49: =N49+Income!Z43 -> 0 | P49: =O49+Income!AB43 -> 0 | Q49: =P49+Income!AD43 -> 0
A50: Total Net Worth | D50: =SUM(D48:D49) -> 0 | E50: 0 | F50: 0 | G50: 0 | H50: 0 | I50: 0 | J50: 0 | K50: 0 | L50: 0 | M50: 0 | N50: =SUM(N48:N49) -> 0 | O50: =SUM(O48:O49) -> 0 | P50: =SUM(P48:P49) -> 0 | Q50: =SUM(Q48:Q49) -> 0
A52: Total Liabilites and Net Worth | D52: =D39+D45+D50 -> 0 | E52: 0 | F52: 0 | G52: 0 | H52: 0 | I52: 0 | J52: 0 | K52: 0 | L52: 0 | M52: =M39+M45+M50 -> 0 | N52: =N39+N45+N50 -> 0 | O52: =O39+O45+O50 -> 0 | P52: =P39+P45+P50 -> 0 | Q52: =Q39+Q45+Q50 -> 0
A55: Reconciliation | D55: =D30-D52 -> 0 | E55: 0 | F55: 0 | G55: 0 | H55: 0 | I55: 0 | J55: 0 | K55: 0 | L55: 0 | M55: 0 | N55: 0 | O55: 0 | P55: 0 | Q55: 0

Sheet SourcesUses
G1: =Start!C6 -> Sample Company
A2: Calendar Year | D2: =Assumptions!D1 -> 2022 | E2: =D2+1 -> 2023 | F2: 2024 | G2: 2025 | H2: 2026 | I2: 2027 | J2: 2028 | K2: 2029 | L2: 2030 | M2: 2031 | N2: 2032 | O2: =N2+1 -> 2033 | P2: =O2+1 -> 2034
D3: Projected | E3: Projected | F3: Projected | G3: Projected | H3: Projected | I3: Projected | J3: Projected | K3: Projected | L3: Projected | M3: Projected | N3: Projected | O3: Projected | P3: Projected
A5: Uses of Funds
A7: =Assumptions!A58 -> Expense Line Item 1 | D7: =Assumptions!D58 -> 0 | E7: =Assumptions!E58 -> 0 | F7: =Assumptions!F58 -> 0 | G7: =Assumptions!G58 -> 0 | H7: =Assumptions!H58 -> 0 | I7: =Assumptions!I58 -> 0 | J7: =Assumptions!J58 -> 0 | K7: =Assumptions!K58 -> 0 | L7: =Assumptions!L58 -> 0 | M7: =Assumptions!M58 -> 0 | N7: =Assumptions!N58 -> 0 | O7: =Assumptions!O58 -> 0 | P7: =Assumptions!P58 -> 0
A8: =Assumptions!A59 -> Expense Line Item 2 | D8: =Assumptions!D59 -> 0 | E8: =Assumptions!E59 -> 0 | F8: =Assumptions!F59 -> 0 | G8: =Assumptions!G59 -> 0 | H8: =Assumptions!H59 -> 0 | I8: =Assumptions!I59 -> 0 | J8: =Assumptions!J59 -> 0 | K8: =Assumptions!K59 -> 0 | L8: =Assumptions!L59 -> 0 | M8: =Assumptions!M59 -> 0 | N8: =Assumptions!N59 -> 0 | O8: =Assumptions!O59 -> 0 | P8: =Assumptions!P59 -> 0
A9: =Assumptions!A60 -> Expense Line Item 3 | D9: =Assumptions!D60 -> 0 | E9: =Assumptions!E60 -> 0 | F9: =Assumptions!F60 -> 0 | G9: =Assumptions!G60 -> 0 | H9: =Assumptions!H60 -> 0 | I9: =Assumptions!I60 -> 0 | J9: =Assumptions!J60 -> 0 | K9: =Assumptions!K60 -> 0 | L9: =Assumptions!L60 -> 0 | M9: =Assumptions!M60 -> 0 | N9: =Assumptions!N60 -> 0 | O9: =Assumptions!O60 -> 0 | P9: =Assumptions!P60 -> 0
A10: =Assumptions!A61 -> Expense Line Item 4 | D10: =Assumptions!D61 -> 0 | E10: =Assumptions!E61 -> 0 | F10: =Assumptions!F61 -> 0 | G10: =Assumptions!G61 -> 0 | H10: =Assumptions!H61 -> 0 | I10: =Assumptions!I61 -> 0 | J10: =Assumptions!J61 -> 0 | K10: =Assumptions!K61 -> 0 | L10: =Assumptions!L61 -> 0 | M10: =Assumptions!M61 -> 0 | N10: =Assumptions!N61 -> 0 | O10: =Assumptions!O61 -> 0 | P10: =Assumptions!P61 -> 0
A11: =Assumptions!A62 -> Expense Line Item 5 | D11: =Assumptions!D62 -> 0 | E11: =Assumptions!E62 -> 0 | F11: =Assumptions!F62 -> 0 | G11: =Assumptions!G62 -> 0 | H11: =Assumptions!H62 -> 0 | I11: =Assumptions!I62 -> 0 | J11: =Assumptions!J62 -> 0 | K11: =Assumptions!K62 -> 0 | L11: =Assumptions!L62 -> 0 | M11: =Assumptions!M62 -> 0 | N11: =Assumptions!N62 -> 0 | O11: =Assumptions!O62 -> 0 | P11: =Assumptions!P62 -> 0
A12: =Assumptions!A63 -> Expense Line Item 6 | D12: =Assumptions!D63 -> 0 | E12: =Assumptions!E63 -> 0 | F12: =Assumptions!F63 -> 0 | G12: =Assumptions!G63 -> 0 | H12: =Assumptions!H63 -> 0 | I12: =Assumptions!I63 -> 0 | J12: =Assumptions!J63 -> 0 | K12: =Assumptions!K63 -> 0 | L12: =Assumptions!L63 -> 0 | M12: =Assumptions!M63 -> 0 | N12: =Assumptions!N63 -> 0 | O12: =Assumptions!O63 -> 0 | P12: =Assumptions!P63 -> 0
A13: =Assumptions!A64 -> Expense Line Item 7 | D13: =Assumptions!D64 -> 0 | E13: =Assumptions!E64 -> 0 | F13: =Assumptions!F64 -> 0 | G13: =Assumptions!G64 -> 0 | H13: =Assumptions!H64 -> 0 | I13: =Assumptions!I64 -> 0 | J13: =Assumptions!J64 -> 0 | K13: =Assumptions!K64 -> 0 | L13: =Assumptions!L64 -> 0 | M13: =Assumptions!M64 -> 0 | N13: =Assumptions!N64 -> 0 | O13: =Assumptions!O64 -> 0 | P13: =Assumptions!P64 -> 0
A14: =Assumptions!A65 -> Expense Line Item 8 | D14: =Assumptions!D65 -> 0 | E14: =Assumptions!E65 -> 0 | F14: =Assumptions!F65 -> 0 | G14: =Assumptions!G65 -> 0 | H14: =Assumptions!H65 -> 0 | I14: =Assumptions!I65 -> 0 | J14: =Assumptions!J65 -> 0 | K14: =Assumptions!K65 -> 0 | L14: =Assumptions!L65 -> 0 | M14: =Assumptions!M65 -> 0 | N14: =Assumptions!N65 -> 0 | O14: =Assumptions!O65 -> 0 | P14: =Assumptions!P65 -> 0
A15: =Assumptions!A66 -> Expense Line Item 9 | D15: =Assumptions!D66 -> 0 | E15: =Assumptions!E66 -> 0 | F15: =Assumptions!F66 -> 0 | G15: =Assumptions!G66 -> 0 | H15: =Assumptions!H66 -> 0 | I15: =Assumptions!I66 -> 0 | J15: =Assumptions!J66 -> 0 | K15: =Assumptions!K66 -> 0 | L15: =Assumptions!L66 -> 0 | M15: =Assumptions!M66 -> 0 | N15: =Assumptions!N66 -> 0 | O15: =Assumptions!O66 -> 0 | P15: =Assumptions!P66 -> 0
A16: =Assumptions!A67 -> Expense Line Item 10 | D16: =Assumptions!D67 -> 0 | E16: =Assumptions!E67 -> 0 | F16: =Assumptions!F67 -> 0 | G16: =Assumptions!G67 -> 0 | H16: =Assumptions!H67 -> 0 | I16: =Assumptions!I67 -> 0 | J16: =Assumptions!J67 -> 0 | K16: =Assumptions!K67 -> 0 | L16: =Assumptions!L67 -> 0 | M16: =Assumptions!M67 -> 0 | N16: =Assumptions!N67 -> 0 | O16: =Assumptions!O67 -> 0 | P16: =Assumptions!P67 -> 0
A17: Project-Related Working Capital | D17: =IF(HLOOKUP(D2,CashFlow!$E$2:$Q$102,101)=MAX(CashFlow!$E$102:$Q$102),MAX(CashFlow!$E$102:$Q$102),0) -> 0 | E17: =IF(HLOOKUP(E2,CashFlow!$E$2:$Q$102,101)=MAX(CashFlow!$E$102:$Q$102),MAX(CashFlow!$E$102:$Q$102),0) -> 0 | F17: =IF(HLOOKUP(F2,CashFlow!$E$2:$Q$102,101)=MAX(CashFlow!$E$102:$Q$102),MAX(CashFlow!$E$102:$Q$102),0) -> 0 | G17: =IF(HLOOKUP(G2,CashFlow!$E$2:$Q$102,101)=MAX(CashFlow!$E$102:$Q$102),MAX(CashFlow!$E$102:$Q$102),0) -> 0 | H17: =IF(HLOOKUP(H2,CashFlow!$E$2:$Q$102,101)=MAX(CashFlow!$E$102:$Q$102),MAX(CashFlow!$E$102:$Q$102),0) -> 0 | I17: =IF(HLOOKUP(I2,CashFlow!$E$2:$Q$102,101)=MAX(CashFlow!$E$102:$Q$102),MAX(CashFlow!$E$102:$Q$102),0) -> 0 | J17: =IF(HLOOKUP(J2,CashFlow!$E$2:$Q$102,101)=MAX(CashFlow!$E$102:$Q$102),MAX(CashFlow!$E$102:$Q$102),0) -> 0 | K17: =IF(HLOOKUP(K2,CashFlow!$E$2:$Q$102,101)=MAX(CashFlow!$E$102:$Q$102),MAX(CashFlow!$E$102:$Q$102),0) -> 0 | L17: =IF(HLOOKUP(L2,CashFlow!$E$2:$Q$102,101)=MAX(CashFlow!$E$102:$Q$102),MAX(CashFlow!$E$102:$Q$102),0) -> 0 | M17: =IF(HLOOKUP(M2,CashFlow!$E$2:$Q$102,101)=MAX(CashFlow!$E$102:$Q$102),MAX(CashFlow!$E$102:$Q$102),0) -> 0 | N17: =IF(HLOOKUP(N2,CashFlow!$E$2:$Q$102,101)=MAX(CashFlow!$E$102:$Q$102),MAX(CashFlow!$E$102:$Q$102),0) -> 0 | O17: =IF(HLOOKUP(O2,CashFlow!$E$2:$Q$102,101)=MAX(CashFlow!$E$102:$Q$102),MAX(CashFlow!$E$102:$Q$102),0) -> 0 | P17: =IF(HLOOKUP(P2,CashFlow!$E$2:$Q$102,101)=MAX(CashFlow!$E$102:$Q$102),MAX(CashFlow!$E$102:$Q$102),0) -> 0
A18: Funding of Debt Service Reserve | D18: =IF(HLOOKUP(D2,Balance!$E$2:$Q$8,7)=MAX(Balance!$E$8:'Balance'!$Q$8),MAX(Balance!$E$8:'Balance'!$Q$8),0) -> 0 | E18: =IF(HLOOKUP(E2,Balance!$E$2:$Q$8,7)=MAX(Balance!$E$8:'Balance'!$Q$8),MAX(Balance!$E$8:'Balance'!$Q$8),0) -> 0 | F18: =IF(HLOOKUP(F2,Balance!$E$2:$Q$8,7)=MAX(Balance!$E$8:'Balance'!$Q$8),MAX(Balance!$E$8:'Balance'!$Q$8),0) -> 0 | G18: =IF(HLOOKUP(G2,Balance!$E$2:$Q$8,7)=MAX(Balance!$E$8:'Balance'!$Q$8),MAX(Balance!$E$8:'Balance'!$Q$8),0) -> 0 | H18: =IF(HLOOKUP(H2,Balance!$E$2:$Q$8,7)=MAX(Balance!$E$8:'Balance'!$Q$8),MAX(Balance!$E$8:'Balance'!$Q$8),0) -> 0 | I18: =IF(HLOOKUP(I2,Balance!$E$2:$Q$8,7)=MAX(Balance!$E$8:'Balance'!$Q$8),MAX(Balance!$E$8:'Balance'!$Q$8),0) -> 0 | J18: =IF(HLOOKUP(J2,Balance!$E$2:$Q$8,7)=MAX(Balance!$E$8:'Balance'!$Q$8),MAX(Balance!$E$8:'Balance'!$Q$8),0) -> 0 | K18: =IF(HLOOKUP(K2,Balance!$E$2:$Q$8,7)=MAX(Balance!$E$8:'Balance'!$Q$8),MAX(Balance!$E$8:'Balance'!$Q$8),0) -> 0 | L18: =IF(HLOOKUP(L2,Balance!$E$2:$Q$8,7)=MAX(Balance!$E$8:'Balance'!$Q$8),MAX(Balance!$E$8:'Balance'!$Q$8),0) -> 0 | M18: =IF(HLOOKUP(M2,Balance!$E$2:$Q$8,7)=MAX(Balance!$E$8:'Balance'!$Q$8),MAX(Balance!$E$8:'Balance'!$Q$8),0) -> 0 | N18: =IF(HLOOKUP(N2,Balance!$E$2:$Q$8,7)=MAX(Balance!$E$8:'Balance'!$Q$8),MAX(Balance!$E$8:'Balance'!$Q$8),0) -> 0 | O18: =IF(HLOOKUP(O2,Balance!$E$2:$Q$8,7)=MAX(Balance!$E$8:'Balance'!$Q$8),MAX(Balance!$E$8:'Balance'!$Q$8),0) -> 0 | P18: =IF(HLOOKUP(P2,Balance!$E$2:$Q$8,7)=MAX(Balance!$E$8:'Balance'!$Q$8),MAX(Balance!$E$8:'Balance'!$Q$8),0) -> 0
A19: Interest/Fees During Construction | D19: =IF(Income!F33<0,-Income!F33,0) -> 0 | E19: =IF(Assumptions!D80<12,0,IF(Income!H33<0,-Income!H33,0)) -> 0
A20: Contingency | D20: =IF(CashFlow!E42>0,CashFlow!E42,-CashFlow!E42) -> 0
A21: Annual Total | D21: =SUM(D7:D20) -> 0 | E21: =SUM(E7:E20) -> 0 | F21: 0 | G21: 0 | H21: 0 | I21: 0 | J21: 0 | K21: 0 | L21: 0 | M21: 0 | N21: 0 | O21: =SUM(O7:O20) -> 0 | P21: =SUM(P7:P20) -> 0
A22: Total Project Cost | D22: =SUM(D21:P21) -> 0
A25: Sources of Funds
A27: DFC Debt Disbursements | D27: =Assumptions!D92 -> 0 | E27: =Assumptions!E92 -> 0 | F27: =Assumptions!F92 -> 0 | G27: =Assumptions!G92 -> 0 | H27: =Assumptions!H92 -> 0 | I27: =Assumptions!I92 -> 0 | J27: =Assumptions!J92 -> 0 | K27: =Assumptions!K92 -> 0 | L27: =Assumptions!L92 -> 0 | M27: =Assumptions!M92 -> 0 | N27: =Assumptions!N92 -> 0 | O27: =Assumptions!O92 -> 0 | P27: =Assumptions!P92 -> 0
A28: Other LT and Subordinated Debt Disb | D28: =Assumptions!D104+Assumptions!D128 -> 0 | E28: =Assumptions!E104+Assumptions!E128 -> 0 | F28: =Assumptions!F104+Assumptions!F128 -> 0 | G28: =Assumptions!G104+Assumptions!G128 -> 0 | H28: =Assumptions!H104+Assumptions!H128 -> 0 | I28: =Assumptions!I104+Assumptions!I128 -> 0 | J28: =Assumptions!J104+Assumptions!J128 -> 0 | K28: =Assumptions!K104+Assumptions!K128 -> 0 | L28: =Assumptions!L104+Assumptions!L128 -> 0 | M28: =Assumptions!M104+Assumptions!M128 -> 0 | N28: =Assumptions!N104+Assumptions!N128 -> 0 | O28: =Assumptions!O104+Assumptions!O128 -> 0 | P28: =Assumptions!P104+Assumptions!P128 -> 0
A29: New Equity Contributions | D29: =Assumptions!D137 -> 0 | E29: =Assumptions!E137 -> 0 | F29: =Assumptions!F137 -> 0 | G29: =Assumptions!G137 -> 0 | H29: =Assumptions!H137 -> 0 | I29: =Assumptions!I137 -> 0 | J29: =Assumptions!J137 -> 0 | K29: =Assumptions!K137 -> 0 | L29: =Assumptions!L137 -> 0 | M29: =Assumptions!M137 -> 0 | N29: =Assumptions!N137 -> 0 | O29: =Assumptions!O137 -> 0 | P29: =Assumptions!P137 -> 0
A30: Annual Total | D30: =SUM(D27:D29) -> 0 | E30: =SUM(E27:E29) -> 0 | F30: 0 | G30: 0 | H30: 0 | I30: 0 | J30: 0 | K30: 0 | L30: 0 | M30: 0 | N30: 0 | O30: 0 | P30: 0
A31: Total Financing | D31: =SUM(D30:P30) -> 0

Sheet Ratios
H1: =Start!C6 -> Sample Company
A2: Calendar Year | D2: =HistoricalData!D6 -> 2021 | E2: =Assumptions!D1 -> 2022 | F2: =E2+1 -> 2023 | G2: 2024 | H2: 2025 | I2: 2026 | J2: 2027 | K2: 2028 | L2: 2029 | M2: =L2+1 -> 2030 | N2: =M2+1 -> 2031 | O2: =N2+1 -> 2032 | P2: =O2+1 -> 2033 | Q2: =P2+1 -> 2034
D3: Actual | E3: Projected | F3: Projected | G3: Projected | H3: Projected | I3: Projected | J3: Projected | K3: Projected | L3: Projected | M3: Projected | N3: Projected | O3: Projected | P3: Projected | Q3: Projected
A4: Liquidity Ratios
A5: Quick Ratio | D5: =IF(ISERROR((Balance!D13-Balance!D10)/Balance!D39)," ",(Balance!D13-Balance!D10)/Balance!D39) ->  | E5: =IF(ISERROR((Balance!E13-Balance!E10)/Balance!E39)," ",(Balance!E13-Balance!E10)/Balance!E39) ->  | F5: =IF(ISERROR((Balance!F13-Balance!F10)/Balance!F39)," ",(Balance!F13-Balance!F10)/Balance!F39) ->  | G5: =IF(ISERROR((Balance!G13-Balance!G10)/Balance!G39)," ",(Balance!G13-Balance!G10)/Balance!G39) ->  | H5: =IF(ISERROR((Balance!H13-Balance!H10)/Balance!H39)," ",(Balance!H13-Balance!H10)/Balance!H39) ->  | I5: =IF(ISERROR((Balance!I13-Balance!I10)/Balance!I39)," ",(Balance!I13-Balance!I10)/Balance!I39) ->  | J5: =IF(ISERROR((Balance!J13-Balance!J10)/Balance!J39)," ",(Balance!J13-Balance!J10)/Balance!J39) ->  | K5: =IF(ISERROR((Balance!K13-Balance!K10)/Balance!K39)," ",(Balance!K13-Balance!K10)/Balance!K39) ->  | L5: =IF(ISERROR((Balance!L13-Balance!L10)/Balance!L39)," ",(Balance!L13-Balance!L10)/Balance!L39) ->  | M5: =IF(ISERROR((Balance!M13-Balance!M10)/Balance!M39)," ",(Balance!M13-Balance!M10)/Balance!M39) ->  | N5: =IF(ISERROR((Balance!N13-Balance!N10)/Balance!N39)," ",(Balance!N13-Balance!N10)/Balance!N39) ->  | O5: =IF(ISERROR((Balance!O13-Balance!O10)/Balance!O39)," ",(Balance!O13-Balance!O10)/Balance!O39) ->  | P5: =IF(ISERROR((Balance!P13-Balance!P10)/Balance!P39)," ",(Balance!P13-Balance!P10)/Balance!P39) ->  | Q5: =IF(ISERROR((Balance!Q13-Balance!Q10)/Balance!Q39)," ",(Balance!Q13-Balance!Q10)/Balance!Q39) -> 
A6: Current Ratio | D6: =IF(ISERROR(Balance!D13/Balance!D39)," ",Balance!D13/Balance!D39) ->  | E6: =IF(ISERROR(Balance!E13/Balance!E39)," ",Balance!E13/Balance!E39) ->  | F6: =IF(ISERROR(Balance!F13/Balance!F39)," ",Balance!F13/Balance!F39) ->  | G6: =IF(ISERROR(Balance!G13/Balance!G39)," ",Balance!G13/Balance!G39) ->  | H6: =IF(ISERROR(Balance!H13/Balance!H39)," ",Balance!H13/Balance!H39) ->  | I6: =IF(ISERROR(Balance!I13/Balance!I39)," ",Balance!I13/Balance!I39) ->  | J6: =IF(ISERROR(Balance!J13/Balance!J39)," ",Balance!J13/Balance!J39) ->  | K6: =IF(ISERROR(Balance!K13/Balance!K39)," ",Balance!K13/Balance!K39) ->  | L6: =IF(ISERROR(Balance!L13/Balance!L39)," ",Balance!L13/Balance!L39) ->  | M6: =IF(ISERROR(Balance!M13/Balance!M39)," ",Balance!M13/Balance!M39) ->  | N6: =IF(ISERROR(Balance!N13/Balance!N39)," ",Balance!N13/Balance!N39) ->  | O6: =IF(ISERROR(Balance!O13/Balance!O39)," ",Balance!O13/Balance!O39) ->  | P6: =IF(ISERROR(Balance!P13/Balance!P39)," ",Balance!P13/Balance!P39) ->  | Q6: =IF(ISERROR(Balance!Q13/Balance!Q39)," ",Balance!Q13/Balance!Q39) -> 
A8: Leverage Ratios
A9: Debt/Equity | D9: =IF(ISERROR((Balance!D39+Balance!D45)/Balance!D50)," ",(Balance!D39+Balance!D45)/Balance!D50) ->  | E9: =IF(ISERROR((Balance!E39+Balance!E45)/Balance!E50)," ",(Balance!E39+Balance!E45)/Balance!E50) ->  | F9: =IF(ISERROR((Balance!F39+Balance!F45)/Balance!F50)," ",(Balance!F39+Balance!F45)/Balance!F50) ->  | G9: =IF(ISERROR((Balance!G39+Balance!G45)/Balance!G50)," ",(Balance!G39+Balance!G45)/Balance!G50) ->  | H9: =IF(ISERROR((Balance!H39+Balance!H45)/Balance!H50)," ",(Balance!H39+Balance!H45)/Balance!H50) ->  | I9: =IF(ISERROR((Balance!I39+Balance!I45)/Balance!I50)," ",(Balance!I39+Balance!I45)/Balance!I50) ->  | J9: =IF(ISERROR((Balance!J39+Balance!J45)/Balance!J50)," ",(Balance!J39+Balance!J45)/Balance!J50) ->  | K9: =IF(ISERROR((Balance!K39+Balance!K45)/Balance!K50)," ",(Balance!K39+Balance!K45)/Balance!K50) ->  | L9: =IF(ISERROR((Balance!L39+Balance!L45)/Balance!L50)," ",(Balance!L39+Balance!L45)/Balance!L50) ->  | M9: =IF(ISERROR((Balance!M39+Balance!M45)/Balance!M50)," ",(Balance!M39+Balance!M45)/Balance!M50) ->  | N9: =IF(ISERROR((Balance!N39+Balance!N45)/Balance!N50)," ",(Balance!N39+Balance!N45)/Balance!N50) ->  | O9: =IF(ISERROR((Balance!O39+Balance!O45)/Balance!O50)," ",(Balance!O39+Balance!O45)/Balance!O50) ->  | P9: =IF(ISERROR((Balance!P39+Balance!P45)/Balance!P50)," ",(Balance!P39+Balance!P45)/Balance!P50) ->  | Q9: =IF(ISERROR((Balance!Q39+Balance!Q45)/Balance!Q50)," ",(Balance!Q39+Balance!Q45)/Balance!Q50) -> 
A10: Senior Debt/Sub-debt+Equity | D10: =IF(ISERROR((Balance!D39+Balance!D45-Balance!D43)/(Balance!D50+Balance!D43))," ",(Balance!D39+Balance!D45-Balance!D43)/(Balance!D50+Balance!D43)) ->  | E10: =IF(ISERROR((Balance!E39+Balance!E45-Balance!E43)/(Balance!E50+Balance!E43))," ",(Balance!E39+Balance!E45-Balance!E43)/(Balance!E50+Balance!E43)) ->  | F10: =IF(ISERROR((Balance!F39+Balance!F45-Balance!F43)/(Balance!F50+Balance!F43))," ",(Balance!F39+Balance!F45-Balance!F43)/(Balance!F50+Balance!F43)) ->  | G10: =IF(ISERROR((Balance!G39+Balance!G45-Balance!G43)/(Balance!G50+Balance!G43))," ",(Balance!G39+Balance!G45-Balance!G43)/(Balance!G50+Balance!G43)) ->  | H10: =IF(ISERROR((Balance!H39+Balance!H45-Balance!H43)/(Balance!H50+Balance!H43))," ",(Balance!H39+Balance!H45-Balance!H43)/(Balance!H50+Balance!H43)) ->  | I10: =IF(ISERROR((Balance!I39+Balance!I45-Balance!I43)/(Balance!I50+Balance!I43))," ",(Balance!I39+Balance!I45-Balance!I43)/(Balance!I50+Balance!I43)) ->  | J10: =IF(ISERROR((Balance!J39+Balance!J45-Balance!J43)/(Balance!J50+Balance!J43))," ",(Balance!J39+Balance!J45-Balance!J43)/(Balance!J50+Balance!J43)) ->  | K10: =IF(ISERROR((Balance!K39+Balance!K45-Balance!K43)/(Balance!K50+Balance!K43))," ",(Balance!K39+Balance!K45-Balance!K43)/(Balance!K50+Balance!K43)) ->  | L10: =IF(ISERROR((Balance!L39+Balance!L45-Balance!L43)/(Balance!L50+Balance!L43))," ",(Balance!L39+Balance!L45-Balance!L43)/(Balance!L50+Balance!L43)) ->  | M10: =IF(ISERROR((Balance!M39+Balance!M45-Balance!M43)/(Balance!M50+Balance!M43))," ",(Balance!M39+Balance!M45-Balance!M43)/(Balance!M50+Balance!M43)) ->  | N10: =IF(ISERROR((Balance!N39+Balance!N45-Balance!N43)/(Balance!N50+Balance!N43))," ",(Balance!N39+Balance!N45-Balance!N43)/(Balance!N50+Balance!N43)) ->  | O10: =IF(ISERROR((Balance!O39+Balance!O45-Balance!O43)/(Balance!O50+Balance!O43))," ",(Balance!O39+Balance!O45-Balance!O43)/(Balance!O50+Balance!O43)) ->  | P10: =IF(ISERROR((Balance!P39+Balance!P45-Balance!P43)/(Balance!P50+Balance!P43))," ",(Balance!P39+Balance!P45-Balance!P43)/(Balance!P50+Balance!P43)) ->  | Q10: =IF(ISERROR((Balance!Q39+Balance!Q45-Balance!Q43)/(Balance!Q50+Balance!Q43))," ",(Balance!Q39+Balance!Q45-Balance!Q43)/(Balance!Q50+Balance!Q43)) -> 
A13: Cash Flow and Debt Service Coverage Statistics
A14: Operating Cash Flow (USD) | D14: =CashFlow!D22 -> 0 | E14: =CashFlow!E22 -> 0 | F14: =CashFlow!F22 -> 0 | G14: =CashFlow!G22 -> 0 | H14: =CashFlow!H22 -> 0 | I14: =CashFlow!I22 -> 0 | J14: =CashFlow!J22 -> 0 | K14: =CashFlow!K22 -> 0 | L14: =CashFlow!L22 -> 0 | M14: =CashFlow!M22 -> 0 | N14: =CashFlow!N22 -> 0 | O14: =CashFlow!O22 -> 0 | P14: =CashFlow!P22 -> 0 | Q14: =CashFlow!Q22 -> 0
A15: Operating CADS/Interest+Fees | D15: =CashFlow!D57 -> N/A | E15: =CashFlow!E57 -> N/A | F15: =CashFlow!F57 -> N/A | G15: =CashFlow!G57 -> N/A | H15: =CashFlow!H57 -> N/A | I15: =CashFlow!I57 -> N/A | J15: =CashFlow!J57 -> N/A | K15: =CashFlow!K57 -> N/A | L15: =CashFlow!L57 -> N/A | M15: =CashFlow!M57 -> N/A | N15: =CashFlow!N57 -> N/A | O15: =CashFlow!O57 -> N/A | P15: =CashFlow!P57 -> N/A | Q15: =CashFlow!Q57 -> N/A
A16: Operating CADS/Scheduled Principal | D16: =CashFlow!D58 -> N/A | E16: =CashFlow!E58 -> N/A | F16: =CashFlow!F58 -> N/A | G16: =CashFlow!G58 -> N/A | H16: =CashFlow!H58 -> N/A | I16: =CashFlow!I58 -> N/A | J16: =CashFlow!J58 -> N/A | K16: =CashFlow!K58 -> N/A | L16: =CashFlow!L58 -> N/A | M16: =CashFlow!M58 -> N/A | N16: =CashFlow!N58 -> N/A | O16: =CashFlow!O58 -> N/A | P16: =CashFlow!P58 -> N/A | Q16: =CashFlow!Q58 -> N/A
A17: Operating CADS/Total Debt Service | D17: =CashFlow!D59 -> N/A | E17: =CashFlow!E59 -> N/A | F17: =CashFlow!F59 -> N/A | G17: =CashFlow!G59 -> N/A | H17: =CashFlow!H59 -> N/A | I17: =CashFlow!I59 -> N/A | J17: =CashFlow!J59 -> N/A | K17: =CashFlow!K59 -> N/A | L17: =CashFlow!L59 -> N/A | M17: =CashFlow!M59 -> N/A | N17: =CashFlow!N59 -> N/A | O17: =CashFlow!O59 -> N/A | P17: =CashFlow!P59 -> N/A | Q17: =CashFlow!Q59 -> N/A
A19: Profitability Statistics
A20: EBITDA (USD) | D20: =Income!D27 -> 0 | E20: =Income!F27 -> 0 | F20: =Income!H27 -> 0 | G20: =Income!J27 -> 0 | H20: =Income!L27 -> 0 | I20: =Income!N27 -> 0 | J20: =Income!P27 -> 0 | K20: =Income!R27 -> 0 | L20: =Income!T27 -> 0 | M20: =Income!V27 -> 0 | N20: =Income!X27 -> 0 | O20: =Income!Z27 -> 0 | P20: =Income!AB27 -> 0 | Q20: =Income!AD27 -> 0
A21: EBITDA (%) | D21: =Income!E27 ->  | E21: =Income!G27 ->  | F21: =Income!I27 ->  | G21: =Income!K27 ->  | H21: =Income!M27 ->  | I21: =Income!O27 ->  | J21: =Income!Q27 ->  | K21: =Income!S27 ->  | L21: =Income!U27 ->  | M21: =Income!W27 ->  | N21: =Income!Y27 ->  | O21: =Income!AA27 ->  | P21: =Income!AC27 ->  | Q21: =Income!AE27 -> 
A22: Net Income (USD) | D22: =Income!D39 -> 0 | E22: =Income!F39 -> 0 | F22: =Income!H39 -> 0 | G22: =Income!J39 -> 0 | H22: =Income!L39 -> 0 | I22: =Income!N39 -> 0 | J22: =Income!P39 -> 0 | K22: =Income!R39 -> 0 | L22: =Income!T39 -> 0 | M22: =Income!V39 -> 0 | N22: =Income!X39 -> 0 | O22: =Income!Z39 -> 0 | P22: =Income!AB39 -> 0 | Q22: =Income!AD39 -> 0
A23: Net Income (%) | D23: =Income!E39 ->  | E23: =Income!G39 ->  | F23: =Income!I39 ->  | G23: =Income!K39 ->  | H23: =Income!M39 ->  | I23: =Income!O39 ->  | J23: =Income!Q39 ->  | K23: =Income!S39 ->  | L23: =Income!U39 ->  | M23: =Income!W39 ->  | N23: =Income!Y39 ->  | O23: =Income!AA39 ->  | P23: =Income!AC39 ->  | Q23: =Income!AE39 -> 
A25: Return Statistics
A26: Project IRR | E26: =CashFlow!E86 -> 
A27: Project NPV | E27: =CashFlow!E87 -> 
A28: Equity IRR | E28: =CashFlow!E95 -> 
A29: Equity NPV | E29: =CashFlow!E96 -> 0
